Workbook

Sheet Spring_Home
A2: Spring selection HOME
C5: DW | D5: 2500 | E5: [mm] | F5: =IF(Date!$B$7>Date!B7,Date!B9,"") -> 
C6: DH | D6: 2125 | E6: [mm] | F6: =IF(Date!$B$7>365,Date!B10,"") -> 
C7: KG | D7: 75 | E7: [kg] | F7: =IF(Date!$B$7>365,Date!B11,"") -> 
C10: Spring Home-X extension spring
D12: Art.nb: | E12: Description
D13: =IF(AND(KG<=130,DH<3001,DW<5501),VeerX,NOSP) -> 115527 | E13: =X_Spring!T1 -> HOME-X Spring SET L=735, 2125_2250 (-- / 3,4 / 3,8)
C18: Home-F & R torsion spring | K18: ="Build-in information "&SpringCalculation!SC_RESULT_QTY&" Springs." -> Build-in information 2 Springs.
C20: Lifetime | D20: 15000
D22: Art.nb: | E22: Qty set | F22: Turns | G22: Lifetime
D23: =SC_RESULT_ITEM -> 3295305512 | E23: =SpringCalculation!SC_RESULT_QTY/2 -> 1 | F23: =SpringCalculation!SC_RESULT_RST -> 7.3 | G23: =SpringCalculation!SC_RESULT_ELT -> 18333
D25: Other solutions
B26: 1 | D26: =IF($B26>SC_RESULT_MAX,"",SpringCalculation!T3) -> 3295004482 | E26: =IF($B26>SC_RESULT_MAX,"",SpringCalculation!U3/2) -> 1 | F26: =IF($B26>SC_RESULT_MAX,"",SpringCalculation!V3) -> 7.413676822 | G26: =IF($B26>SC_RESULT_MAX,"",SpringCalculation!W3) -> 10833
B27: =B26+1 -> 2 | D27: =IF($B27>SC_RESULT_MAX,"",SpringCalculation!T4) -> 3295305512 | E27: =IF($B27>SC_RESULT_MAX,"",SpringCalculation!U4/2) -> 1 | F27: =IF($B27>SC_RESULT_MAX,"",SpringCalculation!V4) -> 7.33186094 | G27: =IF($B27>SC_RESULT_MAX,"",SpringCalculation!W4) -> 18333
B28: =B27+1 -> 3 | D28: =IF($B28>SC_RESULT_MAX,"",SpringCalculation!T5) -> 3295306002 | E28: =IF($B28>SC_RESULT_MAX,"",SpringCalculation!U5/2) -> 1 | F28: =IF($B28>SC_RESULT_MAX,"",SpringCalculation!V5) -> 7.452901591 | G28: =IF($B28>SC_RESULT_MAX,"",SpringCalculation!W5) -> 26667
B29: 4 | D29: =IF($B29>SC_RESULT_MAX,"",SpringCalculation!T6) -> 3295506982 | E29: =IF($B29>SC_RESULT_MAX,"",SpringCalculation!U6/2) -> 1 | F29: =IF($B29>SC_RESULT_MAX,"",SpringCalculation!V6) -> 7.424447126 | G29: =IF($B29>SC_RESULT_MAX,"",SpringCalculation!W6) -> 41500
B30: 5 | D30: =IF($B30>SC_RESULT_MAX,"",SpringCalculation!T7) -> 3396008112 | E30: =IF($B30>SC_RESULT_MAX,"",SpringCalculation!U7/2) -> 1 | F30: =IF($B30>SC_RESULT_MAX,"",SpringCalculation!V7) -> 7.401722256 | G30: =IF($B30>SC_RESULT_MAX,"",SpringCalculation!W7) -> 93750
B31: 6 | D31: =IF($B31>SC_RESULT_MAX,"",SpringCalculation!T8) ->  | E31: =IF($B31>SC_RESULT_MAX,"",SpringCalculation!U8/2) ->  | F31: =IF($B31>SC_RESULT_MAX,"",SpringCalculation!V8) ->  | G31: =IF($B31>SC_RESULT_MAX,"",SpringCalculation!W8) -> 
B32: 7 | D32: =IF($B32>SC_RESULT_MAX,"",SpringCalculation!T9) ->  | E32: =IF($B32>SC_RESULT_MAX,"",SpringCalculation!U9/2) ->  | F32: =IF($B32>SC_RESULT_MAX,"",SpringCalculation!V9) ->  | G32: =IF($B32>SC_RESULT_MAX,"",SpringCalculation!W9) -> 
B33: 8 | D33: =IF($B33>SC_RESULT_MAX,"",SpringCalculation!T10) ->  | E33: =IF($B33>SC_RESULT_MAX,"",SpringCalculation!U10/2) ->  | F33: =IF($B33>SC_RESULT_MAX,"",SpringCalculation!V10) ->  | G33: =IF($B33>SC_RESULT_MAX,"",SpringCalculation!W10) -> 
B34: 9 | D34: =IF($B34>SC_RESULT_MAX,"",SpringCalculation!T11) ->  | E34: =IF($B34>SC_RESULT_MAX,"",SpringCalculation!U11/2) ->  | F34: =IF($B34>SC_RESULT_MAX,"",SpringCalculation!V11) ->  | G34: =IF($B34>SC_RESULT_MAX,"",SpringCalculation!W11) -> 
B35: 10 | D35: =IF($B35>SC_RESULT_MAX,"",SpringCalculation!T12) ->  | E35: =IF($B35>SC_RESULT_MAX,"",SpringCalculation!U12/2) ->  | F35: =IF($B35>SC_RESULT_MAX,"",SpringCalculation!V12) ->  | G35: =IF($B35>SC_RESULT_MAX,"",SpringCalculation!W12) -> 
B36: 11 | D36: =IF($B36>SC_RESULT_MAX,"",SpringCalculation!T13) ->  | E36: =IF($B36>SC_RESULT_MAX,"",SpringCalculation!U13/2) ->  | F36: =IF($B36>SC_RESULT_MAX,"",SpringCalculation!V13) ->  | G36: =IF($B36>SC_RESULT_MAX,"",SpringCalculation!W13) -> 
B37: 12 | D37: =IF($B37>SC_RESULT_MAX,"",SpringCalculation!T14) ->  | E37: =IF($B37>SC_RESULT_MAX,"",SpringCalculation!U14/2) ->  | F37: =IF($B37>SC_RESULT_MAX,"",SpringCalculation!V14) ->  | G37: =IF($B37>SC_RESULT_MAX,"",SpringCalculation!W14) -> 
D38: Calculated with drum diameter M102
I39: ="V1.0 Date: "&TEXT(Date!B4,"dd-mmm-jjjj") -> V1.0 Date: 01-mrt-2021

Sheet X_Spring (hidden)
A1: ITEM | B1: F0 [N] | C1: RS [N/mm] | D1: DH,min | E1: DH,max | F1: SELECT,H | G1: KG@DH | H1: RESULT_ID | J1: Input: | M1: Vaste gegevens: | T1: =_xlfn.IFNA(VLOOKUP(VeerX,S2:T55,2,0),"-") -> HOME-X Spring SET L=735, 2125_2250 (-- / 3,4 / 3,8)
A2: 115501 | B2: 38 | C2: 0.3743650745 | D2: 1751 | E2: 2000 | F2: =IF(AND((DH-IF(VOETJE=TRUE,8,0))>=D2,(DH-IF(VOETJE=TRUE,8,0))<=E2),1,0) -> 0 | G2: =(((C2*VEERWEG)+B2)*CORRECTION_FACTOR)/9.81 -> 43.21362116 | H2: =IF(AND(F2=1,G2<=KG_MAX),MAX($H1:H1)+1,0) -> 0 | J2: DH | K2: =DH -> 2125 | M2: CORRECTION | N2: 1.08 | S2: 115501 | T2: HOME-X Spring SET L=650, 1875_2000 (2,1 / 3,0 / --)
A3: 115502 | B3: 42 | C3: 0.436780566 | D3: 1751 | E3: 2000 | F3: 0 | G3: 50.16123259 | H3: =IF(AND(F3=1,G3<=KG_MAX),MAX($H2:H2)+1,0) -> 0 | J3: KG | K3: =KG -> 75 | M3: KG MAX↑ | N3: 0.05 | S3: 115502 | T3: HOME-X Spring SET L=650, 1875_2000 (2,3 / 3,0 / --)
A4: 115503 | B4: 45 | C4: 0.4704814975 | D4: 1751 | E4: =2000 -> 2000 | F4: 0 | G4: 54.00506181 | H4: =IF(AND(F4=1,G4<=KG_MAX),MAX($H3:H3)+1,0) -> 0 | J4: VOETJE | K4: FALSE | S4: 115503 | T4: HOME-X Spring SET L=650, 1875_2000 (2,1 / 3,2 / --)
A5: 115504 | B5: 49 | C5: 0.532896989 | D5: 1751 | E5: 2000 | F5: 0 | G5: 60.95267324 | H5: =IF(AND(F5=1,G5<=KG_MAX),MAX($H4:H4)+1,0) -> 0 | J5: VEERWEG | K5: =(DH-231)/2 -> 947 | M5: KG_MAX | N5: =KG*(1+KG_MAX_FACTOR) -> 78.75 | S5: 115504 | T5: HOME-X Spring SET L=650, 1875_2000 (2,3 / 3,2 / --)
A6: 115505 | B6: 52 | C6: 0.5980647437 | D6: 1751 | E6: =2000 -> 2000 | F6: 0 | G6: 68.0771353 | H6: =IF(AND(F6=1,G6<=KG_MAX),MAX($H5:H5)+1,0) -> 0 | S6: 115505 | T6: HOME-X Spring SET L=650, 1875_2000 (2,1 / 3,4 / --)
A7: 115506 | B7: 56 | C7: 0.6604802352 | D7: 1751 | E7: 2000 | F7: 0 | G7: 75.02474673 | H7: =IF(AND(F7=1,G7<=KG_MAX),MAX($H6:H6)+1,0) -> 0 | S7: 115506 | T7: HOME-X Spring SET L=650, 1875_2000 (2,3 / 3,4 / --)
A8: 115507 | B8: 69 | C8: 0.7511225347 | D8: 1751 | E8: =2000 -> 2000 | F8: 0 | G8: 85.90602279 | H8: =IF(AND(F8=1,G8<=KG_MAX),MAX($H7:H7)+1,0) -> 0 | J8: Resultaat: | S8: 115507 | T8: HOME-X Spring SET L=650, 1875_2000 (-- / 3,4 / 3,8)
A9: 115508 | B9: 76 | C9: 0.8439548828 | D9: 1751 | E9: 2000 | F9: 0 | G9: 96.35507603 | H9: =IF(AND(F9=1,G9<=KG_MAX),MAX($H8:H8)+1,0) -> 0 | J9: RESULT_ID | K9: =MAX(H2:H54) -> 7 | S9: 115508 | T9: HOME-X Spring SET L=650, 1875_2000 (-- / 3,4 / 4,0)
A10: 115509 | B10: 85 | C10: 0.9894237358 | D10: 1751 | E10: =2000 -> 2000 | F10: 0 | G10: 112.5120306 | H10: =IF(AND(F10=1,G10<=KG_MAX),MAX($H9:H9)+1,0) -> 0 | J10: SPRING | K10: =IF(KG>130,"NO SPRING!",IF(RESULT_ID>0,INDEX(A2:A54,MATCH(RESULT_ID,H2:H54,0)),"NO SPRING!")) -> 115527 | S10: 115509 | T10: HOME-X Spring SET L=650, 1875_2000 (-- / 3,4 / 4,3)
A11: 115510 | B11: 99 | C11: 1.129040432 | D11: 1751 | E11: 2000 | F11: 0 | G11: 128.6093162 | H11: =IF(AND(F11=1,G11<=KG_MAX),MAX($H10:H10)+1,0) -> 0 | S11: 115510 | T11: HOME-X Spring SET L=650, 1875_2000 (2,1 / 3,4 / 4,3)
A12: 115511 | B12: 110 | C12: 1.321905291 | D12: 1751 | E12: =2000 -> 2000 | F12: 0 | G12: 149.927814 | H12: =IF(AND(F12=1,G12<=KG_MAX),MAX($H11:H11)+1,0) -> 0 | S12: 115511 | T12: HOME-X Spring SET L=650, 1875_2000 (2,1 / 3,4 / 4,5)
A13: 115521 | B13: 36 | C13: 0.3207673521 | D13: 2001 | E13: 2250 | F13: 1 | G13: 37.40550633 | H13: =IF(AND(F13=1,G13<=KG_MAX),MAX($H12:H12)+1,0) -> 1 | J13: opmerkingen | S13: 115521 | T13: HOME-X Spring SET L=735, 2125_2250 (2,3 / 2,8 / --)
A14: 115522 | B14: 41 | C14: 0.3626223264 | D14: 2001 | E14: 2250 | F14: 1 | G14: 42.3196341 | H14: =IF(AND(F14=1,G14<=KG_MAX),MAX($H13:H13)+1,0) -> 2 | J14: =B1 -> F0 [N] | K14: Vaste waarde. Eigenschappen van samengestelde veer | S14: 115522 | T14: HOME-X Spring SET L=735, 2125_2250 (1,9 / 3,2 / --)
A15: 115523 | B15: 45 | C15: 0.4135624078 | D15: 2001 | E15: 2250 | F15: 1 | G15: 48.07085507 | H15: =IF(AND(F15=1,G15<=KG_MAX),MAX($H14:H14)+1,0) -> 3 | J15: =C1 -> RS [N/mm] | K15: Vaste waarde. Eigenschappen van samengestelde veer | S15: 115523 | T15: HOME-X Spring SET L=735 (42-48_45-51)
A16: 115524 | B16: 48 | C16: 0.4736654801 | D16: 2001 | E16: 2250 | F16: 1 | G16: 54.66728914 | H16: =IF(AND(F16=1,G16<=KG_MAX),MAX($H15:H15)+1,0) -> 4 | J16: =F1 -> SELECT,H | K16: Keuze van het hoogte bereik. Het kunststof voetje heeft hier invloed op. | S16: 115524 | T16: HOME-X Spring SET L=735, 2125_2250 (1,9 / 3,4 / --)
A17: 115525 | B17: 52 | C17: 0.5246055616 | D17: 2001 | E17: 2250 | F17: 1 | G17: 60.41851011 | H17: =IF(AND(F17=1,G17<=KG_MAX),MAX($H16:H16)+1,0) -> 5 | K17: Door het voetje verschuift je bereik 8mm | S17: 115525 | T17: HOME-X Spring SET L=735, 2125_2250 (2,1 / 3,4 / --)
A18: 115526 | B18: 56 | C18: 0.5797826701 | D18: 2001 | E18: 2250 | F18: 1 | G18: 66.61147031 | H18: =IF(AND(F18=1,G18<=KG_MAX),MAX($H17:H17)+1,0) -> 6 | J18: =G1 -> KG@DH | K18: =_xlfn.FORMULATEXT(G2) -> =(((C2*VEERWEG)+B2)*CORRECTION_FACTOR)/9,81 | S18: 115526 | T18: HOME-X Spring SET L=735, 2125_2250 (2,3 / 3,4 / --)
A19: 115527 | B19: 69 | C19: 0.6575905508 | D19: 2001 | E19: 2250 | F19: 1 | G19: 76.15466991 | H19: =IF(AND(F19=1,G19<=KG_MAX),MAX($H18:H18)+1,0) -> 7 | J19: =H1 -> RESULT_ID | K19: Keuze op basis van het gewicht mits het in het hoogte bereik valt. | S19: 115527 | T19: HOME-X Spring SET L=735, 2125_2250 (-- / 3,4 / 3,8)
A20: 115528 | B20: 78 | C20: 0.7540017472 | D20: 2001 | E20: 2250 | F20: 1 | G20: 87.1970262 | H20: =IF(AND(F20=1,G20<=KG_MAX),MAX($H19:H19)+1,0) -> 0 | K20: Max waarde is RESULT_ID. Als KG>130 dan geen veer | S20: 115527 | T20: HOME-X Spring SET L=735, 2125_2250 (-- / 3,4 / 3,8)
A21: 115529 | B21: 85 | C21: 0.865044901 | D21: 2001 | E21: 2250 | F21: 1 | G21: 99.54468123 | H21: =IF(AND(F21=1,G21<=KG_MAX),MAX($H20:H20)+1,0) -> 0 | S21: 115528 | T21: HOME-X Spring SET L=735, 2125_2250 (-- / 3,2 / 4,3)
A22: 115530 | B22: 99 | C22: 0.9879410346 | D22: 2001 | E22: 2250 | F22: 1 | G22: 113.8987332 | H22: =IF(AND(F22=1,G22<=KG_MAX),MAX($H21:H21)+1,0) -> 0 | S22: 115529 | T22: HOME-X Spring SET L=735, 2125_2250 (-- / 3,4 / 4,3)
A23: 115531 | B23: 108 | C23: 1.127146678 | D23: 2001 | E23: 2250 | F23: 1 | G23: 129.4027051 | H23: =IF(AND(F23=1,G23<=KG_MAX),MAX($H22:H22)+1,0) -> 0 | S23: 115530 | T23: HOME-X Spring SET L=735, 2125_2250 (2,1 / 3,4 / 4,3)
A24: 115541 | B24: 41 | C24: 0.322236745 | D24: 2251 | E24: 2500 | F24: 0 | G24: 38.10915936 | H24: =IF(AND(F24=1,G24<=KG_MAX),MAX($H23:H23)+1,0) -> 0 | S24: 115531 | T24: HOME-X Spring SET L=735, 2125_2250 (2,0 / 3,4 / 4,5)
A25: 115542 | B25: 45 | C25: 0.3675614925 | D25: 2251 | E25: 2500 | F25: 0 | G25: 43.27494313 | H25: =IF(AND(F25=1,G25<=KG_MAX),MAX($H24:H24)+1,0) -> 0 | S25: 115541 | T25: HOME-X Spring SET L=820, 2375_2500 (1,9 / 3,2 / --)
A26: 115543 | B26: 48 | C26: 0.4216030437 | D26: 2251 | E26: 2500 | F26: 0 | G26: 49.23942191 | H26: =IF(AND(F26=1,G26<=KG_MAX),MAX($H25:H25)+1,0) -> 0 | N26: KabelX | S26: 115542 | T26: HOME-X Spring SET L=820, 2375_2500 (2,1 / 3,2 / --)
A27: 115544 | B27: 52 | C27: 0.4669277912 | D27: 2251 | E27: 2500 | F27: 0 | G27: 54.40520568 | H27: =IF(AND(F27=1,G27<=KG_MAX),MAX($H26:H26)+1,0) -> 0 | N27: =VLOOKUP(1,M28:P37,4,0) -> 115211-2125 | P27: Cable SET | S27: 115543 | T27: HOME-X Spring SET L=820, 2375_2500 (1,9 / 3,4 / --)
A28: 115545 | B28: 62 | C28: 0.4854075688 | D28: 2251 | E28: 2500 | F28: 0 | G28: 57.43276709 | H28: =IF(AND(F28=1,G28<=KG_MAX),MAX($H27:H27)+1,0) -> 0 | M28: =IF(AND(DH-IF(VOETJE=TRUE,8,0)>=N28,DH-IF(VOETJE=TRUE,8,0)<=O28),1,0) -> 0 | N28: =O28-124 -> 1751 | O28: 1875 | P28: 115211-1875 | S28: 115544 | T28: HOME-X Spring SET L=820, 2375_2500 (2,1 / 3,4 / --)
A29: 115546 | B29: 69 | C29: 0.5554344022 | D29: 2251 | E29: 2500 | F29: 0 | G29: 65.5041885 | H29: =IF(AND(F29=1,G29<=KG_MAX),MAX($H28:H28)+1,0) -> 0 | M29: =IF(AND(DH-IF(VOETJE=TRUE,8,0)>=N29,DH-IF(VOETJE=TRUE,8,0)<=O29),1,0) -> 0 | N29: 1876 | O29: 2000 | P29: 115211-2000 | S29: 115545 | T29: HOME-X Spring SET L=820, 2375_2500 (-- / 3,2 / 3,8)
A30: 115547 | B30: 69 | C30: 0.5847738676 | D30: 2251 | E30: 2500 | F30: 0 | G30: 68.56302964 | H30: =IF(AND(F30=1,G30<=KG_MAX),MAX($H29:H29)+1,0) -> 0 | M30: 1 | N30: 2001 | O30: 2125 | P30: 115211-2125 | S30: 115546 | T30: HOME-X Spring SET L=820, 2375_2500 (-- / 3,2 / 4,0)
A31: 115548 | B31: 78 | C31: 0.6690831851 | D31: 2251 | E31: 2500 | F31: 0 | G31: 78.34368179 | H31: =IF(AND(F31=1,G31<=KG_MAX),MAX($H30:H30)+1,0) -> 0 | M31: 0 | N31: 2126 | O31: 2250 | P31: 115211-2250 | S31: 115547 | T31: HOME-X Spring SET L=820, 2375_2500 (-- / 3,4 / 3,8)
A32: 115549 | B32: 85 | C32: 0.7684494838 | D32: 2251 | E32: 2500 | F32: 0 | G32: 89.47394435 | H32: =IF(AND(F32=1,G32<=KG_MAX),MAX($H31:H31)+1,0) -> 0 | M32: 0 | N32: 2251 | O32: 2375 | P32: 115211-2375 | S32: 115548 | T32: HOME-X Spring SET L=820, 2375_2500 (-- / 3,2 / 4,3)
A33: 115550 | B33: 99 | C33: 0.8779089735 | D33: 2251 | E33: 2500 | F33: 0 | G33: 102.4271337 | H33: =IF(AND(F33=1,G33<=KG_MAX),MAX($H32:H32)+1,0) -> 0 | M33: 0 | N33: 2376 | O33: 2500 | P33: 115211-2500 | S33: 115549 | T33: HOME-X Spring SET L=820, 2375_2500 (-- / 3,4 / 4,3)
A34: 115551 | B34: 108 | C34: 1.000808923 | D34: 2251 | E34: 2500 | F34: =IF(AND((DH-IF(VOETJE=TRUE,8,0))>=D34,(DH-IF(VOETJE=TRUE,8,0))<=E34),1,0) -> 0 | G34: =(((C34*VEERWEG)+B34)*CORRECTION_FACTOR)/9.81 -> 116.2311248 | H34: =IF(AND(F34=1,G34<=KG_MAX),MAX($H33:H33)+1,0) -> 0 | M34: 0 | N34: 2501 | O34: 2625 | P34: 115211-2625 | S34: 115550 | T34: HOME-X Spring SET L=820, 2375_2500 (2,1 / 3,4 / 4,3)
A35: 115561 | B35: 43 | C35: 0.3090631642 | D35: 2501 | E35: 2750 | F35: 0 | G35: 36.95590641 | H35: =IF(AND(F35=1,G35<=KG_MAX),MAX($H34:H34)+1,0) -> 0 | M35: 0 | N35: 2626 | O35: 2750 | P35: 115211-2750 | S35: 115551 | T35: HOME-X Spring SET L=820, 2375_2500 (2,0 / 3,4 / 4,5)
A36: 115562 | B36: 45 | C36: 0.3318776519 | D36: 2501 | E36: 2750 | F36: 0 | G36: 39.55465721 | H36: =IF(AND(F36=1,G36<=KG_MAX),MAX($H35:H35)+1,0) -> 0 | M36: 0 | N36: 2751 | O36: 2875 | P36: 115211-2875 | S36: 115561 | T36: HOME-X Spring SET L=905, 2625_2750 (2,0 / 3,2 / --)
A37: 115563 | B37: 49 | C37: 0.3761613909 | D37: 2501 | E37: 2750 | F37: 0 | G37: 44.61190868 | H37: =IF(AND(F37=1,G37<=KG_MAX),MAX($H36:H36)+1,0) -> 0 | M37: 0 | N37: 2876 | O37: 3000 | P37: 115211-3000 | S37: 115562 | T37: HOME-X Spring SET L=905, 2625_2750 (2,1 / 3,2 / --)
A38: 115564 | B38: 52 | C38: 0.4209143538 | D38: 2501 | E38: 2750 | F38: 0 | G38: 49.60798822 | H38: =IF(AND(F38=1,G38<=KG_MAX),MAX($H37:H37)+1,0) -> 0 | S38: 115563 | T38: HOME-X Spring SET L=905, 2625_2750 (2,3 / 3,2 / --)
A39: 115565 | B39: 56 | C39: 0.4651980928 | D39: 2501 | E39: 2750 | F39: 0 | G39: 54.66523969 | H39: =IF(AND(F39=1,G39<=KG_MAX),MAX($H38:H38)+1,0) -> 0 | S39: 115564 | T39: HOME-X Spring SET L=905, 2625_2750 (2,1 / 3,4 / --)
A40: 115566 | B40: 69 | C40: 0.5255469787 | D40: 2501 | E40: 2750 | F40: 0 | G40: 62.38821895 | H40: =IF(AND(F40=1,G40<=KG_MAX),MAX($H39:H39)+1,0) -> 0 | S40: 115565 | T40: HOME-X Spring SET L=905, 2625_2750 (2,3 / 3,4 / --)
A41: 115567 | B41: 78 | C41: 0.6022256788 | D41: 2501 | E41: 2750 | F41: 0 | G41: 71.37332674 | H41: =IF(AND(F41=1,G41<=KG_MAX),MAX($H40:H40)+1,0) -> 0 | S41: 115566 | T41: HOME-X Spring SET L=905, 2625_2750 (-- / 3,4 / 3,8)
A42: 115568 | B42: 85 | C42: 0.6912623808 | D42: 2501 | E42: 2750 | F42: 0 | G42: 81.42665775 | H42: =IF(AND(F42=1,G42<=KG_MAX),MAX($H41:H41)+1,0) -> 0 | S42: 115567 | T42: HOME-X Spring SET L=905, 2625_2750 (-- / 3,2 / 4,3)
A43: 115569 | B43: 99 | C43: 0.7901715582 | D43: 2501 | E43: 2750 | F43: 0 | G43: 93.27990447 | H43: =IF(AND(F43=1,G43<=KG_MAX),MAX($H42:H42)+1,0) -> 0 | S43: 115568 | T43: HOME-X Spring SET L=905, 2625_2750 (-- / 3,4 / 4,3)
A44: 115570 | B44: 108 | C44: 0.9001183104 | D44: 2501 | E44: 2750 | F44: 0 | G44: 105.7334356 | H44: =IF(AND(F44=1,G44<=KG_MAX),MAX($H43:H43)+1,0) -> 0 | S44: 115569 | T44: HOME-X Spring SET L=905, 2625_2750 (2,1 / 3,4 / 4,3)
A45: 115581 | B45: 43 | C45: 0.280837053 | D45: 2751 | E45: 3000 | F45: 0 | G45: 34.01314009 | H45: =IF(AND(F45=1,G45<=KG_MAX),MAX($H44:H44)+1,0) -> 0 | S45: 115570 | T45: HOME-X Spring SET L=905, 2625_2750 (2,0 / 3,4 / 4,5)
A46: 115582 | B46: 45 | C46: 0.3015894382 | D46: 2751 | E46: 3000 | F46: 0 | G46: 36.39690253 | H46: =IF(AND(F46=1,G46<=KG_MAX),MAX($H45:H45)+1,0) -> 0 | S46: 115581 | T46: HOME-X Spring SET L=990, 2875_3000 (2,0 / 3,2 / --)
A47: 115583 | B47: 49 | C47: 0.3419932498 | D47: 2751 | E47: 3000 | F47: 0 | G47: 41.04964487 | H47: =IF(AND(F47=1,G47<=KG_MAX),MAX($H46:H46)+1,0) -> 0 | S47: 115582 | T47: HOME-X Spring SET L=990, 2875_3000 (2,1 / 3,2 / --)
A48: 115584 | B48: 52 | C48: 0.382959365 | D48: 2751 | E48: 3000 | F48: 0 | G48: 45.65091949 | H48: =IF(AND(F48=1,G48<=KG_MAX),MAX($H47:H47)+1,0) -> 0 | S48: 115583 | T48: HOME-X Spring SET L=990, 2875_3000 (2,3 / 3,2 / --)
A49: 115585 | B49: 56 | C49: 0.4233631767 | D49: 2751 | E49: 3000 | F49: 0 | G49: 50.30366184 | H49: =IF(AND(F49=1,G49<=KG_MAX),MAX($H48:H48)+1,0) -> 0 | S49: 115584 | T49: HOME-X Spring SET L=990, 2875_3000 (2,1 / 3,4 / --)
A50: 115586 | B50: 69 | C50: 0.4779813394 | D50: 2751 | E50: 3000 | F50: 0 | G50: 57.42917377 | H50: =IF(AND(F50=1,G50<=KG_MAX),MAX($H49:H49)+1,0) -> 0 | S50: 115585 | T50: HOME-X Spring SET L=990, 2875_3000 (2,3 / 3,4 / --)
A51: 115587 | B51: 78 | C51: 0.5467976928 | D51: 2751 | E51: 3000 | F51: 0 | G51: 65.59457781 | H51: =IF(AND(F51=1,G51<=KG_MAX),MAX($H50:H50)+1,0) -> 0 | S51: 115586 | T51: HOME-X Spring SET L=990, 2875_3000 (-- / 3,4 / 3,8)
A52: 115588 | B52: 85 | C52: 0.6281676197 | D52: 2751 | E52: 3000 | F52: 0 | G52: 74.84859477 | H52: =IF(AND(F52=1,G52<=KG_MAX),MAX($H51:H51)+1,0) -> 0 | S52: 115587 | T52: HOME-X Spring SET L=990, 2875_3000 (-- / 3,2 / 4,3)
A53: 115589 | B53: 99 | C53: 0.7181836474 | D53: 2751 | E53: 3000 | F53: 0 | G53: 85.77466944 | H53: =IF(AND(F53=1,G53<=KG_MAX),MAX($H52:H52)+1,0) -> 0 | S53: 115588 | T53: HOME-X Spring SET L=990, 2875_3000 (-- / 3,4 / 4,3)
A54: 115590 | B54: 108 | C54: 0.8176968853 | D54: 2751 | E54: 3000 | F54: 0 | G54: 97.14043491 | H54: =IF(AND(F54=1,G54<=KG_MAX),MAX($H53:H53)+1,0) -> 0 | S54: 115589 | T54: HOME-X Spring SET L=990, 2875_3000 (2,1 / 3,4 / 4,3)
S55: 115590 | T55: HOME-X Spring SET L=990, 2875_3000 (2,0 / 3,4 / 4,5)

Sheet SpringCalculation (hidden)
B2: DH | C2: =DH -> 2125 | D2: mm | F2: Cable | G2: 3 | H2: mm | J2: DRUM | K2: HMA | L2: LMA | M2: REV_S | O2: Di | P2: inactive | Q2: art nb | S2: RESULTS | T2: ITEM | U2: QTY | V2: RST | W2: ELT | X2: MIN DW | Y2: ZAGEN | Z2: MASS
J3: M76 | K3: =1.5*25.4 -> 38.1 | L3: =1.5*25.4 -> 38.1 | M3: 0 | O3: 50.8 | P3: 8 | Q3: 329 | S3: 1 | T3: =_xlfn.IFNA(INDEX(SC_TABLE,MATCH($S3,$W$26:$W$156,0),MATCH(T$2,$B$25:$V$25,0)),NOSP) -> 3295004482 | U3: =_xlfn.IFNA(INDEX(SC_TABLE,MATCH($S3,$W$26:$W$156,0),MATCH(U$2,$B$25:$V$25,0)),0) -> 2 | V3: 7.413676822 | W3: =_xlfn.IFNA(INDEX(SC_TABLE,MATCH($S3,$W$26:$W$156,0),MATCH(W$2,$B$25:$V$25,0)),"") -> 10833 | X3: =_xlfn.IFNA(INDEX(SC_TABLE,MATCH($S3,$W$26:$W$156,0),MATCH(X$2,$B$25:$V$25,0)),0) -> 1344.136768 | Y3: Ex_Center | Z3: 4.787924969 | AA3: 0 | AB3: 0 | AC3: 0
B4: DW | C4: =DW -> 2500 | D4: mm | F4: Drum | G4: M102 | H4: [-] | J4: M102 | K4: =2.1875*25.4 -> 55.5625 | L4: =2*25.4 -> 50.8 | M4: 0.75 | O4: 66.675 | P4: 7 | Q4: 339 | S4: 2 | T4: =_xlfn.IFNA(INDEX(SC_TABLE,MATCH($S4,$W$26:$W$156,0),MATCH(T$2,$B$25:$V$25,0)),"") -> 3295305512 | U4: 2 | V4: 7.33186094 | W4: 18333 | X4: 1553.717726 | Y4: Ex_Center | Z4: 6.285387986 | AA4: 0 | AB4: 0 | AC4: 0
F5: HMA | G5: =INDEX($K$3:$M$4,MATCH($G$4,$J$3:$J$4,0),MATCH($F5,$K$2:$M$2,0))+($G$2/2) -> 57.0625 | H5: mm | S5: 3 | T5: 3295306002 | U5: 2 | V5: 7.452901591 | W5: 26667 | X5: 1653.000757 | Y5: Ex_Center | Z5: 6.849771368 | AA5: 0 | AB5: 0 | AC5: 0
B6: Weight | C6: =KG -> 75 | D6: KG | F6: LMA | G6: =INDEX($K$3:$M$4,MATCH($G$4,$J$3:$J$4,0),MATCH($F6,$K$2:$M$2,0))+($G$2/2) -> 52.3 | H6: mm | O6: draad | P6: Rm | S6: 4 | T6: 3295506982 | U6: 2 | V6: 7.424447126 | W6: 41500 | X6: 1851.668918 | Y6: Ex_Center | Z6: 8.306733329 | AA6: 0 | AB6: 0 | AC6: 0
F7: REV_S | G7: =INDEX($K$3:$M$4,MATCH($G$4,$J$3:$J$4,0),MATCH($F7,$K$2:$M$2,0)) -> 0.75 | H7: rev | O7: 5 | P7: 1660 | S7: 5 | T7: 3396008112 | U7: 2 | V7: 7.401722256 | W7: 93750 | X7: 2084.820667 | Y7: Center | Z7: 13.59789169 | AA7: 0 | AB7: 0 | AC7: 0
B8: Lifetime | C8: =O15/1.5 -> 10000 | D8: cycles | F8: CCSP | G8: =PI()*(G6+G5)*G7 -> 257.6793199 | H8: mm | J8: SBD-DW | K8: 87 | L8: mm | O8: 5.3 | P8: 1640 | S8: 6 | U8: 0 | V8: 0 | X8: 0 | Y8: 0 | Z8: 0 | AA8: 0 | AB8: 0 | AC8: 0
F9: CIRF | G9: =PI()*G6*2 -> 328.6105916 | H9: mm | J9: Veerkop | K9: 50 | L9: mm/veer | O9: 5.5 | P9: 1630 | S9: 7 | U9: 0 | V9: 0 | X9: 0 | Y9: 0 | Z9: 0 | AA9: 0 | AB9: 0 | AC9: 0
B10: ODW | C10: =(303/SC_DH)*SC_W -> 10.69411765 | D10: KG | J10: 4veren beugel | K10: 116 | L10: mm | O10: 6 | P10: 1590 | S10: 8 | U10: 0 | V10: 0 | X10: 0 | Y10: 0 | Z10: 0 | AA10: 0 | AB10: 0 | AC10: 0
B11: HMT | C11: =SC_W*9.81*G5 -> 41983.73438 | D11: Nmm | F11: DH_not_active | G11: 113 | H11: mm | J11: extra ruimte | K11: 50 | L11: mm/veer | O11: 6.5 | P11: 1560 | S11: 9 | U11: 0 | V11: 0 | X11: 0 | Y11: 0 | Z11: 0 | AA11: 0 | AB11: 0 | AC11: 0
B12: LMT | C12: =C10*9.81*G6 -> 5486.756082 | D12: Nmm | O12: 7 | P12: 1540 | S12: 10 | U12: 0 | V12: 0 | X12: 0 | Y12: 0 | Z12: 0 | AA12: 0 | AB12: 0 | AC12: 0
F13: SBD torque | G13: =21*46.7 -> 980.7 | H13: Nmm | J13: No cut | K13: 0 | L13: mm | O13: 7.5 | P13: 1510 | S13: 11 | U13: 0 | V13: 0 | X13: =_xlfn.IFNA(INDEX(SC_TABLE,MATCH($S13,$W$26:$W$156,0),MATCH(X$2,$B$25:$V$25,0)),0) -> 0 | Y13: 0 | Z13: 0 | AA13: 0 | AB13: 0 | AC13: 0
F14: tol. + | G14: 0.75 | H14: turns | J14: Center | K14: 150 | L14: mm | S14: 12 | U14: 0 | V14: 0 | X14: 0 | Y14: 0 | Z14: 0 | AA14: 0 | AB14: 0 | AC14: 0
B15: RDT | C15: =((SC_DH-G8-G11)/G9)+G7 -> 6.088600535 | D15: turns | F15: tol. - | G15: 0 | H15: turns | J15: Ex_Center | K15: 490 | L15: mm | N15: Min. lifetime Step 1 | O15: =Lifetime -> 15000 | P15: if > … | S15: 13 | U15: 0 | V15: 0 | X15: 0 | Y15: 0 | Z15: 0 | AA15: 0 | AB15: 0 | AC15: 0
N16: Min. lifetime Step 2 | O16: =O15/1.2 -> 12500 | P16: elseif > … else > "C8" | S16: 14 | U16: 0 | V16: 0 | X16: 0 | Y16: 0 | Z16: 0 | AA16: 0 | AB16: 0 | AC16: 0
B17: Results | C17: =MAX(W26:W156) -> 5 | F17: No Cut DW | G17: 3000 | N17: SELECTED RESULT: | O17: =IF(MAX(W3:W22)>=O15,INDEX(T3:T22,MIN(IF(W3:W22>=O15,ROW(W3:W22)-2,""))),IF(MAX(W3:W22)>=O16,INDEX(T3:T22,MIN(IF(W3:W22>=O16,ROW(W3:W22)-2,""))),T3)) -> 3295305512 | S17: 15 | U17: 0 | V17: 0 | X17: 0 | Y17: 0 | Z17: 0 | AA17: 0 | AB17: 0 | AC17: 0
I18: 215 | N18: SELECTED QTY: | O18: =VLOOKUP(SC_RESULT_ITEM,$T$3:$AA$22,2,0) -> 2 | S18: 16 | U18: 0 | V18: 0 | X18: 0 | Y18: 0 | Z18: 0 | AA18: 0 | AB18: 0 | AC18: 0
B19: Density | C19: 10.5 | D19: KG/m² | H19: No cut | I19: ="L = "&DW+I18 -> L = 2715 | N19: SELECTED RST: | O19: =IFERROR(ROUND(VLOOKUP(SC_RESULT_ITEM,$T$3:$AA$22,3,0),1),"") -> 7.3 | S19: 17 | U19: 0 | V19: 0 | X19: 0 | Y19: 0 | Z19: 0 | AA19: 0 | AB19: 0 | AC19: 0
B20: Additional | C20: 5.5 | D20: KG | H20: Center | I20: ="L = "&ROUND((DW+I18)/2,0)&";L = "&ROUND((DW+I18)/2,0) -> L = 1358;L = 1358 | N20: SELECTED ELT: | O20: =VLOOKUP(SC_RESULT_ITEM,$T$3:$AA$22,4,0) -> 18333 | S20: 18 | U20: 0 | V20: 0 | X20: 0 | Y20: 0 | Z20: 0 | AA20: 0 | AB20: 0 | AC20: 0
B21: endcap | C21: =2*0.768 -> 1.536 | D21: KG/mtr | H21: Ex_Center | I21: ="L = "&ROUND((DW+I18)/2,0)-200&";L = "&ROUND((DW+I18)/2,0)+200 -> L = 1158;L = 1558 | N21: SELECTED min DW: | O21: =IFERROR(ROUND(VLOOKUP(SC_RESULT_ITEM,$T$3:$AA$22,5,0),0),"") -> 1554 | S21: 19 | U21: 0 | V21: 0 | X21: 0 | Y21: 0 | Z21: 0 | AA21: 0 | AB21: 0 | AC21: 0
B22: alu/seal | C22: 1 | D22: KG/mtr | I22: =VLOOKUP(SC_RESULT_BUILD,H19:I21,2,0) -> L = 2715 | N22: SELECTED BUILD: | O22: =IF(DW>SC_NOCUTDW,VLOOKUP(SC_RESULT_ITEM,$T$3:$AA$22,6,0),"No cut") -> No cut | S22: 20 | U22: 0 | V22: 0 | X22: 0 | Y22: 0 | Z22: 0 | AA22: 0 | AB22: 0 | AC22: 0
C23: =(((SC_DH+20)*(SC_DW+20)*$C$19)/1000000)+$C$20+(SC_DH*$C$21/1000)+((SC_DW+20)*$C$22/1000) -> 68.0407 | N23: SELECTED MASS: | O23: =IFERROR(ROUND(VLOOKUP(SC_RESULT_ITEM,$T$3:$AA$22,7,0),3),"") -> 6.285
B25: USE M102 | C25: ITEM | D25: D | E25: d | F25: L | G25: nw | H25: nw,act | I25: MF | J25: MB | K25: TPST | L25: MASS | M25: QTY | N25: PRE-TURN | O25: RST | P25: KG- | Q25: KG+ | S25: ELT | T25: MIN DW | U25: RUIMTE | V25: ZAGEN
B26: X | C26: 3295004482 | D26: =INDEX($O$3:$O$4,MATCH(VALUE(LEFT(C26,3)),$Q$3:$Q$4,0)) -> 50.8 | E26: =VALUE(RIGHT(LEFT(C26,5),2))/10 -> 5 | F26: =VALUE(RIGHT(LEFT(C26,9),4)) -> 448 | G26: =(F26/E26)-1 -> 88.6 | H26: =G26-VLOOKUP(D26,$O$3:$P$4,2,0) -> 80.6 | I26: =(($E26^4)*206000*PI())/(32*($D26+$E26)) -> 226523.3278 | J26: =((E26^3)*VLOOKUP(E26,$O$7:$P$13,2,0)*PI())/32 -> 20371.26486 | K26: =I26/H26 -> 2810.463124 | L26: =((PI()*((E26/2)^2))*(PI()*(D26+E26)))*G26*(7.85/1000000)*M26 -> 4.787924969 | M26: 2 | N26: =((SC_LMT/M26)+SC_SBD)/K26 -> 1.325076287 | O26: =N26+SC_RDT -> 7.413676822 | P26: =((((O26+SC_TOL_MIN)*K26)-SC_SBD)*M26)/(SC_HMA*9.81) -> 70.93877767 | Q26: =((((O26+SC_TOL_PLUS)*K26)-SC_SBD)*M26)/(SC_HMA*9.81) -> 78.46972046 | R26: =IF(AND(SC_W>=P26,SC_W<=Q26),1,0) -> 1 | S26: =_xlfn.IFNA(VLOOKUP(ROUND(VLOOKUP(ROUND(1-(SC_RDT/O26),2),SC_LT_TABLE,2,0)-(($I26*O26)/($H26*J26)),2),SC_LT_TABLE,3,0),0) -> 10833 | T26: =((F26+(O26*E26)+$K$9+$K$8+$K$11)*M26)+IF(M26=4,$K$10,0) -> 1344.136768 | U26: =SC_DW-T26 -> 1155.863232 | V26: =IF(U26>=$K$15,$J$15,IF(U26>=$K$14,$J$14,IF(AND(U26>=$K$13,M26=4),$J$14,IF(U26>=$K$13,$J$13,0)))) -> Ex_Center | W26: =IF(AND(R26=1,S26>=SC_LT,V26<>0,OR(IF(AND($G$4=$J$4,B26="X"),TRUE,FALSE),IF(AND($G$4=$J$3,A26="X",D26<>$O$4),TRUE,FALSE))),MAX($W$25:W25)+1,0) -> 1
B27: X | C27: 3295004902 | D27: 50.8 | E27: 5 | F27: 490 | G27: 97 | H27: 89 | I27: 226523.3278 | J27: 20371.26486 | K27: 2545.205931 | L27: 5.241859164 | M27: 2 | N27: 1.463173567 | O27: 7.551774103 | P27: 65.1685248 | Q27: 71.98868198 | R27: 0 | S27: 16667 | T27: 1429.517741 | U27: 1070.482259 | V27: =IF(U27>=$K$15,$J$15,IF(U27>=$K$14,$J$14,IF(AND(U27>=$K$13,M27=4),$J$14,IF(U27>=$K$13,$J$13,0)))) -> Ex_Center | W27: =IF(AND(R27=1,S27>=SC_LT,V27<>0,OR(IF(AND($G$4=$J$4,B27="X"),TRUE,FALSE),IF(AND($G$4=$J$3,A27="X",D27<>$O$4),TRUE,FALSE))),MAX($W$25:W26)+1,0) -> 0
B28: X | C28: 3295005332 | D28: 50.8 | E28: 5 | F28: 533 | G28: 105.6 | H28: 97.6 | I28: 226523.3278 | J28: 20371.26486 | K28: 2320.935736 | L28: 5.706601317 | M28: 2 | N28: 1.604558878 | O28: 7.693159414 | P28: 60.2898796 | Q28: 66.5090803 | R28: 0 | S28: 23750 | T28: 1516.931594 | U28: 983.0684059 | V28: Ex_Center | W28: =IF(AND(R28=1,S28>=SC_LT,V28<>0,OR(IF(AND($G$4=$J$4,B28="X"),TRUE,FALSE),IF(AND($G$4=$J$3,A28="X",D28<>$O$4),TRUE,FALSE))),MAX($W$25:W27)+1,0) -> 0
B29: X | C29: 3295005762 | D29: 50.8 | E29: 5 | F29: 576 | G29: 114.2 | H29: 106.2 | I29: 226523.3278 | J29: 20371.26486 | K29: 2132.988021 | L29: 6.17134347 | M29: 2 | N29: 1.745944189 | O29: 7.834544725 | P29: 56.2013728 | Q29: 61.91694708 | R29: 0 | S29: 35000 | T29: 1604.345447 | U29: 895.6545528 | V29: Ex_Center | W29: =IF(AND(R29=1,S29>=SC_LT,V29<>0,OR(IF(AND($G$4=$J$4,B29="X"),TRUE,FALSE),IF(AND($G$4=$J$3,A29="X",D29<>$O$4),TRUE,FALSE))),MAX($W$25:W28)+1,0) -> 0
B30: X | C30: 3295006192 | D30: 50.8 | E30: 5 | F30: 619 | G30: 122.8 | H30: 114.8 | I30: 226523.3278 | J30: 20371.26486 | K30: 1973.19972 | L30: 6.636085622 | M30: 2 | N30: 1.8873295 | O30: 7.975930036 | P30: 52.72542973 | Q30: 58.01283381 | R30: 0 | S30: 56250 | T30: 1691.7593 | U30: 808.2406996 | V30: Ex_Center | W30: =IF(AND(R30=1,S30>=SC_LT,V30<>0,OR(IF(AND($G$4=$J$4,B30="X"),TRUE,FALSE),IF(AND($G$4=$J$3,A30="X",D30<>$O$4),TRUE,FALSE))),MAX($W$25:W29)+1,0) -> 0
B31: X | C31: 3295006632 | D31: 50.8 | E31: 5 | F31: 663 | G31: 131.6 | H31: 123.6 | I31: 226523.3278 | J31: 20371.26486 | K31: 1832.713008 | L31: 7.111635732 | M31: 2 | N31: 2.032002842 | O31: 8.120603377 | P31: 49.66936238 | Q31: 54.58031698 | R31: 0 | S31: 71875 | T31: 1781.206034 | U31: 718.7939662 | V31: Ex_Center | W31: =IF(AND(R31=1,S31>=SC_LT,V31<>0,OR(IF(AND($G$4=$J$4,B31="X"),TRUE,FALSE),IF(AND($G$4=$J$3,A31="X",D31<>$O$4),TRUE,FALSE))),MAX($W$25:W30)+1,0) -> 0
B32: X | C32: 3295305032 | D32: 50.8 | E32: 5.3 | F32: 503 | G32: 93.90566038 | H32: 85.90566038 | I32: 284451.1749 | J32: 23970.18309 | K32: 3311.2041 | L32: 5.732522633 | M32: 2 | N32: 1.12468997 | O32: 7.213290506 | P32: 81.83160969 | Q32: 90.70434259 | R32: 0 | S32: 12500 | T32: 1456.460879 | U32: 1043.539121 | V32: Ex_Center | W32: =IF(AND(R32=1,S32>=SC_LT,V32<>0,OR(IF(AND($G$4=$J$4,B32="X"),TRUE,FALSE),IF(AND($G$4=$J$3,A32="X",D32<>$O$4),TRUE,FALSE))),MAX($W$25:W31)+1,0) -> 0
B33: X | C33: 3295305512 | D33: 50.8 | E33: 5.3 | F33: 551 | G33: 102.9622642 | H33: 94.96226415 | I33: 284451.1749 | J33: 23970.18309 | K33: 2995.41273 | L33: 6.285387986 | M33: 2 | N33: 1.243260404 | O33: 7.33186094 | P33: 74.96206532 | Q33: 82.98860077 | R33: 1 | S33: 18333 | T33: 1553.717726 | U33: 946.282274 | V33: Ex_Center | W33: =IF(AND(R33=1,S33>=SC_LT,V33<>0,OR(IF(AND($G$4=$J$4,B33="X"),TRUE,FALSE),IF(AND($G$4=$J$3,A33="X",D33<>$O$4),TRUE,FALSE))),MAX($W$25:W32)+1,0) -> 2
B34: X | C34: 3295306002 | D34: 50.8 | E34: 5.3 | F34: 600 | G34: 112.2075472 | H34: 104.2075472 | I34: 284451.1749 | J34: 23970.18309 | K34: 2729.660016 | L34: 6.849771368 | M34: 2 | N34: 1.364301056 | O34: 7.452901591 | P34: 69.18103319 | Q34: 76.49545523 | R34: 1 | S34: 26667 | T34: 1653.000757 | U34: 846.9992431 | V34: Ex_Center | W34: =IF(AND(R34=1,S34>=SC_LT,V34<>0,OR(IF(AND($G$4=$J$4,B34="X"),TRUE,FALSE),IF(AND($G$4=$J$3,A34="X",D34<>$O$4),TRUE,FALSE))),MAX($W$25:W33)+1,0) -> 3
B35: X | C35: 3295306492 | D35: 50.8 | E35: 5.3 | F35: 649 | G35: 121.4528302 | H35: 113.4528302 | I35: 284451.1749 | J35: 23970.18309 | K35: 2507.219735 | L35: 7.414154749 | M35: 2 | N35: 1.485341707 | O35: 7.573942242 | P35: 64.3421949 | Q35: 71.06056391 | R35: 0 | S35: 41500 | T35: 1752.283788 | U35: 747.7162122 | V35: Ex_Center | W35: =IF(AND(R35=1,S35>=SC_LT,V35<>0,OR(IF(AND($G$4=$J$4,B35="X"),TRUE,FALSE),IF(AND($G$4=$J$3,A35="X",D35<>$O$4),TRUE,FALSE))),MAX($W$25:W34)+1,0) -> 0
B36: X | C36: 3295306972 | D36: 50.8 | E36: 5.3 | F36: 697 | G36: 130.509434 | H36: 122.509434 | I36: 284451.1749 | J36: 23970.18309 | K36: 2321.871595 | L36: 7.967020103 | M36: 2 | N36: 1.603912141 | O36: 7.692512676 | P36: 60.31023775 | Q36: 66.53194619 | R36: 0 | S36: 56250 | T36: 1849.540634 | U36: 650.4593656 | V36: Ex_Center | W36: =IF(AND(R36=1,S36>=SC_LT,V36<>0,OR(IF(AND($G$4=$J$4,B36="X"),TRUE,FALSE),IF(AND($G$4=$J$3,A36="X",D36<>$O$4),TRUE,FALSE))),MAX($W$25:W35)+1,0) -> 0
B37: X | C37: 3295307462 | D37: 50.8 | E37: 5.3 | F37: 746 | G37: 139.754717 | H37: 131.754717 | I37: 284451.1749 | J37: 23970.18309 | K37: 2158.944905 | L37: 8.531403484 | M37: 2 | N37: 1.724952792 | O37: 7.813553328 | P37: 56.76602396 | Q37: 62.55115254 | R37: 0 | S37: 75000 | T37: 1948.823665 | U37: 551.1763347 | V37: Ex_Center | W37: =IF(AND(R37=1,S37>=SC_LT,V37<>0,OR(IF(AND($G$4=$J$4,B37="X"),TRUE,FALSE),IF(AND($G$4=$J$3,A37="X",D37<>$O$4),TRUE,FALSE))),MAX($W$25:W36)+1,0) -> 0
B38: X | C38: 3295307952 | D38: 50.8 | E38: 5.3 | F38: 795 | G38: 149 | H38: 141 | I38: 284451.1749 | J38: 23970.18309 | K38: 2017.384219 | L38: 9.095786866 | M38: 2 | N38: 1.845993443 | O38: 7.934593979 | P38: 53.68659399 | Q38: 59.09239526 | R38: 0 | S38: 84375 | T38: 2048.106696 | U38: 451.8933038 | V38: Center | W38: =IF(AND(R38=1,S38>=SC_LT,V38<>0,OR(IF(AND($G$4=$J$4,B38="X"),TRUE,FALSE),IF(AND($G$4=$J$3,A38="X",D38<>$O$4),TRUE,FALSE))),MAX($W$25:W37)+1,0) -> 0
C39: 3295308442 | D39: 50.8 | E39: 5.3 | F39: 844 | G39: 158.245283 | H39: 150.245283 | I39: 284451.1749 | J39: 23970.18309 | K39: 1893.245293 | L39: 9.660170248 | M39: 2 | N39: 1.967034095 | O39: 8.05563463 | P39: 50.98614699 | Q39: 56.05930445 | R39: 0 | S39: 96875 | T39: 2147.389727 | U39: 352.6102729 | V39: Center | W39: =IF(AND(R39=1,S39>=SC_LT,V39<>0,OR(IF(AND($G$4=$J$4,B39="X"),TRUE,FALSE),IF(AND($G$4=$J$3,A39="X",D39<>$O$4),TRUE,FALSE))),MAX($W$25:W38)+1,0) -> 0
B40: X | C40: 3295505412 | D40: 50.8 | E40: 5.5 | F40: 541 | G40: 97.36363636 | H40: 89.36363636 | I40: 328707.3975 | J40: 26624.13871 | K40: 3678.312688 | L40: 6.423473932 | M40: 2 | N40: 1.012441942 | O40: 7.101042477 | P40: 89.81747937 | Q40: 99.67391982 | R40: 0 | S40: 13750 | T40: 1534.111467 | U40: 965.8885327 | V40: Ex_Center | W40: =IF(AND(R40=1,S40>=SC_LT,V40<>0,OR(IF(AND($G$4=$J$4,B40="X"),TRUE,FALSE),IF(AND($G$4=$J$3,A40="X",D40<>$O$4),TRUE,FALSE))),MAX($W$25:W39)+1,0) -> 0
B41: X | C41: 3295505932 | D41: 50.8 | E41: 5.5 | F41: 593 | G41: 106.8181818 | H41: 98.81818182 | I41: 328707.3975 | J41: 26624.13871 | K41: 3326.385807 | L41: 7.047228637 | M41: 2 | N41: 1.119556858 | O41: 7.208157393 | P41: 82.16186383 | Q41: 91.07527777 | R41: 0 | S41: 20000 | T41: 1639.289731 | U41: 860.7102687 | V41: Ex_Center | W41: =IF(AND(R41=1,S41>=SC_LT,V41<>0,OR(IF(AND($G$4=$J$4,B41="X"),TRUE,FALSE),IF(AND($G$4=$J$3,A41="X",D41<>$O$4),TRUE,FALSE))),MAX($W$25:W40)+1,0) -> 0
B42: X | C42: 3295506462 | D42: 50.8 | E42: 5.5 | F42: 646 | G42: 116.4545455 | H42: 108.4545455 | I42: 328707.3975 | J42: 26624.13871 | K42: 3030.830991 | L42: 7.682978624 | M42: 2 | N42: 1.228731675 | O42: 7.317332211 | P42: 75.73253386 | Q42: 83.85397641 | R42: 0 | S42: 30000 | T42: 1746.490654 | U42: 753.5093457 | V42: Ex_Center | W42: =IF(AND(R42=1,S42>=SC_LT,V42<>0,OR(IF(AND($G$4=$J$4,B42="X"),TRUE,FALSE),IF(AND($G$4=$J$3,A42="X",D42<>$O$4),TRUE,FALSE))),MAX($W$25:W41)+1,0) -> 0
B43: X | C43: 3295506982 | D43: 50.8 | E43: 5.5 | F43: 698 | G43: 125.9090909 | H43: 117.9090909 | I43: 328707.3975 | J43: 26624.13871 | K43: 2787.803679 | L43: 8.306733329 | M43: 2 | N43: 1.335846591 | O43: 7.424447126 | P43: 70.4458571 | Q43: 77.91608143 | R43: 1 | S43: 41500 | T43: 1851.668918 | U43: 648.3310816 | V43: Ex_Center | W43: =IF(AND(R43=1,S43>=SC_LT,V43<>0,OR(IF(AND($G$4=$J$4,B43="X"),TRUE,FALSE),IF(AND($G$4=$J$3,A43="X",D43<>$O$4),TRUE,FALSE))),MAX($W$25:W42)+1,0) -> 4
B44: X | C44: 3295507512 | D44: 50.8 | E44: 5.5 | F44: 751 | G44: 135.5454545 | H44: 127.5454545 | I44: 328707.3975 | J44: 26624.13871 | K44: 2577.178455 | L44: 8.942483317 | M44: 2 | N44: 1.445021409 | O44: 7.533621944 | P44: 65.86403676 | Q44: 72.7698678 | R44: 0 | S44: 59375 | T44: 1958.869841 | U44: 541.1301586 | V44: Ex_Center | W44: =IF(AND(R44=1,S44>=SC_LT,V44<>0,OR(IF(AND($G$4=$J$4,B44="X"),TRUE,FALSE),IF(AND($G$4=$J$3,A44="X",D44<>$O$4),TRUE,FALSE))),MAX($W$25:W43)+1,0) -> 0
B45: X | C45: 3295508042 | D45: 50.8 | E45: 5.5 | F45: 804 | G45: 145.1818182 | H45: 137.1818182 | I45: 328707.3975 | J45: 26624.13871 | K45: 2396.14405 | L45: 9.578233305 | M45: 2 | N45: 1.554196226 | O45: 7.642796762 | P45: 61.92591815 | Q45: 68.34664774 | R45: 0 | S45: 75000 | T45: 2066.070764 | U45: 433.9292356 | V45: Center | W45: =IF(AND(R45=1,S45>=SC_LT,V45<>0,OR(IF(AND($G$4=$J$4,B45="X"),TRUE,FALSE),IF(AND($G$4=$J$3,A45="X",D45<>$O$4),TRUE,FALSE))),MAX($W$25:W44)+1,0) -> 0
B46: X | C46: 3295508572 | D46: 50.8 | E46: 5.5 | F46: 857 | G46: 154.8181818 | H46: 146.8181818 | I46: 328707.3975 | J46: 26624.13871 | K46: 2238.873915 | L46: 10.21398329 | M46: 2 | N46: 1.663371044 | O46: 7.75197158 | P46: 58.50475381 | Q46: 64.5040609 | R46: 0 | S46: 87500 | T46: 2173.271687 | U46: 326.7283126 | V46: Center | W46: =IF(AND(R46=1,S46>=SC_LT,V46<>0,OR(IF(AND($G$4=$J$4,B46="X"),TRUE,FALSE),IF(AND($G$4=$J$3,A46="X",D46<>$O$4),TRUE,FALSE))),MAX($W$25:W45)+1,0) -> 0
B47: X | C47: 3296006482 | D47: 50.8 | E47: 6 | F47: 648 | G47: 107 | H47: 99 | I47: 461449.0759 | J47: 33717.14315 | K47: 4661.101776 | L47: 8.475669639 | M47: 2 | N47: 0.7989694754 | O47: 6.887570011 | P47: 111.1965096 | Q47: 123.6864407 | R47: 0 | S47: 15833 | T47: 1752.65084 | U47: 747.3491599 | V47: Ex_Center | W47: =IF(AND(R47=1,S47>=SC_LT,V47<>0,OR(IF(AND($G$4=$J$4,B47="X"),TRUE,FALSE),IF(AND($G$4=$J$3,A47="X",D47<>$O$4),TRUE,FALSE))),MAX($W$25:W46)+1,0) -> 0
B48: X | C48: 3296007112 | D48: 50.8 | E48: 6 | F48: 711 | G48: 117.5 | H48: 109.5 | I48: 461449.0759 | J48: 33717.14315 | K48: 4214.146812 | L48: 9.30739423 | M48: 2 | N48: 0.8837086622 | O48: 6.972309198 | P48: 101.4737076 | Q48: 112.7659741 | R48: 0 | S48: 23750 | T48: 1879.66771 | U48: 620.3322896 | V48: Ex_Center | W48: =IF(AND(R48=1,S48>=SC_LT,V48<>0,OR(IF(AND($G$4=$J$4,B48="X"),TRUE,FALSE),IF(AND($G$4=$J$3,A48="X",D48<>$O$4),TRUE,FALSE))),MAX($W$25:W47)+1,0) -> 0
B49: X | C49: 3296007752 | D49: 50.8 | E49: 6 | F49: 775 | G49: 128.1666667 | H49: 120.1666667 | I49: 461449.0759 | J49: 33717.14315 | K49: 3840.075527 | L49: 10.1523208 | M49: 2 | N49: 0.9697929155 | O49: 7.058393451 | P49: 93.33637541 | Q49: 103.626277 | R49: 0 | S49: 35000 | T49: 2008.700721 | U49: 491.2992786 | V49: Ex_Center | W49: =IF(AND(R49=1,S49>=SC_LT,V49<>0,OR(IF(AND($G$4=$J$4,B49="X"),TRUE,FALSE),IF(AND($G$4=$J$3,A49="X",D49<>$O$4),TRUE,FALSE))),MAX($W$25:W48)+1,0) -> 0
B50: X | C50: 3296008382 | D50: 50.8 | E50: 6 | F50: 838 | G50: 138.6666667 | H50: 130.6666667 | I50: 461449.0759 | J50: 33717.14315 | K50: 3531.49803 | L50: 10.98404539 | M50: 2 | N50: 1.054532102 | O50: 7.143132638 | P50: 86.62375749 | Q50: 96.08679203 | R50: 0 | S50: 53125 | T50: 2135.717592 | U50: 364.2824083 | V50: Center | W50: =IF(AND(R50=1,S50>=SC_LT,V50<>0,OR(IF(AND($G$4=$J$4,B50="X"),TRUE,FALSE),IF(AND($G$4=$J$3,A50="X",D50<>$O$4),TRUE,FALSE))),MAX($W$25:W49)+1,0) -> 0
B51: X | C51: 3296009022 | D51: 50.8 | E51: 6 | F51: 902 | G51: 149.3333333 | H51: 141.3333333 | I51: 461449.0759 | J51: 33717.14315 | K51: 3264.969876 | L51: 11.82897196 | M51: 2 | N51: 1.140616355 | O51: 7.229216891 | P51: 80.8258569 | Q51: 89.57470015 | R51: 0 | S51: 68750 | T51: 2264.750603 | U51: 235.2493973 | V51: Center | W51: =IF(AND(R51=1,S51>=SC_LT,V51<>0,OR(IF(AND($G$4=$J$4,B51="X"),TRUE,FALSE),IF(AND($G$4=$J$3,A51="X",D51<>$O$4),TRUE,FALSE))),MAX($W$25:W50)+1,0) -> 0
B52: X | C52: 3296009662 | D52: 50.8 | E52: 6 | F52: 966 | G52: 160 | H52: 152 | I52: 461449.0759 | J52: 33717.14315 | K52: 3035.849183 | L52: 12.67389853 | M52: 2 | N52: 1.226700609 | O52: 7.315301144 | P52: 75.84169674 | Q52: 83.97658608 | R52: 0 | S52: 81250 | T52: 2393.783614 | U52: 106.2163863 | V52: No cut | W52: =IF(AND(R52=1,S52>=SC_LT,V52<>0,OR(IF(AND($G$4=$J$4,B52="X"),TRUE,FALSE),IF(AND($G$4=$J$3,A52="X",D52<>$O$4),TRUE,FALSE))),MAX($W$25:W51)+1,0) -> 0
B53: X | C53: 3296010302 | D53: 50.8 | E53: 6 | F53: 1030 | G53: 170.6666667 | H53: 162.6666667 | I53: 461449.0759 | J53: 33717.14315 | K53: 2836.777106 | L53: 13.51882509 | M53: 2 | N53: 1.312784862 | O53: 7.401385397 | P53: 71.51119693 | Q53: 79.1126509 | R53: 1 | S53: 93750 | T53: 2522.816625 | U53: -22.81662477 | V53: 0 | W53: =IF(AND(R53=1,S53>=SC_LT,V53<>0,OR(IF(AND($G$4=$J$4,B53="X"),TRUE,FALSE),IF(AND($G$4=$J$3,A53="X",D53<>$O$4),TRUE,FALSE))),MAX($W$25:W52)+1,0) -> 0
B54: X | C54: 3296010942 | D54: 50.8 | E54: 6 | F54: 1094 | G54: 181.3333333 | H54: 173.3333333 | I54: 461449.0759 | J54: 33717.14315 | K54: 2662.206207 | L54: 14.36375166 | M54: 2 | N54: 1.398869115 | O54: 7.487469651 | P54: 67.71368171 | Q54: 74.8473539 | R54: 0 | S54: 114286 | T54: 2651.849636 | U54: -151.8496358 | V54: 0 | W54: =IF(AND(R54=1,S54>=SC_LT,V54<>0,OR(IF(AND($G$4=$J$4,B54="X"),TRUE,FALSE),IF(AND($G$4=$J$3,A54="X",D54<>$O$4),TRUE,FALSE))),MAX($W$25:W53)+1,0) -> 0
B55: X | C55: 3396008112 | D55: 66.675 | E55: 6 | F55: 811 | G55: 134.1666667 | H55: 127.1666667 | I55: 360650.9461 | J55: 33717.14315 | K55: 2836.04938 | L55: 13.59789169 | M55: 2 | N55: 1.313121721 | O55: 7.401722256 | P55: 71.4953664 | Q55: 79.09487035 | R55: 1 | S55: 93750 | T55: 2084.820667 | U55: 415.1793329 | V55: Center | W55: =IF(AND(R55=1,S55>=SC_LT,V55<>0,OR(IF(AND($G$4=$J$4,B55="X"),TRUE,FALSE),IF(AND($G$4=$J$3,A55="X",D55<>$O$4),TRUE,FALSE))),MAX($W$25:W54)+1,0) -> 5
B56: X | C56: 3396008612 | D56: 66.675 | E56: 6 | F56: 861 | G56: 142.5 | H56: 135.5 | I56: 360650.9461 | J56: 33717.14315 | K56: 2661.630599 | L56: 14.44248124 | M56: 2 | N56: 1.399171637 | O56: 7.487772172 | P56: 67.70116026 | Q56: 74.83329005 | R56: 0 | S56: 114286 | T56: 2185.853266 | U56: 314.1467339 | V56: Center | W56: =IF(AND(R56=1,S56>=SC_LT,V56<>0,OR(IF(AND($G$4=$J$4,B56="X"),TRUE,FALSE),IF(AND($G$4=$J$3,A56="X",D56<>$O$4),TRUE,FALSE))),MAX($W$25:W55)+1,0) -> 0
B57: X | C57: 3396009112 | D57: 66.675 | E57: 6 | F57: 911 | G57: 150.8333333 | H57: 143.8333333 | I57: 360650.9461 | J57: 33717.14315 | K57: 2507.422569 | L57: 15.28707078 | M57: 2 | N57: 1.485221553 | O57: 7.573822088 | P57: 64.34660721 | Q57: 71.06551974 | R57: 0 | S57: 171429 | T57: 2286.885865 | U57: 213.1141349 | V57: Center | W57: =IF(AND(R57=1,S57>=SC_LT,V57<>0,OR(IF(AND($G$4=$J$4,B57="X"),TRUE,FALSE),IF(AND($G$4=$J$3,A57="X",D57<>$O$4),TRUE,FALSE))),MAX($W$25:W56)+1,0) -> 0
B58: X | C58: 3396009612 | D58: 66.675 | E58: 6 | F58: 961 | G58: 159.1666667 | H58: 152.1666667 | I58: 360650.9461 | J58: 33717.14315 | K58: 2370.104794 | L58: 16.13166033 | M58: 2 | N58: 1.571271469 | O58: 7.659872004 | P58: 61.35947509 | Q58: 67.71042965 | R58: 0 | S58: 200000 | T58: 2387.918464 | U58: 112.0815359 | V58: No cut | W58: =IF(AND(R58=1,S58>=SC_LT,V58<>0,OR(IF(AND($G$4=$J$4,B58="X"),TRUE,FALSE),IF(AND($G$4=$J$3,A58="X",D58<>$O$4),TRUE,FALSE))),MAX($W$25:W57)+1,0) -> 0
B59: X | C59: 3296507632 | D59: 50.8 | E59: 6.5 | F59: 763 | G59: 116.3846154 | H59: 108.3846154 | I59: 630036.8034 | J59: 42059.54427 | K59: 5812.972636 | L59: 10.91481345 | M59: 2 | N59: 0.6406495049 | O59: 6.72925004 | P59: 136.2536477 | Q59: 151.8301425 | R59: 0 | S59: 17500 | T59: 1987.480251 | U59: 512.5197495 | V59: Ex_Center | W59: =IF(AND(R59=1,S59>=SC_LT,V59<>0,OR(IF(AND($G$4=$J$4,B59="X"),TRUE,FALSE),IF(AND($G$4=$J$3,A59="X",D59<>$O$4),TRUE,FALSE))),MAX($W$25:W58)+1,0) -> 0
B60: X | C60: 3296508382 | D60: 50.8 | E60: 6.5 | F60: 838 | G60: 127.9230769 | H60: 119.9230769 | I60: 630036.8034 | J60: 42059.54427 | K60: 5253.674435 | L60: 11.99691657 | M60: 2 | N60: 0.7088520782 | O60: 6.797452614 | P60: 124.0869954 | Q60: 138.1647896 | R60: 0 | S60: 26667 | T60: 2138.366884 | U60: 361.633116 | V60: Center | W60: =IF(AND(R60=1,S60>=SC_LT,V60<>0,OR(IF(AND($G$4=$J$4,B60="X"),TRUE,FALSE),IF(AND($G$4=$J$3,A60="X",D60<>$O$4),TRUE,FALSE))),MAX($W$25:W59)+1,0) -> 0
B61: X | C61: 3296509132 | D61: 50.8 | E61: 6.5 | F61: 913 | G61: 139.4615385 | H61: 131.4615385 | I61: 630036.8034 | J61: 42059.54427 | K61: 4792.55614 | L61: 13.07901969 | M61: 2 | N61: 0.7770546515 | O61: 6.865655187 | P61: 114.0560924 | Q61: 126.8982699 | R61: 0 | S61: 41500 | T61: 2289.253517 | U61: 210.7464826 | V61: Center | W61: =IF(AND(R61=1,S61>=SC_LT,V61<>0,OR(IF(AND($G$4=$J$4,B61="X"),TRUE,FALSE),IF(AND($G$4=$J$3,A61="X",D61<>$O$4),TRUE,FALSE))),MAX($W$25:W60)+1,0) -> 0
B62: X | C62: 3296509892 | D62: 50.8 | E62: 6.5 | F62: 989 | G62: 151.1538462 | H62: 143.1538462 | I62: 630036.8034 | J62: 42059.54427 | K62: 4401.116842 | L62: 14.17555085 | M62: 2 | N62: 0.8461665924 | O62: 6.934767128 | P62: 105.5409464 | Q62: 117.3342195 | R62: 0 | S62: 59375 | T62: 2442.151973 | U62: 57.84802734 | V62: No cut | W62: =IF(AND(R62=1,S62>=SC_LT,V62<>0,OR(IF(AND($G$4=$J$4,B62="X"),TRUE,FALSE),IF(AND($G$4=$J$3,A62="X",D62<>$O$4),TRUE,FALSE))),MAX($W$25:W61)+1,0) -> 0
B63: X | C63: 3296510642 | D63: 50.8 | E63: 6.5 | F63: 1064 | G63: 162.6923077 | H63: 154.6923077 | I63: 630036.8034 | J63: 42059.54427 | K63: 4072.83861 | L63: 15.25765397 | M63: 2 | N63: 0.9143691656 | O63: 7.002969701 | P63: 98.39977002 | Q63: 109.3133857 | R63: 0 | S63: 75000 | T63: 2593.038606 | U63: -93.03860611 | V63: 0 | W63: =IF(AND(R63=1,S63>=SC_LT,V63<>0,OR(IF(AND($G$4=$J$4,B63="X"),TRUE,FALSE),IF(AND($G$4=$J$3,A63="X",D63<>$O$4),TRUE,FALSE))),MAX($W$25:W62)+1,0) -> 0
B64: X | C64: 3296511402 | D64: 50.8 | E64: 6.5 | F64: 1140 | G64: 174.3846154 | H64: 166.3846154 | I64: 630036.8034 | J64: 42059.54427 | K64: 3786.628962 | L64: 16.35418513 | M64: 2 | N64: 0.9834811065 | O64: 7.072081642 | P64: 92.17372947 | Q64: 102.3204152 | R64: 0 | S64: 87500 | T64: 2745.937061 | U64: -245.9370613 | V64: 0 | W64: =IF(AND(R64=1,S64>=SC_LT,V64<>0,OR(IF(AND($G$4=$J$4,B64="X"),TRUE,FALSE),IF(AND($G$4=$J$3,A64="X",D64<>$O$4),TRUE,FALSE))),MAX($W$25:W63)+1,0) -> 0
B65: X | C65: 3296512162 | D65: 50.8 | E65: 6.5 | F65: 1216 | G65: 186.0769231 | H65: 178.0769231 | I65: 630036.8034 | J65: 42059.54427 | K65: 3538.003647 | L65: 17.45071628 | M65: 2 | N65: 1.052593047 | O65: 7.141193583 | P65: 86.76527697 | Q65: 96.24574402 | R65: 0 | S65: 100000 | T65: 2898.835517 | U65: -398.8355166 | V65: 0 | W65: =IF(AND(R65=1,S65>=SC_LT,V65<>0,OR(IF(AND($G$4=$J$4,B65="X"),TRUE,FALSE),IF(AND($G$4=$J$3,A65="X",D65<>$O$4),TRUE,FALSE))),MAX($W$25:W64)+1,0) -> 0
B66: X | C66: 3396510182 | D66: 66.675 | E66: 6.5 | F66: 1018 | G66: 155.6153846 | H66: 148.6153846 | I66: 493353.0418 | J66: 42059.54427 | K66: 3319.663325 | L66: 18.63723071 | M66: 2 | N66: 1.121824016 | O66: 7.210424551 | P66: 82.01562681 | Q66: 90.91102713 | R66: 0 | S66: 142857 | T66: 2503.735519 | U66: -3.735519162 | V66: 0 | W66: =IF(AND(R66=1,S66>=SC_LT,V66<>0,OR(IF(AND($G$4=$J$4,B66="X"),TRUE,FALSE),IF(AND($G$4=$J$3,A66="X",D66<>$O$4),TRUE,FALSE))),MAX($W$25:W65)+1,0) -> 0
B67: X | C67: 3396510772 | D67: 66.675 | E67: 6.5 | F67: 1077 | G67: 164.6923077 | H67: 157.6923077 | I67: 493353.0418 | J67: 42059.54427 | K67: 3128.580265 | L67: 19.72432573 | M67: 2 | N67: 1.190341217 | O67: 7.278941753 | P67: 77.85891551 | Q67: 86.24228791 | R67: 0 | S67: 185714 | T67: 2622.626243 | U67: -122.6262428 | V67: 0 | W67: =IF(AND(R67=1,S67>=SC_LT,V67<>0,OR(IF(AND($G$4=$J$4,B67="X"),TRUE,FALSE),IF(AND($G$4=$J$3,A67="X",D67<>$O$4),TRUE,FALSE))),MAX($W$25:W66)+1,0) -> 0
B68: X | C68: 3396511372 | D68: 66.675 | E68: 6.5 | F68: 1137 | G68: 173.9230769 | H68: 166.9230769 | I68: 493353.0418 | J68: 42059.54427 | K68: 2955.571218 | L68: 20.82984609 | M68: 2 | N68: 1.260019728 | O68: 7.348620263 | P68: 74.09537593 | Q68: 82.01515169 | R68: 1 | S68: 212500 | T68: 2743.532063 | U68: -243.5320634 | V68: 0 | W68: =IF(AND(R68=1,S68>=SC_LT,V68<>0,OR(IF(AND($G$4=$J$4,B68="X"),TRUE,FALSE),IF(AND($G$4=$J$3,A68="X",D68<>$O$4),TRUE,FALSE))),MAX($W$25:W67)+1,0) -> 0
B69: X | C69: 3397008372 | D69: =INDEX($O$3:$O$4,MATCH(VALUE(LEFT(C69,3)),$Q$3:$Q$4,0)) -> 66.675 | E69: =VALUE(RIGHT(LEFT(C69,5),2))/10 -> 7 | F69: =VALUE(RIGHT(LEFT(C69,9),4)) -> 837 | G69: =(F69/E69)-1 -> 118.5714286 | H69: =G69-VLOOKUP(D69,$O$3:$P$4,2,0) -> 111.5714286 | I69: =(($E69^4)*206000*PI())/(32*($D69+$E69)) -> 659081.5134 | J69: =((E69^3)*VLOOKUP(E69,$O$7:$P$13,2,0)*PI())/32 -> 51857.87723 | K69: =I69/H69 -> 5907.260684 | L69: =((PI()*((E69/2)^2))*(PI()*(D69+E69)))*G69*(7.85/1000000)*M69 -> 16.58195314 | M69: 2 | N69: =((SC_LMT/M69)+SC_SBD)/K69 -> 0.6304238531 | O69: =N69+SC_RDT -> 6.719024388 | P69: =((((O69+SC_TOL_MIN)*K69)-SC_SBD)*M69)/(SC_HMA*9.81) -> 138.3047358 | Q69: =((((O69+SC_TOL_PLUS)*K69)-SC_SBD)*M69)/(SC_HMA*9.81) -> 154.1338857 | R69: =IF(AND(SC_W>=P69,SC_W<=Q69),1,0) -> 0 | S69: =_xlfn.IFNA(VLOOKUP(ROUND(VLOOKUP(ROUND(1-(SC_RDT/O69),2),SC_LT_TABLE,2,0)-(($I69*O69)/($H69*J69)),2),SC_LT_TABLE,3,0),0) -> 44750 | T69: =((F69+(O69*E69)+$K$9+$K$8+$K$11)*M69)+IF(M69=4,$K$10,0) -> 2142.066341 | U69: =SC_DW-T69 -> 357.9336586 | V69: =IF(U69>=$K$15,$J$15,IF(U69>=$K$14,$J$14,IF(AND(U69>=$K$13,M69=4),$J$14,IF(U69>=$K$13,$J$13,0)))) -> Center | W69: =IF(AND(R69=1,S69>=SC_LT,V69<>0,OR(IF(AND($G$4=$J$4,B69="X"),TRUE,FALSE),IF(AND($G$4=$J$3,A69="X",D69<>$O$4),TRUE,FALSE))),MAX($W$25:W68)+1,0) -> 0
B70: X | C70: 3397009062 | D70: 66.675 | E70: 7 | F70: 906 | G70: 128.4285714 | H70: 121.4285714 | I70: 659081.5134 | J70: 51857.87723 | K70: 5427.73011 | L70: 17.96045285 | M70: 2 | N70: 0.6861207108 | O70: 6.774721246 | P70: 127.8733027 | Q70: 142.4174981 | R70: 0 | S70: 65625 | T70: 2280.846097 | U70: 219.1539026 | V70: Center | W70: =IF(AND(R70=1,S70>=SC_LT,V70<>0,OR(IF(AND($G$4=$J$4,B70="X"),TRUE,FALSE),IF(AND($G$4=$J$3,A70="X",D70<>$O$4),TRUE,FALSE))),MAX($W$25:W69)+1,0) -> 0
B71: X | C71: 3397009752 | D71: 66.675 | E71: 7 | F71: 975 | G71: 138.2857143 | H71: 131.2857143 | I71: 659081.5134 | J71: 51857.87723 | K71: 5020.207393 | L71: 19.33895257 | M71: 2 | N71: 0.7418175685 | O71: 6.830418104 | P71: 119.0082872 | Q71: 132.460481 | R71: 0 | S71: 81250 | T71: 2419.625853 | U71: 80.37414655 | V71: No cut | W71: =IF(AND(R71=1,S71>=SC_LT,V71<>0,OR(IF(AND($G$4=$J$4,B71="X"),TRUE,FALSE),IF(AND($G$4=$J$3,A71="X",D71<>$O$4),TRUE,FALSE))),MAX($W$25:W70)+1,0) -> 0
B72: X | C72: 3397010442 | D72: 66.675 | E72: 7 | F72: 1044 | G72: 148.1428571 | H72: 141.1428571 | I72: 659081.5134 | J72: 51857.87723 | K72: 4669.605864 | L72: 20.71745229 | M72: 2 | N72: 0.7975144261 | O72: 6.886114962 | P72: 111.3815026 | Q72: 123.8942214 | R72: 0 | S72: 93750 | T72: 2558.405609 | U72: -58.40560946 | V72: 0 | W72: =IF(AND(R72=1,S72>=SC_LT,V72<>0,OR(IF(AND($G$4=$J$4,B72="X"),TRUE,FALSE),IF(AND($G$4=$J$3,A72="X",D72<>$O$4),TRUE,FALSE))),MAX($W$25:W71)+1,0) -> 0
B73: X | C73: 3397011132 | D73: 66.675 | E73: 7 | F73: 1113 | G73: 158 | H73: 151 | I73: 659081.5134 | J73: 51857.87723 | K73: 4364.778235 | L73: 22.09595201 | M73: 2 | N73: 0.8532112838 | O73: 6.941811819 | P73: 104.7504572 | Q73: 116.446357 | R73: 0 | S73: 128571 | T73: 2697.185365 | U73: -197.1853655 | V73: 0 | W73: =IF(AND(R73=1,S73>=SC_LT,V73<>0,OR(IF(AND($G$4=$J$4,B73="X"),TRUE,FALSE),IF(AND($G$4=$J$3,A73="X",D73<>$O$4),TRUE,FALSE))),MAX($W$25:W72)+1,0) -> 0
B74: X | C74: 3397011832 | D74: 66.675 | E74: 7 | F74: 1183 | G74: 168 | H74: 161 | I74: 659081.5134 | J74: 51857.87723 | K74: 4093.673996 | L74: 23.49442998 | M74: 2 | N74: 0.9097153424 | O74: 6.998315878 | P74: 98.85301107 | Q74: 109.8224575 | R74: 0 | S74: 171429 | T74: 2837.976422 | U74: -337.9764223 | V74: 0 | W74: =IF(AND(R74=1,S74>=SC_LT,V74<>0,OR(IF(AND($G$4=$J$4,B74="X"),TRUE,FALSE),IF(AND($G$4=$J$3,A74="X",D74<>$O$4),TRUE,FALSE))),MAX($W$25:W73)+1,0) -> 0
B75: X | C75: 3397012522 | D75: 66.675 | E75: 7 | F75: 1252 | G75: 177.8571429 | H75: 170.8571429 | I75: 659081.5134 | J75: 51857.87723 | K75: 3857.500497 | L75: 24.8729297 | M75: 2 | N75: 0.9654122001 | O75: 7.054012735 | P75: 93.7154282 | Q75: 104.0520219 | R75: 0 | S75: 212500 | T75: 2976.756178 | U75: -476.7561783 | V75: 0 | W75: =IF(AND(R75=1,S75>=SC_LT,V75<>0,OR(IF(AND($G$4=$J$4,B75="X"),TRUE,FALSE),IF(AND($G$4=$J$3,A75="X",D75<>$O$4),TRUE,FALSE))),MAX($W$25:W74)+1,0) -> 0
B76: X | C76: 3295004482 | D76: 50.8 | E76: 5 | F76: 448 | G76: 88.6 | H76: 80.6 | I76: 226523.3278 | J76: 20371.26486 | K76: 2810.463124 | L76: 9.575849937 | M76: 4 | N76: 0.8370111674 | O76: 6.925611703 | P76: 132.0759807 | Q76: 147.1378663 | R76: 0 | S76: 15000 | T76: 2794.512234 | U76: -294.5122341 | V76: 0 | W76: =IF(AND(R76=1,S76>=SC_LT,V76<>0,OR(IF(AND($G$4=$J$4,B76="X"),TRUE,FALSE),IF(AND($G$4=$J$3,A76="X",D76<>$O$4),TRUE,FALSE))),MAX($W$25:W75)+1,0) -> 0
B77: X | C77: 3295004902 | D77: 50.8 | E77: 5 | F77: 490 | G77: 97 | H77: 89 | I77: 226523.3278 | J77: 20371.26486 | K77: 2545.205931 | L77: 10.48371833 | M77: 4 | N77: 0.9242431005 | O77: 7.012843636 | P77: 120.535475 | Q77: 134.1757893 | R77: 0 | S77: 22500 | T77: 2964.256873 | U77: -464.2568727 | V77: 0 | W77: =IF(AND(R77=1,S77>=SC_LT,V77<>0,OR(IF(AND($G$4=$J$4,B77="X"),TRUE,FALSE),IF(AND($G$4=$J$3,A77="X",D77<>$O$4),TRUE,FALSE))),MAX($W$25:W76)+1,0) -> 0
B78: X | C78: 3295005332 | D78: 50.8 | E78: 5 | F78: 533 | G78: 105.6 | H78: 97.6 | I78: 226523.3278 | J78: 20371.26486 | K78: 2320.935736 | L78: 11.41320263 | M78: 4 | N78: 1.013551984 | O78: 7.10215252 | P78: 110.7781846 | Q78: 123.216586 | R78: 0 | S78: 33333 | T78: 3138.04305 | U78: -638.0430504 | V78: 0 | W78: =IF(AND(R78=1,S78>=SC_LT,V78<>0,OR(IF(AND($G$4=$J$4,B78="X"),TRUE,FALSE),IF(AND($G$4=$J$3,A78="X",D78<>$O$4),TRUE,FALSE))),MAX($W$25:W77)+1,0) -> 0
B79: X | C79: 3295005762 | D79: 50.8 | E79: 5 | F79: 576 | G79: 114.2 | H79: 106.2 | I79: 226523.3278 | J79: 20371.26486 | K79: 2132.988021 | L79: 12.34268694 | M79: 4 | N79: 1.102860868 | O79: 7.191461404 | P79: 102.601171 | Q79: 114.0323195 | R79: 0 | S79: 53125 | T79: 3311.829228 | U79: -811.8292281 | V79: 0 | W79: =IF(AND(R79=1,S79>=SC_LT,V79<>0,OR(IF(AND($G$4=$J$4,B79="X"),TRUE,FALSE),IF(AND($G$4=$J$3,A79="X",D79<>$O$4),TRUE,FALSE))),MAX($W$25:W78)+1,0) -> 0
B80: X | C80: 3295006192 | D80: 50.8 | E80: 5 | F80: 619 | G80: 122.8 | H80: 114.8 | I80: 226523.3278 | J80: 20371.26486 | K80: 1973.19972 | L80: 13.27217124 | M80: 4 | N80: 1.192169752 | O80: 7.280770287 | P80: 95.64928482 | Q80: 106.224093 | R80: 0 | S80: 65625 | T80: 3485.615406 | U80: -985.6154057 | V80: 0 | W80: =IF(AND(R80=1,S80>=SC_LT,V80<>0,OR(IF(AND($G$4=$J$4,B80="X"),TRUE,FALSE),IF(AND($G$4=$J$3,A80="X",D80<>$O$4),TRUE,FALSE))),MAX($W$25:W79)+1,0) -> 0
B81: X | C81: 3295006632 | D81: 50.8 | E81: 5 | F81: 663 | G81: 131.6 | H81: 123.6 | I81: 226523.3278 | J81: 20371.26486 | K81: 1832.713008 | L81: 14.22327146 | M81: 4 | N81: 1.283555587 | O81: 7.372156122 | P81: 89.53715011 | Q81: 99.35905931 | R81: 0 | S81: 81250 | T81: 3663.443122 | U81: -1163.443122 | V81: 0 | W81: =IF(AND(R81=1,S81>=SC_LT,V81<>0,OR(IF(AND($G$4=$J$4,B81="X"),TRUE,FALSE),IF(AND($G$4=$J$3,A81="X",D81<>$O$4),TRUE,FALSE))),MAX($W$25:W80)+1,0) -> 0
B82: X | C82: 3295305032 | D82: 50.8 | E82: 5.3 | F82: 503 | G82: 93.90566038 | H82: 85.90566038 | I82: 284451.1749 | J82: 23970.18309 | K82: 3311.2041 | L82: 11.46504527 | M82: 4 | N82: 0.7104331081 | O82: 6.799033644 | P82: 153.8616447 | Q82: 171.6071105 | R82: 0 | S82: 16667 | T82: 3020.139513 | U82: -520.1395132 | V82: 0 | W82: =IF(AND(R82=1,S82>=SC_LT,V82<>0,OR(IF(AND($G$4=$J$4,B82="X"),TRUE,FALSE),IF(AND($G$4=$J$3,A82="X",D82<>$O$4),TRUE,FALSE))),MAX($W$25:W81)+1,0) -> 0
B83: X | C83: 3295305512 | D83: 50.8 | E83: 5.3 | F83: 551 | G83: 102.9622642 | H83: 94.96226415 | I83: 284451.1749 | J83: 23970.18309 | K83: 2995.41273 | L83: 12.57077597 | M83: 4 | N83: 0.7853305146 | O83: 6.87393105 | P83: 140.122556 | Q83: 156.1756269 | R83: 0 | S83: 25000 | T83: 3213.727338 | U83: -713.7273383 | V83: 0 | W83: =IF(AND(R83=1,S83>=SC_LT,V83<>0,OR(IF(AND($G$4=$J$4,B83="X"),TRUE,FALSE),IF(AND($G$4=$J$3,A83="X",D83<>$O$4),TRUE,FALSE))),MAX($W$25:W82)+1,0) -> 0
B84: X | C84: 3295306002 | D84: 50.8 | E84: 5.3 | F84: 600 | G84: 112.2075472 | H84: 104.2075472 | I84: 284451.1749 | J84: 23970.18309 | K84: 2729.660016 | L84: 13.69954274 | M84: 4 | N84: 0.8617882838 | O84: 6.950388819 | P84: 128.5604917 | Q84: 143.1893358 | R84: 0 | S84: 38250 | T84: 3411.348243 | U84: -911.348243 | V84: 0 | W84: =IF(AND(R84=1,S84>=SC_LT,V84<>0,OR(IF(AND($G$4=$J$4,B84="X"),TRUE,FALSE),IF(AND($G$4=$J$3,A84="X",D84<>$O$4),TRUE,FALSE))),MAX($W$25:W83)+1,0) -> 0
B85: X | C85: 3295306492 | D85: 50.8 | E85: 5.3 | F85: 649 | G85: 121.4528302 | H85: 113.4528302 | I85: 284451.1749 | J85: 23970.18309 | K85: 2507.219735 | L85: 14.8283095 | M85: 4 | N85: 0.938246053 | O85: 7.026846588 | P85: 118.8828152 | Q85: 132.3195532 | R85: 0 | S85: 59375 | T85: 3608.969148 | U85: -1108.969148 | V85: 0 | W85: =IF(AND(R85=1,S85>=SC_LT,V85<>0,OR(IF(AND($G$4=$J$4,B85="X"),TRUE,FALSE),IF(AND($G$4=$J$3,A85="X",D85<>$O$4),TRUE,FALSE))),MAX($W$25:W84)+1,0) -> 0
B86: X | C86: 3295306972 | D86: 50.8 | E86: 5.3 | F86: 697 | G86: 130.509434 | H86: 122.509434 | I86: 284451.1749 | J86: 23970.18309 | K86: 2321.871595 | L86: 15.93404021 | M86: 4 | N86: 1.013143459 | O86: 7.101743995 | P86: 110.8189009 | Q86: 123.2623177 | R86: 0 | S86: 71875 | T86: 3802.556973 | U86: -1302.556973 | V86: 0 | W86: =IF(AND(R86=1,S86>=SC_LT,V86<>0,OR(IF(AND($G$4=$J$4,B86="X"),TRUE,FALSE),IF(AND($G$4=$J$3,A86="X",D86<>$O$4),TRUE,FALSE))),MAX($W$25:W85)+1,0) -> 0
B87: X | C87: 3295307462 | D87: 50.8 | E87: 5.3 | F87: 746 | G87: 139.754717 | H87: 131.754717 | I87: 284451.1749 | J87: 23970.18309 | K87: 2158.944905 | L87: 17.06280697 | M87: 4 | N87: 1.089601229 | O87: 7.178201764 | P87: 103.7304733 | Q87: 115.3007304 | R87: 0 | S87: 84375 | T87: 4000.177877 | U87: -1500.177877 | V87: 0 | W87: =IF(AND(R87=1,S87>=SC_LT,V87<>0,OR(IF(AND($G$4=$J$4,B87="X"),TRUE,FALSE),IF(AND($G$4=$J$3,A87="X",D87<>$O$4),TRUE,FALSE))),MAX($W$25:W86)+1,0) -> 0
B88: X | C88: 3295307952 | D88: 50.8 | E88: 5.3 | F88: 795 | G88: 149 | H88: 141 | I88: 284451.1749 | J88: 23970.18309 | K88: 2017.384219 | L88: 18.19157373 | M88: 4 | N88: 1.166058998 | O88: 7.254659533 | P88: 97.57161334 | Q88: 108.3832159 | R88: 0 | S88: 96875 | T88: 4197.798782 | U88: -1697.798782 | V88: 0 | W88: =IF(AND(R88=1,S88>=SC_LT,V88<>0,OR(IF(AND($G$4=$J$4,B88="X"),TRUE,FALSE),IF(AND($G$4=$J$3,A88="X",D88<>$O$4),TRUE,FALSE))),MAX($W$25:W87)+1,0) -> 0
B89: X | C89: 3295505412 | D89: 50.8 | E89: 5.5 | F89: 541 | G89: 97.36363636 | H89: 89.36363636 | I89: 328707.3975 | J89: 26624.13871 | K89: 3678.312688 | L89: 12.84694786 | M89: 4 | N89: 0.6395293767 | O89: 6.728129912 | P89: 169.8333841 | Q89: 189.546265 | R89: 0 | S89: 17500 | T89: 3176.018858 | U89: -676.0188581 | V89: 0 | W89: =IF(AND(R89=1,S89>=SC_LT,V89<>0,OR(IF(AND($G$4=$J$4,B89="X"),TRUE,FALSE),IF(AND($G$4=$J$3,A89="X",D89<>$O$4),TRUE,FALSE))),MAX($W$25:W88)+1,0) -> 0
B90: X | C90: 3295505932 | D90: 50.8 | E90: 5.5 | F90: 593 | G90: 106.8181818 | H90: 98.81818182 | I90: 328707.3975 | J90: 26624.13871 | K90: 3326.385807 | L90: 14.09445727 | M90: 4 | N90: 0.7071906739 | O90: 6.795791209 | P90: 154.522153 | Q90: 172.3489809 | R90: 0 | S90: 26667 | T90: 3385.507407 | U90: -885.5074066 | V90: 0 | W90: =IF(AND(R90=1,S90>=SC_LT,V90<>0,OR(IF(AND($G$4=$J$4,B90="X"),TRUE,FALSE),IF(AND($G$4=$J$3,A90="X",D90<>$O$4),TRUE,FALSE))),MAX($W$25:W89)+1,0) -> 0
B91: X | C91: 3295506462 | D91: 50.8 | E91: 5.5 | F91: 646 | G91: 116.4545455 | H91: 108.4545455 | I91: 328707.3975 | J91: 26624.13871 | K91: 3030.830991 | L91: 15.36595725 | M91: 4 | N91: 0.77615315 | O91: 6.864753685 | P91: 141.6634931 | Q91: 157.9063782 | R91: 0 | S91: 41500 | T91: 3599.024581 | U91: -1099.024581 | V91: 0 | W91: =IF(AND(R91=1,S91>=SC_LT,V91<>0,OR(IF(AND($G$4=$J$4,B91="X"),TRUE,FALSE),IF(AND($G$4=$J$3,A91="X",D91<>$O$4),TRUE,FALSE))),MAX($W$25:W90)+1,0) -> 0
B92: X | C92: 3295506982 | D92: 50.8 | E92: 5.5 | F92: 698 | G92: 125.9090909 | H92: 117.9090909 | I92: 328707.3975 | J92: 26624.13871 | K92: 2787.803679 | L92: 16.61346666 | M92: 4 | N92: 0.8438144472 | O92: 6.932414983 | P92: 131.0901396 | Q92: 146.0305882 | R92: 0 | S92: 59375 | T92: 3808.51313 | U92: -1308.51313 | V92: 0 | W92: =IF(AND(R92=1,S92>=SC_LT,V92<>0,OR(IF(AND($G$4=$J$4,B92="X"),TRUE,FALSE),IF(AND($G$4=$J$3,A92="X",D92<>$O$4),TRUE,FALSE))),MAX($W$25:W91)+1,0) -> 0
B93: X | C93: 3295507512 | D93: 50.8 | E93: 5.5 | F93: 751 | G93: 135.5454545 | H93: 127.5454545 | I93: 328707.3975 | J93: 26624.13871 | K93: 2577.178455 | L93: 17.88496663 | M93: 4 | N93: 0.9127769232 | O93: 7.001377459 | P93: 121.9264989 | Q93: 135.738161 | R93: 0 | S93: 75000 | T93: 4022.030304 | U93: -1522.030304 | V93: 0 | W93: =IF(AND(R93=1,S93>=SC_LT,V93<>0,OR(IF(AND($G$4=$J$4,B93="X"),TRUE,FALSE),IF(AND($G$4=$J$3,A93="X",D93<>$O$4),TRUE,FALSE))),MAX($W$25:W92)+1,0) -> 0
B94: X | C94: 3295508042 | D94: 50.8 | E94: 5.5 | F94: 804 | G94: 145.1818182 | H94: 137.1818182 | I94: 328707.3975 | J94: 26624.13871 | K94: 2396.14405 | L94: 19.15646661 | M94: 4 | N94: 0.9817393992 | O94: 7.070339935 | P94: 114.0502617 | Q94: 126.8917208 | R94: 0 | S94: 87500 | T94: 4235.547479 | U94: -1735.547479 | V94: 0 | W94: =IF(AND(R94=1,S94>=SC_LT,V94<>0,OR(IF(AND($G$4=$J$4,B94="X"),TRUE,FALSE),IF(AND($G$4=$J$3,A94="X",D94<>$O$4),TRUE,FALSE))),MAX($W$25:W93)+1,0) -> 0
B95: X | C95: 3295508572 | D95: 50.8 | E95: 5.5 | F95: 857 | G95: 154.8181818 | H95: 146.8181818 | I95: 328707.3975 | J95: 26624.13871 | K95: 2238.873915 | L95: 20.42796658 | M95: 4 | N95: 1.050701875 | O95: 7.139302411 | P95: 107.207933 | Q95: 119.2065472 | R95: 0 | S95: 100000 | T95: 4449.064653 | U95: -1949.064653 | V95: 0 | W95: =IF(AND(R95=1,S95>=SC_LT,V95<>0,OR(IF(AND($G$4=$J$4,B95="X"),TRUE,FALSE),IF(AND($G$4=$J$3,A95="X",D95<>$O$4),TRUE,FALSE))),MAX($W$25:W94)+1,0) -> 0
B96: X | C96: 3296006482 | D96: 50.8 | E96: 6 | F96: 648 | G96: 107 | H96: 99 | I96: 461449.0759 | J96: 33717.14315 | K96: 4661.101776 | L96: 16.95133928 | M96: 4 | N96: 0.5046851868 | O96: 6.593285722 | P96: 212.5914445 | Q96: 237.5713067 | R96: 0 | S96: 19167 | T96: 3614.238857 | U96: -1114.238857 | V96: 0 | W96: =IF(AND(R96=1,S96>=SC_LT,V96<>0,OR(IF(AND($G$4=$J$4,B96="X"),TRUE,FALSE),IF(AND($G$4=$J$3,A96="X",D96<>$O$4),TRUE,FALSE))),MAX($W$25:W95)+1,0) -> 0
B97: X | C97: 3296007112 | D97: 50.8 | E97: 6 | F97: 711 | G97: 117.5 | H97: 109.5 | I97: 461449.0759 | J97: 33717.14315 | K97: 4214.146812 | L97: 18.61478846 | M97: 4 | N97: 0.5582124036 | O97: 6.646812939 | P97: 193.1458406 | Q97: 215.7303735 | R97: 0 | S97: 30000 | T97: 3867.523511 | U97: -1367.523511 | V97: 0 | W97: =IF(AND(R97=1,S97>=SC_LT,V97<>0,OR(IF(AND($G$4=$J$4,B97="X"),TRUE,FALSE),IF(AND($G$4=$J$3,A97="X",D97<>$O$4),TRUE,FALSE))),MAX($W$25:W96)+1,0) -> 0
B98: X | C98: 3296007752 | D98: 50.8 | E98: 6 | F98: 775 | G98: 128.1666667 | H98: 120.1666667 | I98: 461449.0759 | J98: 33717.14315 | K98: 3840.075527 | L98: 20.3046416 | M98: 4 | N98: 0.6125892587 | O98: 6.701189794 | P98: 176.8711762 | Q98: 197.4509794 | R98: 0 | S98: 50000 | T98: 4124.828555 | U98: -1624.828555 | V98: 0 | W98: =IF(AND(R98=1,S98>=SC_LT,V98<>0,OR(IF(AND($G$4=$J$4,B98="X"),TRUE,FALSE),IF(AND($G$4=$J$3,A98="X",D98<>$O$4),TRUE,FALSE))),MAX($W$25:W97)+1,0) -> 0
B99: X | C99: 3296008382 | D99: 50.8 | E99: 6 | F99: 838 | G99: 138.6666667 | H99: 130.6666667 | I99: 461449.0759 | J99: 33717.14315 | K99: 3531.49803 | L99: 21.96809078 | M99: 4 | N99: 0.6661164755 | O99: 6.754717011 | P99: 163.4459403 | Q99: 182.3720094 | R99: 0 | S99: 65625 | T99: 4378.113208 | U99: -1878.113208 | V99: 0 | W99: =IF(AND(R99=1,S99>=SC_LT,V99<>0,OR(IF(AND($G$4=$J$4,B99="X"),TRUE,FALSE),IF(AND($G$4=$J$3,A99="X",D99<>$O$4),TRUE,FALSE))),MAX($W$25:W98)+1,0) -> 0
B100: X | C100: 3296009022 | D100: 50.8 | E100: 6 | F100: 902 | G100: 149.3333333 | H100: 141.3333333 | I100: 461449.0759 | J100: 33717.14315 | K100: 3264.969876 | L100: 23.65794391 | M100: 4 | N100: 0.7204933306 | O100: 6.809093866 | P100: 151.8501392 | Q100: 169.3478257 | R100: 0 | S100: 81250 | T100: 4635.418253 | U100: -2135.418253 | V100: 0 | W100: =IF(AND(R100=1,S100>=SC_LT,V100<>0,OR(IF(AND($G$4=$J$4,B100="X"),TRUE,FALSE),IF(AND($G$4=$J$3,A100="X",D100<>$O$4),TRUE,FALSE))),MAX($W$25:W99)+1,0) -> 0
B101: X | C101: 3296009662 | D101: 50.8 | E101: 6 | F101: 966 | G101: 160 | H101: 152 | I101: 461449.0759 | J101: 33717.14315 | K101: 3035.849183 | L101: 25.34779705 | M101: 4 | N101: 0.7748701858 | O101: 6.863470721 | P101: 141.8818188 | Q101: 158.1515975 | R101: 0 | S101: 93750 | T101: 4892.723297 | U101: -2392.723297 | V101: 0 | W101: =IF(AND(R101=1,S101>=SC_LT,V101<>0,OR(IF(AND($G$4=$J$4,B101="X"),TRUE,FALSE),IF(AND($G$4=$J$3,A101="X",D101<>$O$4),TRUE,FALSE))),MAX($W$25:W100)+1,0) -> 0
B102: X | C102: 3296010302 | D102: 50.8 | E102: 6 | F102: 1030 | G102: 170.6666667 | H102: 162.6666667 | I102: 461449.0759 | J102: 33717.14315 | K102: 2836.777106 | L102: 27.03765019 | M102: 4 | N102: 0.8292470409 | O102: 6.917847576 | P102: 133.2208192 | Q102: 148.4237272 | R102: 0 | S102: 128571 | T102: 5150.028342 | U102: -2650.028342 | V102: 0 | W102: =IF(AND(R102=1,S102>=SC_LT,V102<>0,OR(IF(AND($G$4=$J$4,B102="X"),TRUE,FALSE),IF(AND($G$4=$J$3,A102="X",D102<>$O$4),TRUE,FALSE))),MAX($W$25:W101)+1,0) -> 0
B103: X | C103: 3296010942 | D103: 50.8 | E103: 6 | F103: 1094 | G103: 181.3333333 | H103: 173.3333333 | I103: 461449.0759 | J103: 33717.14315 | K103: 2662.206207 | L103: 28.72750333 | M103: 4 | N103: 0.883623896 | O103: 6.972224431 | P103: 125.6257888 | Q103: 139.8931332 | R103: 0 | S103: 171429 | T103: 5407.333386 | U103: -2907.333386 | V103: 0 | W103: =IF(AND(R103=1,S103>=SC_LT,V103<>0,OR(IF(AND($G$4=$J$4,B103="X"),TRUE,FALSE),IF(AND($G$4=$J$3,A103="X",D103<>$O$4),TRUE,FALSE))),MAX($W$25:W102)+1,0) -> 0
B104: X | C104: 3396008112 | D104: 66.675 | E104: 6 | F104: 811 | G104: 134.1666667 | H104: 127.1666667 | I104: 360650.9461 | J104: 33717.14315 | K104: 2836.04938 | L104: 27.19578338 | M104: 4 | N104: 0.8294598244 | O104: 6.91806036 | P104: 133.1891582 | Q104: 148.3881661 | R104: 0 | S104: 128571 | T104: 4274.033449 | U104: -1774.033449 | V104: 0 | W104: =IF(AND(R104=1,S104>=SC_LT,V104<>0,OR(IF(AND($G$4=$J$4,B104="X"),TRUE,FALSE),IF(AND($G$4=$J$3,A104="X",D104<>$O$4),TRUE,FALSE))),MAX($W$25:W103)+1,0) -> 0
B105: X | C105: 3396008612 | D105: 66.675 | E105: 6 | F105: 861 | G105: 142.5 | H105: 135.5 | I105: 360650.9461 | J105: 33717.14315 | K105: 2661.630599 | L105: 28.88496248 | M105: 4 | N105: 0.8838149899 | O105: 6.972415525 | P105: 125.6007459 | Q105: 139.8650055 | R105: 0 | S105: 171429 | T105: 4475.337973 | U105: -1975.337973 | V105: 0 | W105: =IF(AND(R105=1,S105>=SC_LT,V105<>0,OR(IF(AND($G$4=$J$4,B105="X"),TRUE,FALSE),IF(AND($G$4=$J$3,A105="X",D105<>$O$4),TRUE,FALSE))),MAX($W$25:W104)+1,0) -> 0
B106: X | C106: 3396009112 | D106: 66.675 | E106: 6 | F106: 911 | G106: 150.8333333 | H106: 143.8333333 | I106: 360650.9461 | J106: 33717.14315 | K106: 2507.422569 | L106: 30.57414157 | M106: 4 | N106: 0.9381701553 | O106: 7.026770691 | P106: 118.8916398 | Q106: 132.3294648 | R106: 0 | S106: 212500 | T106: 4676.642497 | U106: -2176.642497 | V106: 0 | W106: =IF(AND(R106=1,S106>=SC_LT,V106<>0,OR(IF(AND($G$4=$J$4,B106="X"),TRUE,FALSE),IF(AND($G$4=$J$3,A106="X",D106<>$O$4),TRUE,FALSE))),MAX($W$25:W105)+1,0) -> 0
B107: X | C107: 3396009612 | D107: 66.675 | E107: 6 | F107: 961 | G107: 159.1666667 | H107: 152.1666667 | I107: 360650.9461 | J107: 33717.14315 | K107: 2370.104794 | L107: 32.26332066 | M107: 4 | N107: 0.9925253207 | O107: 7.081125856 | P107: 112.9173755 | Q107: 125.6192847 | R107: 0 | S107: 237500 | T107: 4877.947021 | U107: -2377.947021 | V107: 0 | W107: =IF(AND(R107=1,S107>=SC_LT,V107<>0,OR(IF(AND($G$4=$J$4,B107="X"),TRUE,FALSE),IF(AND($G$4=$J$3,A107="X",D107<>$O$4),TRUE,FALSE))),MAX($W$25:W106)+1,0) -> 0
B108: X | C108: 3296507632 | D108: 50.8 | E108: 6.5 | F108: 763 | G108: 116.3846154 | H108: 108.3846154 | I108: 630036.8034 | J108: 42059.54427 | K108: 5812.972636 | L108: 21.8296269 | M108: 4 | N108: 0.4046791836 | O108: 6.493279719 | P108: 262.7057207 | Q108: 293.8587104 | R108: 0 | S108: 20000 | T108: 4084.825273 | U108: -1584.825273 | V108: 0 | W108: =IF(AND(R108=1,S108>=SC_LT,V108<>0,OR(IF(AND($G$4=$J$4,B108="X"),TRUE,FALSE),IF(AND($G$4=$J$3,A108="X",D108<>$O$4),TRUE,FALSE))),MAX($W$25:W107)+1,0) -> 0
B109: X | C109: 3296508382 | D109: 50.8 | E109: 6.5 | F109: 838 | G109: 127.9230769 | H109: 119.9230769 | I109: 630036.8034 | J109: 42059.54427 | K109: 5253.674435 | L109: 23.99383314 | M109: 4 | N109: 0.4477607149 | O109: 6.53636125 | P109: 238.3724161 | Q109: 266.5280046 | R109: 0 | S109: 31667 | T109: 4385.945393 | U109: -1885.945393 | V109: 0 | W109: =IF(AND(R109=1,S109>=SC_LT,V109<>0,OR(IF(AND($G$4=$J$4,B109="X"),TRUE,FALSE),IF(AND($G$4=$J$3,A109="X",D109<>$O$4),TRUE,FALSE))),MAX($W$25:W108)+1,0) -> 0
B110: X | C110: 3296509132 | D110: 50.8 | E110: 6.5 | F110: 913 | G110: 139.4615385 | H110: 131.4615385 | I110: 630036.8034 | J110: 42059.54427 | K110: 4792.55614 | L110: 26.15803938 | M110: 4 | N110: 0.4908422461 | O110: 6.579442782 | P110: 218.3106102 | Q110: 243.9949651 | R110: 0 | S110: 53125 | T110: 4687.065512 | U110: -2187.065512 | V110: 0 | W110: =IF(AND(R110=1,S110>=SC_LT,V110<>0,OR(IF(AND($G$4=$J$4,B110="X"),TRUE,FALSE),IF(AND($G$4=$J$3,A110="X",D110<>$O$4),TRUE,FALSE))),MAX($W$25:W109)+1,0) -> 0
B111: X | C111: 3296509892 | D111: 50.8 | E111: 6.5 | F111: 989 | G111: 151.1538462 | H111: 143.1538462 | I111: 630036.8034 | J111: 42059.54427 | K111: 4401.116842 | L111: 28.35110169 | M111: 4 | N111: 0.5344981978 | O111: 6.623098733 | P111: 201.2803182 | Q111: 224.8668644 | R111: 0 | S111: 71875 | T111: 4992.200567 | U111: -2492.200567 | V111: 0 | W111: =IF(AND(R111=1,S111>=SC_LT,V111<>0,OR(IF(AND($G$4=$J$4,B111="X"),TRUE,FALSE),IF(AND($G$4=$J$3,A111="X",D111<>$O$4),TRUE,FALSE))),MAX($W$25:W110)+1,0) -> 0
B112: X | C112: 3296510642 | D112: =INDEX($O$3:$O$4,MATCH(VALUE(LEFT(C112,3)),$Q$3:$Q$4,0)) -> 50.8 | E112: =VALUE(RIGHT(LEFT(C112,5),2))/10 -> 6.5 | F112: =VALUE(RIGHT(LEFT(C112,9),4)) -> 1064 | G112: =(F112/E112)-1 -> 162.6923077 | H112: =G112-VLOOKUP(D112,$O$3:$P$4,2,0) -> 154.6923077 | I112: =(($E112^4)*206000*PI())/(32*($D112+$E112)) -> 630036.8034 | J112: =((E112^3)*VLOOKUP(E112,$O$7:$P$13,2,0)*PI())/32 -> 42059.54427 | K112: =I112/H112 -> 4072.83861 | L112: =((PI()*((E112/2)^2))*(PI()*(D112+E112)))*G112*(7.85/1000000)*M112 -> 30.51530793 | M112: 4 | N112: =((SC_LMT/M112)+SC_SBD)/K112 -> 0.5775797291 | O112: =N112+SC_RDT -> 6.666180264 | P112: =((((O112+SC_TOL_MIN)*K112)-SC_SBD)*M112)/(SC_HMA*9.81) -> 186.9979654 | Q112: =((((O112+SC_TOL_PLUS)*K112)-SC_SBD)*M112)/(SC_HMA*9.81) -> 208.8251968 | R112: =IF(AND(SC_W>=P112,SC_W<=Q112),1,0) -> 0 | S112: =_xlfn.IFNA(VLOOKUP(ROUND(VLOOKUP(ROUND(1-(SC_RDT/O112),2),SC_LT_TABLE,2,0)-(($I112*O112)/($H112*J112)),2),SC_LT_TABLE,3,0),0) -> 84375 | T112: =((F112+(O112*E112)+$K$9+$K$8+$K$11)*M112)+IF(M112=4,$K$10,0) -> 5293.320687 | U112: =SC_DW-T112 -> -2793.320687 | V112: 0 | W112: =IF(AND(R112=1,S112>=SC_LT,V112<>0,OR(IF(AND($G$4=$J$4,B112="X"),TRUE,FALSE),IF(AND($G$4=$J$3,A112="X",D112<>$O$4),TRUE,FALSE))),MAX($W$25:W111)+1,0) -> 0
B113: X | C113: 3296511402 | D113: 50.8 | E113: 6.5 | F113: 1140 | G113: 174.3846154 | H113: 166.3846154 | I113: 630036.8034 | J113: 42059.54427 | K113: 3786.628962 | L113: 32.70837025 | M113: 4 | N113: 0.6212356807 | O113: 6.709836216 | P113: 174.5458843 | Q113: 194.8392558 | R113: 0 | S113: 100000 | T113: 5598.455742 | U113: -3098.455742 | V113: =IF(U113>=$K$15,$J$15,IF(U113>=$K$14,$J$14,IF(AND(U113>=$K$13,M113=4),$J$14,IF(U113>=$K$13,$J$13,0)))) -> 0 | W113: =IF(AND(R113=1,S113>=SC_LT,V113<>0,OR(IF(AND($G$4=$J$4,B113="X"),TRUE,FALSE),IF(AND($G$4=$J$3,A113="X",D113<>$O$4),TRUE,FALSE))),MAX($W$25:W112)+1,0) -> 0
B114: X | C114: 3296512162 | D114: 50.8 | E114: 6.5 | F114: 1216 | G114: 186.0769231 | H114: 178.0769231 | I114: 630036.8034 | J114: 42059.54427 | K114: 3538.003647 | L114: 34.90143257 | M114: 4 | N114: 0.6648916324 | O114: 6.753492168 | P114: 163.7289793 | Q114: 182.6899134 | R114: 0 | S114: 142857 | T114: 5903.590796 | U114: -3403.590796 | V114: 0 | W114: =IF(AND(R114=1,S114>=SC_LT,V114<>0,OR(IF(AND($G$4=$J$4,B114="X"),TRUE,FALSE),IF(AND($G$4=$J$3,A114="X",D114<>$O$4),TRUE,FALSE))),MAX($W$25:W113)+1,0) -> 0
B115: X | C115: 3396510182 | D115: 66.675 | E115: 6.5 | F115: 1018 | G115: 155.6153846 | H115: 148.6153846 | I115: 493353.0418 | J115: 42059.54427 | K115: 3319.663325 | L115: 37.27446142 | M115: 4 | N115: 0.70862277 | O115: 6.797223305 | P115: 154.229679 | Q115: 172.0204796 | R115: 0 | S115: 185714 | T115: 5112.727806 | U115: -2612.727806 | V115: 0 | W115: =IF(AND(R115=1,S115>=SC_LT,V115<>0,OR(IF(AND($G$4=$J$4,B115="X"),TRUE,FALSE),IF(AND($G$4=$J$3,A115="X",D115<>$O$4),TRUE,FALSE))),MAX($W$25:W114)+1,0) -> 0
B116: X | C116: 3396510772 | D116: 66.675 | E116: 6.5 | F116: 1077 | G116: 164.6923077 | H116: 157.6923077 | I116: 493353.0418 | J116: 42059.54427 | K116: 3128.580265 | L116: 39.44865145 | M116: 4 | N116: 0.7519030427 | O116: 6.840503578 | P116: 145.9162564 | Q116: 162.6830012 | R116: 0 | S116: 225000 | T116: 5349.853093 | U116: -2849.853093 | V116: 0 | W116: =IF(AND(R116=1,S116>=SC_LT,V116<>0,OR(IF(AND($G$4=$J$4,B116="X"),TRUE,FALSE),IF(AND($G$4=$J$3,A116="X",D116<>$O$4),TRUE,FALSE))),MAX($W$25:W115)+1,0) -> 0
B117: X | C117: 3396511372 | D117: 66.675 | E117: 6.5 | F117: 1137 | G117: 173.9230769 | H117: 166.9230769 | I117: 493353.0418 | J117: 42059.54427 | K117: 2955.571218 | L117: 41.65969217 | M117: 4 | N117: 0.7959168793 | O117: 6.884517415 | P117: 138.3891772 | Q117: 154.2287287 | R117: 0 | S117: 262500 | T117: 5590.997453 | U117: -3090.997453 | V117: 0 | W117: =IF(AND(R117=1,S117>=SC_LT,V117<>0,OR(IF(AND($G$4=$J$4,B117="X"),TRUE,FALSE),IF(AND($G$4=$J$3,A117="X",D117<>$O$4),TRUE,FALSE))),MAX($W$25:W116)+1,0) -> 0
B118: X | C118: 3397008372 | D118: 66.675 | E118: 7 | F118: 837 | G118: 118.5714286 | H118: 111.5714286 | I118: 659081.5134 | J118: 51857.87723 | K118: 5907.260684 | L118: 33.16390627 | M118: 4 | N118: 0.3982199443 | O118: 6.48682048 | P118: 266.8078969 | Q118: 298.4661968 | R118: 0 | S118: 56250 | T118: 4393.630973 | U118: -1893.630973 | V118: 0 | W118: =IF(AND(R118=1,S118>=SC_LT,V118<>0,OR(IF(AND($G$4=$J$4,B118="X"),TRUE,FALSE),IF(AND($G$4=$J$3,A118="X",D118<>$O$4),TRUE,FALSE))),MAX($W$25:W117)+1,0) -> 0
B119: X | C119: 3397009062 | D119: 66.675 | E119: 7 | F119: 906 | G119: 128.4285714 | H119: 121.4285714 | I119: 659081.5134 | J119: 51857.87723 | K119: 5427.73011 | L119: 35.92090571 | M119: 4 | N119: 0.4334019881 | O119: 6.522002523 | P119: 245.9450308 | Q119: 275.0334216 | R119: 0 | S119: 75000 | T119: 4670.616071 | U119: -2170.616071 | V119: 0 | W119: =IF(AND(R119=1,S119>=SC_LT,V119<>0,OR(IF(AND($G$4=$J$4,B119="X"),TRUE,FALSE),IF(AND($G$4=$J$3,A119="X",D119<>$O$4),TRUE,FALSE))),MAX($W$25:W118)+1,0) -> 0
B120: X | C120: 3397009752 | D120: 66.675 | E120: 7 | F120: 975 | G120: 138.2857143 | H120: 131.2857143 | I120: 659081.5134 | J120: 51857.87723 | K120: 5020.207393 | L120: 38.67790514 | M120: 4 | N120: 0.4685840318 | O120: 6.557184567 | P120: 228.2149998 | Q120: 255.1193874 | R120: 0 | S120: 90625 | T120: 4947.601168 | U120: -2447.601168 | V120: 0 | W120: =IF(AND(R120=1,S120>=SC_LT,V120<>0,OR(IF(AND($G$4=$J$4,B120="X"),TRUE,FALSE),IF(AND($G$4=$J$3,A120="X",D120<>$O$4),TRUE,FALSE))),MAX($W$25:W119)+1,0) -> 0
B121: X | C121: 3397010442 | D121: 66.675 | E121: 7 | F121: 1044 | G121: 148.1428571 | H121: 141.1428571 | I121: 659081.5134 | J121: 51857.87723 | K121: 4669.605864 | L121: 41.43490458 | M121: 4 | N121: 0.5037660755 | O121: 6.592366611 | P121: 212.9614306 | Q121: 237.9868681 | R121: 0 | S121: 114286 | T121: 5224.586265 | U121: -2724.586265 | V121: 0 | W121: =IF(AND(R121=1,S121>=SC_LT,V121<>0,OR(IF(AND($G$4=$J$4,B121="X"),TRUE,FALSE),IF(AND($G$4=$J$3,A121="X",D121<>$O$4),TRUE,FALSE))),MAX($W$25:W120)+1,0) -> 0
B122: X | C122: 3397011132 | D122: 66.675 | E122: 7 | F122: 1113 | G122: 158 | H122: 151 | I122: 659081.5134 | J122: 51857.87723 | K122: 4364.778235 | L122: 44.19190402 | M122: 4 | N122: 0.5389481193 | O122: 6.627548655 | P122: 199.6993397 | Q122: 223.0911394 | R122: 0 | S122: 157143 | T122: 5501.571362 | U122: -3001.571362 | V122: 0 | W122: =IF(AND(R122=1,S122>=SC_LT,V122<>0,OR(IF(AND($G$4=$J$4,B122="X"),TRUE,FALSE),IF(AND($G$4=$J$3,A122="X",D122<>$O$4),TRUE,FALSE))),MAX($W$25:W121)+1,0) -> 0
B123: X | C123: 3397011832 | D123: 66.675 | E123: 7 | F123: 1183 | G123: 168 | H123: 161 | I123: 659081.5134 | J123: 51857.87723 | K123: 4093.673996 | L123: 46.98885997 | M123: 4 | N123: 0.5746400477 | O123: 6.663240583 | P123: 187.9044475 | Q123: 209.8433403 | R123: 0 | S123: 200000 | T123: 5782.570736 | U123: -3282.570736 | V123: 0 | W123: =IF(AND(R123=1,S123>=SC_LT,V123<>0,OR(IF(AND($G$4=$J$4,B123="X"),TRUE,FALSE),IF(AND($G$4=$J$3,A123="X",D123<>$O$4),TRUE,FALSE))),MAX($W$25:W122)+1,0) -> 0
B124: X | C124: 3397012522 | D124: 66.675 | E124: 7 | F124: 1252 | G124: 177.8571429 | H124: 170.8571429 | I124: 659081.5134 | J124: 51857.87723 | K124: 3857.500497 | L124: 49.74585941 | M124: 4 | N124: 0.6098220915 | O124: 6.698422627 | P124: 177.6292818 | Q124: 198.3024692 | R124: 0 | S124: 237500 | T124: 6059.555834 | U124: -3559.555834 | V124: 0 | W124: =IF(AND(R124=1,S124>=SC_LT,V124<>0,OR(IF(AND($G$4=$J$4,B124="X"),TRUE,FALSE),IF(AND($G$4=$J$3,A124="X",D124<>$O$4),TRUE,FALSE))),MAX($W$25:W123)+1,0) -> 0
C125: =ROUND(D125,0)&"x"&E125&"-"&ROUND(F125,0) -> 51x5-423 | D125: 50.8 | E125: 5 | F125: =(G125+1)*E125 -> 422.8970533 | G125: =H125+VLOOKUP(D125,$O$3:$P$4,2,0) -> 83.57941066 | H125: =I125/K125 -> 75.57941066 | I125: =(($E125^4)*206000*PI())/(32*($D125+$E125)) -> 226523.3278 | J125: =((E125^3)*VLOOKUP(E125,$O$7:$P$13,2,0)*PI())/32 -> 20371.26486 | K125: =(SC_HMT-SC_LMT)/(M125*SC_RDT) -> 2997.156578 | L125: =((PI()*((E125/2)^2))*(PI()*(D125+E125)))*G125*(7.85/1000000)*M125 -> 4.516613399 | M125: 2 | N125: =((SC_LMT/M125)+SC_SBD)/K125 -> 1.242537033 | O125: =N125+SC_RDT -> 7.331137568 | P125: =((((O125+SC_TOL_MIN)*K125)-SC_SBD)*M125)/(SC_HMA*9.81) -> 75 | Q125: =((((O125+SC_TOL_PLUS)*K125)-SC_SBD)*M125)/(SC_HMA*9.81) -> 83.03120828 | R125: =IF(AND(SC_W>=P125,SC_W<=Q125),1,0) -> 1 | S125: =_xlfn.IFNA(VLOOKUP(ROUND(VLOOKUP(ROUND(1-(SC_RDT/O125),2),SC_LT_TABLE,2,0)-(($I125*O125)/($H125*J125)),2),SC_LT_TABLE,3,0),0) -> 0 | T125: =((F125+(O125*E125)+$K$9+$K$8+$K$11)*M125)+IF(M125=4,$K$10,0) -> 1293.105482 | U125: =SC_DW-T125 -> 1206.894518 | V125: =IF(U125>=$K$15,$J$15,IF(U125>=$K$14,$J$14,IF(AND(U125>=$K$13,M125=4),$J$14,IF(U125>=$K$13,$J$13,0)))) -> Ex_Center | W125: =IF(AND(R125=1,S125>=SC_LT,V125<>0,OR(IF(AND($G$4=$J$4,B125="X"),TRUE,FALSE),IF(AND($G$4=$J$3,A125="X",D125<>$O$4),TRUE,FALSE))),MAX($W$25:W124)+1,0) -> 0
C126: 51x5,5-653 | D126: 50.8 | E126: 5.5 | F126: 652.7019479 | G126: 117.6730814 | H126: 109.6730814 | I126: 328707.3975 | J126: 26624.13871 | K126: 2997.156578 | L126: 7.763370385 | M126: 2 | N126: 1.242537033 | O126: 7.331137568 | P126: 75 | Q126: 83.03120828 | R126: 1 | S126: 30000 | T126: 1760.046409 | U126: 739.953591 | V126: Ex_Center | W126: =IF(AND(R126=1,S126>=SC_LT,V126<>0,OR(IF(AND($G$4=$J$4,B126="X"),TRUE,FALSE),IF(AND($G$4=$J$3,A126="X",D126<>$O$4),TRUE,FALSE))),MAX($W$25:W125)+1,0) -> 0
C127: 51x6-978 | D127: 50.8 | E127: 6 | F127: 977.7737112 | G127: 161.9622852 | H127: 153.9622852 | I127: 461449.0759 | J127: 33717.14315 | K127: 2997.156578 | L127: 12.8293348 | M127: 2 | N127: 1.242537033 | O127: 7.331137568 | P127: 75 | Q127: 83.03120828 | R127: 1 | S127: 84375 | T127: 2417.521073 | U127: 82.47892683 | V127: No cut | W127: =IF(AND(R127=1,S127>=SC_LT,V127<>0,OR(IF(AND($G$4=$J$4,B127="X"),TRUE,FALSE),IF(AND($G$4=$J$3,A127="X",D127<>$O$4),TRUE,FALSE))),MAX($W$25:W126)+1,0) -> 0
C128: 67x6-770 | D128: 66.675 | E128: 6 | F128: 769.986196 | G128: 127.3310327 | H128: 120.3310327 | I128: 360650.9461 | J128: 33717.14315 | K128: 2997.156578 | L128: 12.90509509 | M128: 2 | N128: 1.242537033 | O128: 7.331137568 | P128: 75 | Q128: 83.03120828 | R128: 1 | S128: 84375 | T128: 2001.946043 | U128: 498.0539572 | V128: Ex_Center | W128: =IF(AND(R128=1,S128>=SC_LT,V128<>0,OR(IF(AND($G$4=$J$4,B128="X"),TRUE,FALSE),IF(AND($G$4=$J$3,A128="X",D128<>$O$4),TRUE,FALSE))),MAX($W$25:W127)+1,0) -> 0
C129: 51x6,5-1425 | D129: 50.8 | E129: 6.5 | F129: 1424.874801 | G129: 218.2115078 | H129: 210.2115078 | I129: 630036.8034 | J129: 42059.54427 | K129: 2997.156578 | L129: 20.46437059 | M129: 2 | N129: 1.242537033 | O129: 7.331137568 | P129: 75 | Q129: 83.03120828 | R129: 1 | S129: 212500 | T129: 3319.05439 | U129: -819.0543896 | V129: 0 | W129: =IF(AND(R129=1,S129>=SC_LT,V129<>0,OR(IF(AND($G$4=$J$4,B129="X"),TRUE,FALSE),IF(AND($G$4=$J$3,A129="X",D129<>$O$4),TRUE,FALSE))),MAX($W$25:W128)+1,0) -> 0
C130: 67x6,5-1122 | D130: 66.675 | E130: 6.5 | F130: 1121.945693 | G130: 171.6070297 | H130: 164.6070297 | I130: 493353.0418 | J130: 42059.54427 | K130: 2997.156578 | L130: 20.55246537 | M130: 2 | N130: 1.242537033 | O130: 7.331137568 | P130: 75 | Q130: 83.03120828 | R130: 1 | S130: 212500 | T130: 2713.196174 | U130: -213.1961741 | V130: 0 | W130: =IF(AND(R130=1,S130>=SC_LT,V130<>0,OR(IF(AND($G$4=$J$4,B130="X"),TRUE,FALSE),IF(AND($G$4=$J$3,A130="X",D130<>$O$4),TRUE,FALSE))),MAX($W$25:W129)+1,0) -> 0
C131: 67x7-1595 | D131: 66.675 | E131: 7 | F131: 1595.315839 | G131: 226.9022628 | H131: 219.9022628 | I131: 659081.5134 | J131: 51857.87723 | K131: 2997.156578 | L131: 31.7317817 | M131: 2 | N131: 1.242537033 | O131: 7.331137568 | P131: 75 | Q131: 83.03120828 | R131: 1 | S131: 330000 | T131: 3667.267605 | U131: -1167.267605 | V131: 0 | W131: =IF(AND(R131=1,S131>=SC_LT,V131<>0,OR(IF(AND($G$4=$J$4,B131="X"),TRUE,FALSE),IF(AND($G$4=$J$3,A131="X",D131<>$O$4),TRUE,FALSE))),MAX($W$25:W130)+1,0) -> 0
C132: 67x7,5-2219 | D132: 66.675 | E132: 7.5 | F132: 2218.770351 | G132: 294.8360467 | H132: 287.8360467 | I132: 862689.7009 | J132: 62540.39672 | K132: 2997.156578 | L132: 47.6540776 | M132: 2 | N132: 1.242537033 | O132: 7.331137568 | P132: 75 | Q132: 83.03120828 | R132: 1 | S132: 400000 | T132: 4921.507765 | U132: -2421.507765 | V132: 0 | W132: =IF(AND(R132=1,S132>=SC_LT,V132<>0,OR(IF(AND($G$4=$J$4,B132="X"),TRUE,FALSE),IF(AND($G$4=$J$3,A132="X",D132<>$O$4),TRUE,FALSE))),MAX($W$25:W131)+1,0) -> 0
C133: 51x5-801 | D133: 50.8 | E133: 5 | F133: 800.7941066 | G133: 159.1588213 | H133: 151.1588213 | I133: 226523.3278 | J133: 20371.26486 | K133: 1498.578289 | L133: 17.20181703 | M133: 4 | N133: 1.569747165 | O133: 7.6583477 | P133: 75 | Q133: 83.03120828 | R133: 1 | S133: 171429 | T133: 4220.34338 | U133: -1720.34338 | V133: 0 | W133: =IF(AND(R133=1,S133>=SC_LT,V133<>0,OR(IF(AND($G$4=$J$4,B133="X"),TRUE,FALSE),IF(AND($G$4=$J$3,A133="X",D133<>$O$4),TRUE,FALSE))),MAX($W$25:W132)+1,0) -> 0
C134: 51x5,5-1256 | D134: 50.8 | E134: 5.5 | F134: 1255.903896 | G134: 227.3461629 | H134: 219.3461629 | I134: 328707.3975 | J134: 26624.13871 | K134: 1498.578289 | L134: 29.99789665 | M134: 4 | N134: 1.569747165 | O134: 7.6583477 | P134: 75 | Q134: 83.03120828 | R134: 1 | S134: 330000 | T134: 6056.099233 | U134: -3556.099233 | V134: 0 | W134: =IF(AND(R134=1,S134>=SC_LT,V134<>0,OR(IF(AND($G$4=$J$4,B134="X"),TRUE,FALSE),IF(AND($G$4=$J$3,A134="X",D134<>$O$4),TRUE,FALSE))),MAX($W$25:W133)+1,0) -> 0
C135: 51x6-1902 | D135: 50.8 | E135: 6 | F135: 1901.547422 | G135: 315.9245704 | H135: 307.9245704 | I135: 461449.0759 | J135: 33717.14315 | K135: 1498.578289 | L135: 50.04994934 | M135: 4 | N135: 1.569747165 | O135: 7.6583477 | P135: 75 | Q135: 83.03120828 | R135: 1 | S135: 420000 | T135: 8653.990034 | U135: -6153.990034 | V135: 0 | W135: =IF(AND(R135=1,S135>=SC_LT,V135<>0,OR(IF(AND($G$4=$J$4,B135="X"),TRUE,FALSE),IF(AND($G$4=$J$3,A135="X",D135<>$O$4),TRUE,FALSE))),MAX($W$25:W134)+1,0) -> 0
C136: 67x6-1492 | D136: 66.675 | E136: 6 | F136: 1491.972392 | G136: 247.6620653 | H136: 240.6620653 | I136: 360650.9461 | J136: 33717.14315 | K136: 1498.578289 | L136: 50.20146992 | M136: 4 | N136: 1.569747165 | O136: 7.6583477 | P136: 75 | Q136: 83.03120828 | R136: 1 | S136: 420000 | T136: 7015.689913 | U136: -4515.689913 | V136: 0 | W136: =IF(AND(R136=1,S136>=SC_LT,V136<>0,OR(IF(AND($G$4=$J$4,B136="X"),TRUE,FALSE),IF(AND($G$4=$J$3,A136="X",D136<>$O$4),TRUE,FALSE))),MAX($W$25:W135)+1,0) -> 0
C137: 51x6,5-2791 | D137: 50.8 | E137: 6.5 | F137: 2791.249601 | G137: 428.4230156 | H137: 420.4230156 | I137: 630036.8034 | J137: 42059.54427 | K137: 1498.578289 | L137: 80.35696604 | M137: 4 | N137: 1.569747165 | O137: 7.6583477 | P137: 75 | Q137: 83.03120828 | R137: 1 | S137: 490000 | T137: 12228.11545 | U137: -9728.115445 | V137: 0 | W137: =IF(AND(R137=1,S137>=SC_LT,V137<>0,OR(IF(AND($G$4=$J$4,B137="X"),TRUE,FALSE),IF(AND($G$4=$J$3,A137="X",D137<>$O$4),TRUE,FALSE))),MAX($W$25:W136)+1,0) -> 0
C138: 67x6,5-2192 | D138: 66.675 | E138: 6.5 | F138: 2191.891386 | G138: 336.2140593 | H138: 329.2140593 | I138: 493353.0418 | J138: 42059.54427 | K138: 1498.578289 | L138: 80.5331556 | M138: 4 | N138: 1.569747165 | O138: 7.6583477 | P138: 75 | Q138: 83.03120828 | R138: 1 | S138: 490000 | T138: 9830.682583 | U138: -7330.682583 | V138: 0 | W138: =IF(AND(R138=1,S138>=SC_LT,V138<>0,OR(IF(AND($G$4=$J$4,B138="X"),TRUE,FALSE),IF(AND($G$4=$J$3,A138="X",D138<>$O$4),TRUE,FALSE))),MAX($W$25:W137)+1,0) -> 0
C139: 67x7-3135 | D139: 66.675 | E139: 7 | F139: 3134.631679 | G139: 446.8045255 | H139: 439.8045255 | I139: 659081.5134 | J139: 51857.87723 | K139: 1498.578289 | L139: 124.9692576 | M139: 4 | N139: 1.569747165 | O139: 7.6583477 | P139: 75 | Q139: 83.03120828 | R139: 1 | S139: 540000 | T139: 13616.96045 | U139: -11116.96045 | V139: 0 | W139: =IF(AND(R139=1,S139>=SC_LT,V139<>0,OR(IF(AND($G$4=$J$4,B139="X"),TRUE,FALSE),IF(AND($G$4=$J$3,A139="X",D139<>$O$4),TRUE,FALSE))),MAX($W$25:W138)+1,0) -> 0
C140: 67x7,5-4378 | D140: 66.675 | E140: 7.5 | F140: 4377.540701 | G140: 582.6720935 | H140: 575.6720935 | I140: 862689.7009 | J140: 62540.39672 | K140: 1498.578289 | L140: 188.3535033 | M140: 4 | N140: 1.569747165 | O140: 7.6583477 | P140: 75 | Q140: 83.03120828 | R140: 1 | S140: 580000 | T140: 18603.91324 | U140: -16103.91324 | V140: 0 | W140: =IF(AND(R140=1,S140>=SC_LT,V140<>0,OR(IF(AND($G$4=$J$4,B140="X"),TRUE,FALSE),IF(AND($G$4=$J$3,A140="X",D140<>$O$4),TRUE,FALSE))),MAX($W$25:W139)+1,0) -> 0
C141: 51x5-234 | D141: 50.8 | E141: 5 | F141: 233.9485266 | G141: 45.78970533 | H141: 37.78970533 | I141: 226523.3278 | J141: 20371.26486 | K141: 5994.313156 | L141: 1.23723292 | M141: 1 | N141: 1.078931967 | O141: 7.167532502 | P141: 75 | Q141: 83.03120828 | R141: 1 | S141: 0 | T141: 456.7861891 | U141: 2043.213811 | V141: Ex_Center | W141: =IF(AND(R141=1,S141>=SC_LT,V141<>0,OR(IF(AND($G$4=$J$4,B141="X"),TRUE,FALSE),IF(AND($G$4=$J$3,A141="X",D141<>$O$4),TRUE,FALSE))),MAX($W$25:W140)+1,0) -> 0
C142: 51x5,5-351 | D142: 50.8 | E142: 5.5 | F142: 351.1009739 | G142: 62.83654072 | H142: 54.83654072 | I142: 328707.3975 | J142: 26624.13871 | K142: 5994.313156 | L142: 2.072790707 | M142: 1 | N142: 1.078931967 | O142: 7.167532502 | P142: 75 | Q142: 83.03120828 | R142: 1 | S142: 0 | T142: 577.5224027 | U142: 1922.477597 | V142: Ex_Center | W142: =IF(AND(R142=1,S142>=SC_LT,V142<>0,OR(IF(AND($G$4=$J$4,B142="X"),TRUE,FALSE),IF(AND($G$4=$J$3,A142="X",D142<>$O$4),TRUE,FALSE))),MAX($W$25:W141)+1,0) -> 0
C143: 51x6-516 | D143: 50.8 | E143: 6 | F143: 515.8868556 | G143: 84.9811426 | H143: 76.9811426 | I143: 461449.0759 | J143: 33717.14315 | K143: 5994.313156 | L143: 3.365757431 | M143: 1 | N143: 1.078931967 | O143: 7.167532502 | P143: 75 | Q143: 83.03120828 | R143: 1 | S143: 0 | T143: 745.8920506 | U143: 1754.107949 | V143: Ex_Center | W143: =IF(AND(R143=1,S143>=SC_LT,V143<>0,OR(IF(AND($G$4=$J$4,B143="X"),TRUE,FALSE),IF(AND($G$4=$J$3,A143="X",D143<>$O$4),TRUE,FALSE))),MAX($W$25:W142)+1,0) -> 0
C144: 67x6-409 | D144: 66.675 | E144: 6 | F144: 408.993098 | G144: 67.16551633 | H144: 60.16551633 | I144: 360650.9461 | J144: 33717.14315 | K144: 5994.313156 | L144: 3.403637577 | M144: 1 | N144: 1.078931967 | O144: 7.167532502 | P144: 75 | Q144: 83.03120828 | R144: 1 | S144: 0 | T144: 638.998293 | U144: 1861.001707 | V144: Ex_Center | W144: =IF(AND(R144=1,S144>=SC_LT,V144<>0,OR(IF(AND($G$4=$J$4,B144="X"),TRUE,FALSE),IF(AND($G$4=$J$3,A144="X",D144<>$O$4),TRUE,FALSE))),MAX($W$25:W143)+1,0) -> 0
C145: 51x6,5-742 | D145: 50.8 | E145: 6.5 | F145: 741.6874003 | G145: 113.1057539 | H145: 105.1057539 | I145: 630036.8034 | J145: 42059.54427 | K145: 5994.313156 | L145: 5.303657188 | M145: 1 | N145: 1.078931967 | O145: 7.167532502 | P145: 75 | Q145: 83.03120828 | R145: 1 | S145: 10833 | T145: 975.2763616 | U145: 1524.723638 | V145: Ex_Center | W145: =IF(AND(R145=1,S145>=SC_LT,V145<>0,OR(IF(AND($G$4=$J$4,B145="X"),TRUE,FALSE),IF(AND($G$4=$J$3,A145="X",D145<>$O$4),TRUE,FALSE))),MAX($W$25:W144)+1,0) -> 0
C146: 67x6,5-587 | D146: 66.675 | E146: 6.5 | F146: 586.9728464 | G146: 89.30351484 | H146: 82.30351484 | I146: 493353.0418 | J146: 42059.54427 | K146: 5994.313156 | L146: 5.347704577 | M146: 1 | N146: 1.078931967 | O146: 7.167532502 | P146: 75 | Q146: 83.03120828 | R146: 1 | S146: 10833 | T146: 820.5618077 | U146: 1679.438192 | V146: Ex_Center | W146: =IF(AND(R146=1,S146>=SC_LT,V146<>0,OR(IF(AND($G$4=$J$4,B146="X"),TRUE,FALSE),IF(AND($G$4=$J$3,A146="X",D146<>$O$4),TRUE,FALSE))),MAX($W$25:W145)+1,0) -> 0
C147: 67x7-826 | D147: 66.675 | E147: 7 | F147: 825.6579197 | G147: 116.9511314 | H147: 109.9511314 | I147: 659081.5134 | J147: 51857.87723 | K147: 5994.313156 | L147: 8.177679071 | M147: 1 | N147: 1.078931967 | O147: 7.167532502 | P147: 75 | Q147: 83.03120828 | R147: 1 | S147: 30000 | T147: 1062.830647 | U147: 1437.169353 | V147: Ex_Center | W147: =IF(AND(R147=1,S147>=SC_LT,V147<>0,OR(IF(AND($G$4=$J$4,B147="X"),TRUE,FALSE),IF(AND($G$4=$J$3,A147="X",D147<>$O$4),TRUE,FALSE))),MAX($W$25:W146)+1,0) -> 0
C148: 67x7,5-1139 | D148: 66.675 | E148: 7.5 | F148: 1139.385175 | G148: 150.9180234 | H148: 143.9180234 | I148: 862689.7009 | J148: 62540.39672 | K148: 5994.313156 | L148: 12.19637028 | M148: 1 | N148: 1.078931967 | O148: 7.167532502 | P148: 75 | Q148: 83.03120828 | R148: 1 | S148: 71875 | T148: 1380.141669 | U148: 1119.858331 | V148: Ex_Center | W148: =IF(AND(R148=1,S148>=SC_LT,V148<>0,OR(IF(AND($G$4=$J$4,B148="X"),TRUE,FALSE),IF(AND($G$4=$J$3,A148="X",D148<>$O$4),TRUE,FALSE))),MAX($W$25:W147)+1,0) -> 0
C149: 51x5-612 | D149: 50.8 | E149: 5 | F149: 611.8455799 | G149: 121.369116 | H149: 113.369116 | I149: 226523.3278 | J149: 20371.26486 | K149: 1998.104385 | L149: 9.838141436 | M149: 3 | N149: 1.406142099 | O149: 7.494742634 | P149: 75 | Q149: 83.03120828 | R149: 1 | S149: 56250 | T149: 2508.957879 | U149: -8.957879251 | V149: 0 | W149: =IF(AND(R149=1,S149>=SC_LT,V149<>0,OR(IF(AND($G$4=$J$4,B149="X"),TRUE,FALSE),IF(AND($G$4=$J$3,A149="X",D149<>$O$4),TRUE,FALSE))),MAX($W$25:W148)+1,0) -> 0
C150: 51x5,5-954 | D150: 50.8 | E150: 5.5 | F150: 954.3029218 | G150: 172.5096222 | H150: 164.5096222 | I150: 328707.3975 | J150: 26624.13871 | K150: 1998.104385 | L150: 17.07173903 | M150: 3 | N150: 1.406142099 | O150: 7.494742634 | P150: 75 | Q150: 83.03120828 | R150: 1 | S150: 157143 | T150: 3547.572019 | U150: -1047.572019 | V150: 0 | W150: =IF(AND(R150=1,S150>=SC_LT,V150<>0,OR(IF(AND($G$4=$J$4,B150="X"),TRUE,FALSE),IF(AND($G$4=$J$3,A150="X",D150<>$O$4),TRUE,FALSE))),MAX($W$25:W149)+1,0) -> 0
C151: 51x6-1440 | D151: 50.8 | E151: 6 | F151: 1439.660567 | G151: 238.9434278 | H151: 230.9434278 | I151: 461449.0759 | J151: 33717.14315 | K151: 1998.104385 | L151: 28.3907321 | M151: 3 | N151: 1.406142099 | O151: 7.494742634 | P151: 75 | Q151: 83.03120828 | R151: 1 | S151: 310000 | T151: 5014.887068 | U151: -2514.887068 | V151: 0 | W151: =IF(AND(R151=1,S151>=SC_LT,V151<>0,OR(IF(AND($G$4=$J$4,B151="X"),TRUE,FALSE),IF(AND($G$4=$J$3,A151="X",D151<>$O$4),TRUE,FALSE))),MAX($W$25:W150)+1,0) -> 0
C152: 67x6-1131 | D152: 66.675 | E152: 6 | F152: 1130.979294 | G152: 187.496549 | H152: 180.496549 | I152: 360650.9461 | J152: 33717.14315 | K152: 1998.104385 | L152: 28.50437254 | M152: 3 | N152: 1.406142099 | O152: 7.494742634 | P152: 75 | Q152: 83.03120828 | R152: 1 | S152: 310000 | T152: 4088.843249 | U152: -1588.843249 | V152: 0 | W152: =IF(AND(R152=1,S152>=SC_LT,V152<>0,OR(IF(AND($G$4=$J$4,B152="X"),TRUE,FALSE),IF(AND($G$4=$J$3,A152="X",D152<>$O$4),TRUE,FALSE))),MAX($W$25:W151)+1,0) -> 0
C153: 51x6,5-2108 | D153: 50.8 | E153: 6.5 | F153: 2108.062201 | G153: 323.3172617 | H153: 315.3172617 | I153: 630036.8034 | J153: 42059.54427 | K153: 1998.104385 | L153: 45.48214021 | M153: 3 | N153: 1.406142099 | O153: 7.494742634 | P153: 75 | Q153: 83.03120828 | R153: 1 | S153: 390000 | T153: 7031.334084 | U153: -4531.334084 | V153: 0 | W153: =IF(AND(R153=1,S153>=SC_LT,V153<>0,OR(IF(AND($G$4=$J$4,B153="X"),TRUE,FALSE),IF(AND($G$4=$J$3,A153="X",D153<>$O$4),TRUE,FALSE))),MAX($W$25:W152)+1,0) -> 0
C154: 67x6,5-1657 | D154: 66.675 | E154: 6.5 | F154: 1656.918539 | G154: 253.9105445 | H154: 246.9105445 | I154: 493353.0418 | J154: 42059.54427 | K154: 1998.104385 | L154: 45.61428238 | M154: 3 | N154: 1.406142099 | O154: 7.494742634 | P154: 75 | Q154: 83.03120828 | R154: 1 | S154: 390000 | T154: 5677.903099 | U154: -3177.903099 | V154: 0 | W154: =IF(AND(R154=1,S154>=SC_LT,V154<>0,OR(IF(AND($G$4=$J$4,B154="X"),TRUE,FALSE),IF(AND($G$4=$J$3,A154="X",D154<>$O$4),TRUE,FALSE))),MAX($W$25:W153)+1,0) -> 0
C155: 67x7-2365 | D155: 66.675 | E155: 7 | F155: 2364.973759 | G155: 336.8533942 | H155: 329.8533942 | I155: 659081.5134 | J155: 51857.87723 | K155: 1998.104385 | L155: 70.66230789 | M155: 3 | N155: 1.406142099 | O155: 7.494742634 | P155: 75 | Q155: 83.03120828 | R155: 1 | S155: 460000 | T155: 7813.310873 | U155: -5313.310873 | V155: 0 | W155: =IF(AND(R155=1,S155>=SC_LT,V155<>0,OR(IF(AND($G$4=$J$4,B155="X"),TRUE,FALSE),IF(AND($G$4=$J$3,A155="X",D155<>$O$4),TRUE,FALSE))),MAX($W$25:W154)+1,0) -> 0
C156: 67x7,5-3298 | D156: 66.675 | E156: 7.5 | F156: 3298.155526 | G156: 438.7540701 | H156: 431.7540701 | I156: 862689.7009 | J156: 62540.39672 | K156: 1998.104385 | L156: 106.3731219 | M156: 3 | N156: 1.406142099 | O156: 7.494742634 | P156: 75 | Q156: 83.03120828 | R156: 1 | S156: 510000 | T156: 10624.09829 | U156: -8124.098287 | V156: 0 | W156: =IF(AND(R156=1,S156>=SC_LT,V156<>0,OR(IF(AND($G$4=$J$4,B156="X"),TRUE,FALSE),IF(AND($G$4=$J$3,A156="X",D156<>$O$4),TRUE,FALSE))),MAX($W$25:W155)+1,0) -> 0
C160: -0.03 | E160: 10000
C161: -0.02 | E161: 10833
C162: -0.01 | E162: 11667
C163: 0 | E163: 12500
C164: 0.01 | D164: 1 | E164: 13125
C165: 0.02 | D165: 1 | E165: 13750
C166: 0.03 | D166: 1 | E166: 14375
C167: 0.04 | D167: 1 | E167: 15000
C168: 0.05 | D168: 1 | E168: 15833
C169: 0.06 | D169: 1 | E169: 16667
C170: 0.07 | D170: 1 | E170: 17500
C171: 0.08 | D171: 1 | E171: 18333
C172: 0.09 | D172: 1 | E172: 19167
C173: 0.1 | D173: 1 | E173: 20000
C174: 0.11 | D174: 1 | E174: 21250
C175: 0.12 | D175: 1 | E175: 22500
C176: 0.13 | D176: 1 | E176: 23750
C177: 0.14 | D177: 1 | E177: 25000
C178: 0.15 | D178: 1 | E178: 26667
C179: 0.16 | D179: 1 | E179: 28333
C180: 0.17 | D180: 1 | E180: 30000
C181: 0.18 | D181: 1 | E181: 31667
C182: 0.19 | D182: 1 | E182: 33333
C183: 0.2 | D183: 1.01 | E183: 35000
C184: 0.21 | D184: 1.01 | E184: 38250
C185: 0.22 | D185: 1.02 | E185: 41500
C186: 0.23 | D186: 1.02 | E186: 44750
C187: 0.24 | D187: 1.03 | E187: 50000
C188: 0.25 | D188: 1.04 | E188: 53125
C189: 0.26 | D189: 1.05 | E189: 56250
C190: 0.27 | D190: 1.05 | E190: 59375
C191: 0.28 | D191: 1.06 | E191: 62500
C192: 0.29 | D192: 1.06 | E192: 65625
C193: 0.3 | D193: 1.07 | E193: 68750
C194: 0.31 | D194: 1.07 | E194: 71875
C195: 0.32 | D195: 1.08 | E195: 75000
C196: 0.33 | D196: 1.08 | E196: 78125
C197: 0.34 | D197: 1.09 | E197: 81250
C198: 0.35 | D198: 1.09 | E198: 84375
C199: 0.36 | D199: 1.09 | E199: 87500
C200: 0.37 | D200: 1.09 | E200: 90625
C201: 0.38 | D201: 1.09 | E201: 93750
C202: 0.39 | D202: 1.09 | E202: 96875
C203: 0.4 | D203: 1.1 | E203: 100000
C204: 0.41 | D204: 1.1 | E204: 114286
C205: 0.42 | D205: 1.1 | E205: 128571
... 58 more rows

Sheet Date (hidden)
A2: today | B2: =TODAY() -> 2021-03-12
A4: release date | B4: 2021-03-01
A5: expiration date | B5: =B4+365 -> 2022-03-01
A7: days | B7: =B2-B4 -> 11
A9: warning | B9: This file is more than one year old.
B10: Please check if you have the latest version.
B11: www.doco-international.com/en/support

Sheet Matrix (hidden)
BT1: =COLUMN() -> 72
B2: DH-KG | C2: 1775 | D2: =C2+25 -> 1800 | E2: =D2+25 -> 1825 | F2: 1850 | G2: 1875 | H2: 1900 | I2: 1925 | J2: 1950 | K2: 1975 | L2: 2000 | M2: 2025 | N2: 2050 | O2: 2075 | P2: 2100 | Q2: 2125 | R2: 2150 | S2: 2175 | T2: 2200 | U2: 2225 | V2: 2250 | W2: 2275 | X2: 2300 | Y2: 2325 | Z2: 2350 | AA2: 2375 | AB2: 2400 | AC2: 2425 | AD2: 2450 | AE2: 2475 | AF2: 2500 | AG2: 2525 | AH2: 2550 | AI2: 2575 | AJ2: 2600 | AK2: 2625 | AL2: 2650 | AM2: 2675 | AN2: 2700 | AO2: 2725 | AP2: 2750 | AQ2: 2775 | AR2: 2800 | AS2: 2825 | AT2: 2850 | AU2: 2875 | AV2: =AU2+25 -> 2900 | AW2: 2925 | AX2: 2950 | AY2: 2975 | AZ2: 3000 | BA2: 3025 | BB2: 3050 | BC2: 3075 | BD2: 3100 | BE2: 3125 | BF2: 3150 | BG2: 3175 | BH2: 3200 | BI2: 3225 | BJ2: 3250 | BK2: 3275 | BL2: 3300 | BM2: 3325 | BN2: 3350 | BO2: 3375 | BP2: 3400 | BQ2: =BP2+25 -> 3425 | BR2: 3450 | BS2: 3475 | BT2: 3500
B3: 40 | C3: 3295006632 | D3: 3295006632 | E3: 3295006632 | F3: - | G3: - | H3: - | I3: - | J3: - | K3: - | L3: - | M3: - | N3: - | O3: - | P3: - | Q3: - | R3: - | S3: - | T3: - | U3: - | V3: - | W3: - | X3: - | Y3: - | Z3: - | AA3: - | AB3: - | AC3: - | AD3: - | AE3: - | AF3: - | AG3: - | AH3: - | AI3: - | AJ3: - | AK3: - | AL3: - | AM3: - | AN3: - | AO3: - | AP3: - | AQ3: - | AR3: - | AS3: - | AT3: - | AU3: - | AV3: - | AW3: - | AX3: - | AY3: - | AZ3: - | BA3: - | BB3: - | BC3: - | BD3: - | BE3: - | BF3: - | BG3: - | BH3: - | BI3: - | BJ3: - | BK3: - | BL3: - | BM3: - | BN3: - | BO3: - | BP3: - | BQ3: - | BR3: - | BS3: - | BT3: -
B4: =B3+2 -> 42 | C4: 3295006192 | D4: 3295006632 | E4: 3295006632 | F4: 3295006632 | G4: 3295006632 | H4: 3295006632 | I4: 3295006632 | J4: - | K4: - | L4: - | M4: - | N4: - | O4: - | P4: - | Q4: - | R4: - | S4: - | T4: - | U4: - | V4: - | W4: - | X4: - | Y4: - | Z4: - | AA4: - | AB4: - | AC4: - | AD4: - | AE4: - | AF4: - | AG4: - | AH4: - | AI4: - | AJ4: - | AK4: - | AL4: - | AM4: - | AN4: - | AO4: - | AP4: - | AQ4: - | AR4: - | AS4: - | AT4: - | AU4: - | AV4: - | AW4: - | AX4: - | AY4: - | AZ4: - | BA4: - | BB4: - | BC4: - | BD4: - | BE4: - | BF4: - | BG4: - | BH4: - | BI4: - | BJ4: - | BK4: - | BL4: - | BM4: - | BN4: - | BO4: - | BP4: - | BQ4: - | BR4: - | BS4: - | BT4: -
B5: =B4+2 -> 44 | C5: 3295006192 | D5: 3295006192 | E5: 3295006192 | F5: 3295006192 | G5: 3295006632 | H5: 3295006632 | I5: 3295006632 | J5: 3295006632 | K5: 3295006632 | L5: 3295006632 | M5: 3295006632 | N5: - | O5: - | P5: - | Q5: - | R5: - | S5: - | T5: - | U5: - | V5: - | W5: - | X5: - | Y5: - | Z5: - | AA5: - | AB5: - | AC5: - | AD5: - | AE5: - | AF5: - | AG5: - | AH5: - | AI5: - | AJ5: - | AK5: - | AL5: - | AM5: - | AN5: - | AO5: - | AP5: - | AQ5: - | AR5: - | AS5: - | AT5: - | AU5: - | AV5: - | AW5: - | AX5: - | AY5: - | AZ5: - | BA5: - | BB5: - | BC5: - | BD5: - | BE5: - | BF5: - | BG5: - | BH5: - | BI5: - | BJ5: - | BK5: - | BL5: - | BM5: - | BN5: - | BO5: - | BP5: - | BQ5: - | BR5: - | BS5: - | BT5: -
B6: 46 | C6: 3295005762 | D6: 3295005762 | E6: 3295006192 | F6: 3295006192 | G6: 3295006192 | H6: 3295006192 | I6: 3295006192 | J6: 3295006192 | K6: 3295006632 | L6: 3295006632 | M6: 3295006632 | N6: 3295006632 | O6: 3295006632 | P6: 3295006632 | Q6: 3295006632 | R6: - | S6: - | T6: - | U6: - | V6: - | W6: - | X6: - | Y6: - | Z6: - | AA6: - | AB6: - | AC6: - | AD6: - | AE6: - | AF6: - | AG6: - | AH6: - | AI6: - | AJ6: - | AK6: - | AL6: - | AM6: - | AN6: - | AO6: - | AP6: - | AQ6: - | AR6: - | AS6: - | AT6: - | AU6: - | AV6: - | AW6: - | AX6: - | AY6: - | AZ6: - | BA6: - | BB6: - | BC6: - | BD6: - | BE6: - | BF6: - | BG6: - | BH6: - | BI6: - | BJ6: - | BK6: - | BL6: - | BM6: - | BN6: - | BO6: - | BP6: - | BQ6: - | BR6: - | BS6: - | BT6: -
B7: 48 | C7: 3295005762 | D7: 3295005762 | E7: 3295005762 | F7: 3295005762 | G7: 3295005762 | H7: 3295006192 | I7: 3295006192 | J7: 3295006192 | K7: 3295006192 | L7: 3295006192 | M7: 3295006192 | N7: 3295006192 | O7: 3295006632 | P7: 3295006632 | Q7: 3295006632 | R7: 3295006632 | S7: 3295006632 | T7: 3295006632 | U7: 3295006632 | V7: - | W7: - | X7: - | Y7: - | Z7: - | AA7: - | AB7: - | AC7: - | AD7: - | AE7: - | AF7: - | AG7: - | AH7: - | AI7: - | AJ7: - | AK7: - | AL7: - | AM7: - | AN7: - | AO7: - | AP7: - | AQ7: - | AR7: - | AS7: - | AT7: - | AU7: - | AV7: - | AW7: - | AX7: - | AY7: - | AZ7: - | BA7: - | BB7: - | BC7: - | BD7: - | BE7: - | BF7: - | BG7: - | BH7: - | BI7: - | BJ7: - | BK7: - | BL7: - | BM7: - | BN7: - | BO7: - | BP7: - | BQ7: - | BR7: - | BS7: - | BT7: -
B8: 50 | C8: 3295005332 | D8: 3295005762 | E8: 3295005762 | F8: 3295005762 | G8: 3295005762 | H8: 3295005762 | I8: 3295005762 | J8: 3295005762 | K8: 3295005762 | L8: 3295006192 | M8: 3295006192 | N8: 3295006192 | O8: 3295006192 | P8: 3295006192 | Q8: 3295006192 | R8: 3295006192 | S8: 3295006632 | T8: 3295006632 | U8: 3295006632 | V8: 3295006632 | W8: 3295006632 | X8: 3295006632 | Y8: 3295006632 | Z8: - | AA8: - | AB8: - | AC8: - | AD8: - | AE8: - | AF8: - | AG8: - | AH8: - | AI8: - | AJ8: - | AK8: - | AL8: - | AM8: - | AN8: - | AO8: - | AP8: - | AQ8: - | AR8: - | AS8: - | AT8: - | AU8: - | AV8: - | AW8: - | AX8: - | AY8: - | AZ8: - | BA8: - | BB8: - | BC8: - | BD8: - | BE8: - | BF8: - | BG8: - | BH8: - | BI8: - | BJ8: - | BK8: - | BL8: - | BM8: - | BN8: - | BO8: - | BP8: - | BQ8: - | BR8: - | BS8: - | BT8: -
B9: 52 | C9: 3295005332 | D9: 3295005332 | E9: 3295005332 | F9: 3295005332 | G9: 3295005332 | H9: 3295005762 | I9: 3295005762 | J9: 3295005762 | K9: 3295005762 | L9: 3295005762 | M9: 3295005762 | N9: 3295005762 | O9: 3295006192 | P9: 3295006192 | Q9: 3295006192 | R9: 3295006192 | S9: 3295006192 | T9: 3295006192 | U9: 3295006192 | V9: 3295006632 | W9: 3295006632 | X9: 3295006632 | Y9: 3295006632 | Z9: 3295006632 | AA9: 3295006632 | AB9: 3295006632 | AC9: 3295006632 | AD9: - | AE9: - | AF9: - | AG9: - | AH9: - | AI9: - | AJ9: - | AK9: - | AL9: - | AM9: - | AN9: - | AO9: - | AP9: - | AQ9: - | AR9: - | AS9: - | AT9: - | AU9: - | AV9: - | AW9: - | AX9: - | AY9: - | AZ9: - | BA9: - | BB9: - | BC9: - | BD9: - | BE9: - | BF9: - | BG9: - | BH9: - | BI9: - | BJ9: - | BK9: - | BL9: - | BM9: - | BN9: - | BO9: - | BP9: - | BQ9: - | BR9: - | BS9: - | BT9: -
B10: 54 | C10: 3295005332 | D10: 3295005332 | E10: 3295005332 | F10: 3295005332 | G10: 3295005332 | H10: 3295005332 | I10: 3295005332 | J10: 3295005332 | K10: 3295005762 | L10: 3295005762 | M10: 3295005762 | N10: 3295005762 | O10: 3295005762 | P10: 3295005762 | Q10: 3295005762 | R10: 3295005762 | S10: 3295006192 | T10: 3295006192 | U10: 3295006192 | V10: 3295006192 | W10: 3295006192 | X10: 3295006192 | Y10: 3295006192 | Z10: 3295006632 | AA10: 3295006632 | AB10: 3295006632 | AC10: 3295006632 | AD10: 3295006632 | AE10: 3295006632 | AF10: 3295006632 | AG10: 3295006632 | AH10: - | AI10: - | AJ10: - | AK10: - | AL10: - | AM10: - | AN10: - | AO10: - | AP10: - | AQ10: - | AR10: - | AS10: - | AT10: - | AU10: - | AV10: - | AW10: - | AX10: - | AY10: - | AZ10: - | BA10: - | BB10: - | BC10: - | BD10: - | BE10: - | BF10: - | BG10: - | BH10: - | BI10: - | BJ10: - | BK10: - | BL10: - | BM10: - | BN10: - | BO10: - | BP10: - | BQ10: - | BR10: - | BS10: - | BT10: -
B11: 56 | C11: 3295004902 | D11: 3295004902 | E11: 3295004902 | F11: 3295005332 | G11: 3295005332 | H11: 3295005332 | I11: 3295005332 | J11: 3295005332 | K11: 3295005332 | L11: 3295005332 | M11: 3295005332 | N11: 3295005762 | O11: 3295005762 | P11: 3295005762 | Q11: 3295005762 | R11: 3295005762 | S11: 3295005762 | T11: 3295005762 | U11: 3295005762 | V11: 3295006192 | W11: 3295006192 | X11: 3295006192 | Y11: 3295006192 | Z11: 3295006192 | AA11: 3295006192 | AB11: 3295006192 | AC11: 3295006192 | AD11: 3295006632 | AE11: 3295006632 | AF11: 3295006632 | AG11: 3295006632 | AH11: 3295006632 | AI11: 3295006632 | AJ11: 3295006632 | AK11: 3295006632 | AL11: - | AM11: - | AN11: - | AO11: - | AP11: - | AQ11: - | AR11: - | AS11: - | AT11: - | AU11: - | AV11: - | AW11: - | AX11: - | AY11: - | AZ11: - | BA11: - | BB11: - | BC11: - | BD11: - | BE11: - | BF11: - | BG11: - | BH11: - | BI11: - | BJ11: - | BK11: - | BL11: - | BM11: - | BN11: - | BO11: - | BP11: - | BQ11: - | BR11: - | BS11: - | BT11: -
B12: 58 | C12: 3295004902 | D12: 3295004902 | E12: 3295004902 | F12: 3295004902 | G12: 3295004902 | H12: 3295004902 | I12: 3295005332 | J12: 3295005332 | K12: 3295005332 | L12: 3295005332 | M12: 3295005332 | N12: 3295005332 | O12: 3295005332 | P12: 3295005332 | Q12: 3295005762 | R12: 3295005762 | S12: 3295005762 | T12: 3295005762 | U12: 3295005762 | V12: 3295005762 | W12: 3295005762 | X12: 3295005762 | Y12: 3295005762 | Z12: 3295006192 | AA12: 3295006192 | AB12: 3295006192 | AC12: 3295006192 | AD12: 3295006192 | AE12: 3295006192 | AF12: 3295006192 | AG12: 3295006192 | AH12: 3295006632 | AI12: 3295006632 | AJ12: 3295006632 | AK12: 3295006632 | AL12: 3295006632 | AM12: 3295006632 | AN12: 3295006632 | AO12: 3295006632 | AP12: - | AQ12: - | AR12: - | AS12: - | AT12: - | AU12: - | AV12: - | AW12: - | AX12: - | AY12: - | AZ12: - | BA12: - | BB12: - | BC12: - | BD12: - | BE12: - | BF12: - | BG12: - | BH12: - | BI12: - | BJ12: - | BK12: - | BL12: - | BM12: - | BN12: - | BO12: - | BP12: - | BQ12: - | BR12: - | BS12: - | BT12: -
B13: 60 | C13: 3295004482 | D13: 3295004902 | E13: 3295004902 | F13: 3295004902 | G13: 3295004902 | H13: 3295004902 | I13: 3295004902 | J13: 3295004902 | K13: 3295004902 | L13: 3295005332 | M13: 3295005332 | N13: 3295005332 | O13: 3295005332 | P13: 3295005332 | Q13: 3295005332 | R13: 3295005332 | S13: 3295005332 | T13: 3295005332 | U13: 3295005762 | V13: 3295005762 | W13: 3295005762 | X13: 3295005762 | Y13: 3295005762 | Z13: 3295005762 | AA13: 3295005762 | AB13: 3295005762 | AC13: 3295006192 | AD13: 3295006192 | AE13: 3295006192 | AF13: 3295006192 | AG13: 3295006192 | AH13: 3295006192 | AI13: 3295006192 | AJ13: 3295006192 | AK13: 3295006192 | AL13: 3295006632 | AM13: 3295006632 | AN13: 3295006632 | AO13: 3295006632 | AP13: 3295006632 | AQ13: 3295006632 | AR13: 3295006632 | AS13: 3295006632 | AT13: - | AU13: - | AV13: - | AW13: - | AX13: - | AY13: - | AZ13: - | BA13: - | BB13: - | BC13: - | BD13: - | BE13: - | BF13: - | BG13: - | BH13: - | BI13: - | BJ13: - | BK13: - | BL13: - | BM13: - | BN13: - | BO13: - | BP13: - | BQ13: - | BR13: - | BS13: - | BT13: -
B14: 62 | C14: 3295004482 | D14: 3295004482 | E14: 3295004482 | F14: 3295004902 | G14: 3295004902 | H14: 3295004902 | I14: 3295004902 | J14: 3295004902 | K14: 3295004902 | L14: 3295004902 | M14: 3295004902 | N14: 3295004902 | O14: 3295005332 | P14: 3295005332 | Q14: 3295005332 | R14: 3295005332 | S14: 3295005332 | T14: 3295005332 | U14: 3295005332 | V14: 3295005332 | W14: 3295005332 | X14: 3295005762 | Y14: 3295005762 | Z14: 3295005762 | AA14: 3295005762 | AB14: 3295005762 | AC14: 3295005762 | AD14: 3295005762 | AE14: 3295005762 | AF14: 3295005762 | AG14: 3295006192 | AH14: 3295006192 | AI14: 3295006192 | AJ14: 3295006192 | AK14: 3295006192 | AL14: 3295006192 | AM14: 3295006192 | AN14: 3295006192 | AO14: 3295006632 | AP14: 3295006632 | AQ14: 3295006632 | AR14: 3295006632 | AS14: 3295006632 | AT14: 3295006632 | AU14: 3295006632 | AV14: 3295006632 | AW14: 3295006632 | AX14: - | AY14: - | AZ14: - | BA14: - | BB14: - | BC14: - | BD14: - | BE14: - | BF14: - | BG14: - | BH14: - | BI14: - | BJ14: - | BK14: - | BL14: - | BM14: - | BN14: - | BO14: - | BP14: - | BQ14: - | BR14: - | BS14: - | BT14: -
B15: 64 | C15: 3295004482 | D15: 3295004482 | E15: 3295004482 | F15: 3295004482 | G15: 3295004482 | H15: 3295004482 | I15: 3295004902 | J15: 3295004902 | K15: 3295004902 | L15: 3295004902 | M15: 3295004902 | N15: 3295004902 | O15: 3295004902 | P15: 3295004902 | Q15: 3295004902 | R15: 3295005332 | S15: 3295005332 | T15: 3295005332 | U15: 3295005332 | V15: 3295005332 | W15: 3295005332 | X15: 3295005332 | Y15: 3295005332 | Z15: 3295005332 | AA15: 3295005762 | AB15: 3295005762 | AC15: 3295005762 | AD15: 3295005762 | AE15: 3295005762 | AF15: 3295005762 | AG15: 3295005762 | AH15: 3295005762 | AI15: 3295005762 | AJ15: 3295006192 | AK15: 3295006192 | AL15: 3295006192 | AM15: 3295006192 | AN15: 3295006192 | AO15: 3295006192 | AP15: 3295006192 | AQ15: 3295006192 | AR15: 3295006192 | AS15: 3295006632 | AT15: 3295006632 | AU15: 3295006632 | AV15: 3295006632 | AW15: 3295006632 | AX15: 3295006632 | AY15: 3295006632 | AZ15: 3295006632 | BA15: 3295006632 | BB15: - | BC15: - | BD15: - | BE15: - | BF15: - | BG15: - | BH15: - | BI15: - | BJ15: - | BK15: - | BL15: - | BM15: - | BN15: - | BO15: - | BP15: - | BQ15: - | BR15: - | BS15: - | BT15: -
B16: 66 | C16: 3295004482 | D16: 3295004482 | E16: 3295004482 | F16: 3295004482 | G16: 3295004482 | H16: 3295004482 | I16: 3295004482 | J16: 3295004482 | K16: 3295004482 | L16: 3295004902 | M16: 3295004902 | N16: 3295004902 | O16: 3295004902 | P16: 3295004902 | Q16: 3295004902 | R16: 3295004902 | S16: 3295004902 | T16: 3295004902 | U16: 3295005332 | V16: 3295005332 | W16: 3295005332 | X16: 3295005332 | Y16: 3295005332 | Z16: 3295005332 | AA16: 3295005332 | AB16: 3295005332 | AC16: 3295005332 | AD16: 3295005762 | AE16: 3295005762 | AF16: 3295005762 | AG16: 3295005762 | AH16: 3295005762 | AI16: 3295005762 | AJ16: 3295005762 | AK16: 3295005762 | AL16: 3295005762 | AM16: 3295006192 | AN16: 3295006192 | AO16: 3295006192 | AP16: 3295006192 | AQ16: 3295006192 | AR16: 3295006192 | AS16: 3295006192 | AT16: 3295006192 | AU16: 3295006192 | AV16: 3295006192 | AW16: 3295006632 | AX16: 3295006632 | AY16: 3295006632 | AZ16: 3295006632 | BA16: 3295006632 | BB16: 3295006632 | BC16: 3295006632 | BD16: 3295006632 | BE16: 3295006632 | BF16: - | BG16: - | BH16: - | BI16: - | BJ16: - | BK16: - | BL16: - | BM16: - | BN16: - | BO16: - | BP16: - | BQ16: - | BR16: - | BS16: - | BT16: -
B17: 68 | C17: 3295004482 | D17: 3295004482 | E17: 3295004482 | F17: 3295004482 | G17: 3295004482 | H17: 3295004482 | I17: 3295004482 | J17: 3295004482 | K17: 3295004482 | L17: 3295004902 | M17: 3295004902 | N17: 3295004902 | O17: 3295004902 | P17: 3295004902 | Q17: 3295004902 | R17: 3295004902 | S17: 3295004902 | T17: 3295004902 | U17: 3295004902 | V17: 3295005332 | W17: 3295005332 | X17: 3295005332 | Y17: 3295005332 | Z17: 3295005332 | AA17: 3295005332 | AB17: 3295005332 | AC17: 3295005332 | AD17: 3295005332 | AE17: 3295306972 | AF17: 3295005762 | AG17: 3295005762 | AH17: 3295005762 | AI17: 3295005762 | AJ17: 3295005762 | AK17: 3295005762 | AL17: 3295005762 | AM17: 3295005762 | AN17: 3295005762 | AO17: 3295006192 | AP17: 3295006192 | AQ17: 3295006192 | AR17: 3295006192 | AS17: 3295006192 | AT17: 3295006192 | AU17: 3295006192 | AV17: 3295006192 | AW17: 3295006192 | AX17: 3295006192 | AY17: 3295006632 | AZ17: 3295006632 | BA17: 3295006632 | BB17: 3295006632 | BC17: 3295006632 | BD17: 3295006632 | BE17: 3295006632 | BF17: 3295006632 | BG17: 3295006632 | BH17: 3295006632 | BI17: 3295006632 | BJ17: - | BK17: - | BL17: - | BM17: - | BN17: - | BO17: - | BP17: - | BQ17: - | BR17: - | BS17: - | BT17: -
B18: 70 | C18: 3295305512 | D18: 3295305512 | E18: 3295004482 | F18: 3295004482 | G18: 3295004482 | H18: 3295004482 | I18: 3295004482 | J18: 3295004482 | K18: 3295004482 | L18: 3295306002 | M18: 3295306002 | N18: 3295306002 | O18: 3295004902 | P18: 3295004902 | Q18: 3295004902 | R18: 3295004902 | S18: 3295004902 | T18: 3295004902 | U18: 3295306492 | V18: 3295306492 | W18: 3295306492 | X18: 3295306492 | Y18: 3295005332 | Z18: 3295005332 | AA18: 3295005332 | AB18: 3295005332 | AC18: 3295005332 | AD18: 3295005332 | AE18: 3295306972 | AF18: 3295306972 | AG18: 3295306972 | AH18: 3295306972 | AI18: 3295005762 | AJ18: 3295005762 | AK18: 3295005762 | AL18: 3295005762 | AM18: 3295005762 | AN18: 3295307462 | AO18: 3295307462 | AP18: 3295307462 | AQ18: 3295307462 | AR18: 3295307462 | AS18: 3295006192 | AT18: 3295006192 | AU18: 3295006192 | AV18: 3295006192 | AW18: 3295307952 | AX18: 3295307952 | AY18: 3295307952 | AZ18: 3295307952 | BA18: 3295006192 | BB18: 3295006192 | BC18: 3295006632 | BD18: 3295006632 | BE18: 3295006632 | BF18: 3295006632 | BG18: 3295006632 | BH18: 3295006632 | BI18: 3295006632 | BJ18: 3295006632 | BK18: 3295006632 | BL18: 3295006632 | BM18: 3295006632 | BN18: - | BO18: - | BP18: - | BQ18: - | BR18: - | BS18: - | BT18: -
B19: 72 | C19: 3295305032 | D19: 3295305032 | E19: 3295305512 | F19: 3295305512 | G19: 3295305512 | H19: 3295004482 | I19: 3295004482 | J19: 3295004482 | K19: 3295004482 | L19: 3295305512 | M19: 3295305512 | N19: 3295306002 | O19: 3295306002 | P19: 3295306002 | Q19: 3295306002 | R19: 3295004902 | S19: 3295004902 | T19: 3295004902 | U19: 3295306002 | V19: 3295306002 | W19: 3295306492 | X19: 3295306492 | Y19: 3295306492 | Z19: 3295306492 | AA19: 3295306492 | AB19: 3295306492 | AC19: 3295005332 | AD19: 3295306492 | AE19: 3295306972 | AF19: 3295306972 | AG19: 3295306972 | AH19: 3295306972 | AI19: 3295306972 | AJ19: 3295306972 | AK19: 3295306972 | AL19: 3295306972 | AM19: 3295005762 | AN19: 3295307462 | AO19: 3295307462 | AP19: 3295307462 | AQ19: 3295307462 | AR19: 3295307462 | AS19: 3295307462 | AT19: 3295307462 | AU19: 3295307462 | AV19: 3295307952 | AW19: 3295307952 | AX19: 3295307952 | AY19: 3295307952 | AZ19: 3295307952 | BA19: 3295307952 | BB19: 3295307952 | BC19: 3295307952 | BD19: 3295307952 | BE19: 3295006192 | BF19: 3295006192 | BG19: 3295006192 | BH19: 3295006632 | BI19: 3295006632 | BJ19: 3295006632 | BK19: 3295006632 | BL19: 3295006632 | BM19: 3295006632 | BN19: 3295006632 | BO19: 3295006632 | BP19: 3295006632 | BQ19: 3295006632 | BR19: - | BS19: - | BT19: -
B20: 74 | C20: 3295305032 | D20: 3295305032 | E20: 3295305032 | F20: 3295305032 | G20: 3295305032 | H20: 3295305512 | I20: 3295305512 | J20: 3295305512 | K20: 3295004482 | L20: 3295305512 | M20: 3295305512 | N20: 3295305512 | O20: 3295305512 | P20: 3295306002 | Q20: 3295306002 | R20: 3295306002 | S20: 3295306002 | T20: 3295306002 | U20: 3295306002 | V20: 3295306002 | W20: 3295306002 | X20: 3295306002 | Y20: 3295306492 | Z20: 3295306492 | AA20: 3295306492 | AB20: 3295306492 | AC20: 3295306492 | AD20: 3295306492 | AE20: 3295306492 | AF20: 3295306492 | AG20: 3295306492 | AH20: 3295306972 | AI20: 3295306972 | AJ20: 3295306972 | AK20: 3295306972 | AL20: 3295306972 | AM20: 3295306972 | AN20: 3295306972 | AO20: 3295306972 | AP20: 3295306972 | AQ20: 3295307462 | AR20: 3295307462 | AS20: 3295307462 | AT20: 3295307462 | AU20: 3295307462 | AV20: 3295307462 | AW20: 3295307462 | AX20: 3295307462 | AY20: 3295307462 | AZ20: 3295307952 | BA20: 3295307952 | BB20: 3295307952 | BC20: 3295307952 | BD20: 3295307952 | BE20: 3295307952 | BF20: 3295307952 | BG20: 3295307952 | BH20: 3295307952 | BI20: - | BJ20: - | BK20: - | BL20: 3295006632 | BM20: 3295006632 | BN20: 3295006632 | BO20: 3295006632 | BP20: 3295006632 | BQ20: 3295006632 | BR20: - | BS20: - | BT20: -
B21: 76 | C21: 3295305032 | D21: 3295305032 | E21: 3295305032 | F21: 3295305032 | G21: 3295305032 | H21: 3295305032 | I21: 3295305032 | J21: 3295305512 | K21: 3295305512 | L21: 3295305512 | M21: 3295305512 | N21: 3295305512 | O21: 3295305512 | P21: 3295305512 | Q21: 3295305512 | R21: 3295305512 | S21: 3295306002 | T21: 3295306002 | U21: 3295306002 | V21: 3295306002 | W21: 3295306002 | X21: 3295306002 | Y21: 3295306002 | Z21: 3295306002 | AA21: 3295306002 | AB21: 3295306492 | AC21: 3295306492 | AD21: 3295306492 | AE21: 3295306492 | AF21: 3295306492 | AG21: 3295306492 | AH21: 3295306492 | AI21: 3295306492 | AJ21: 3295306492 | AK21: 3295306972 | AL21: 3295306972 | AM21: 3295306972 | AN21: 3295306972 | AO21: 3295306972 | AP21: 3295306972 | AQ21: 3295306972 | AR21: 3295306972 | AS21: 3295306972 | AT21: 3295307462 | AU21: 3295307462 | AV21: 3295307462 | AW21: 3295307462 | AX21: 3295307462 | AY21: 3295307462 | AZ21: 3295307462 | BA21: 3295307462 | BB21: 3295307462 | BC21: 3295307952 | BD21: 3295307952 | BE21: 3295307952 | BF21: 3295307952 | BG21: 3295307952 | BH21: 3295307952 | BI21: 3295307952 | BJ21: 3295307952 | BK21: 3295307952 | BL21: - | BM21: - | BN21: - | BO21: - | BP21: 3295006632 | BQ21: - | BR21: - | BS21: - | BT21: -
B22: 78 | C22: 3295305032 | D22: 3295305032 | E22: 3295305032 | F22: 3295305032 | G22: 3295305032 | H22: 3295305032 | I22: 3295305032 | J22: 3295305032 | K22: 3295305032 | L22: 3295305512 | M22: 3295305512 | N22: 3295305512 | O22: 3295305512 | P22: 3295305512 | Q22: 3295305512 | R22: 3295305512 | S22: 3295305512 | T22: 3295305512 | U22: 3295306002 | V22: 3295306002 | W22: 3295306002 | X22: 3295306002 | Y22: 3295306002 | Z22: 3295306002 | AA22: 3295306002 | AB22: 3295306002 | AC22: 3295306002 | AD22: 3295306002 | AE22: 3295306492 | AF22: 3295306492 | AG22: 3295306492 | AH22: 3295306492 | AI22: 3295306492 | AJ22: 3295306492 | AK22: 3295306492 | AL22: 3295306492 | AM22: 3295306492 | AN22: 3295306972 | AO22: 3295306972 | AP22: 3295306972 | AQ22: 3295306972 | AR22: 3295306972 | AS22: 3295306972 | AT22: 3295306972 | AU22: 3295306972 | AV22: 3295306972 | AW22: 3295307462 | AX22: 3295307462 | AY22: 3295307462 | AZ22: 3295307462 | BA22: 3295307462 | BB22: 3295307462 | BC22: 3295307462 | BD22: 3295307462 | BE22: 3295307462 | BF22: 3295307462 | BG22: 3295307952 | BH22: 3295307952 | BI22: 3295307952 | BJ22: 3295307952 | BK22: 3295307952 | BL22: 3295307952 | BM22: 3295307952 | BN22: 3295307952 | BO22: 3295307952 | BP22: - | BQ22: - | BR22: - | BS22: - | BT22: -
B23: 80 | C23: 3295305032 | D23: 3295305032 | E23: 3295305032 | F23: 3295305032 | G23: 3295305032 | H23: 3295305032 | I23: 3295305032 | J23: 3295305032 | K23: 3295305032 | L23: 3295305032 | M23: 3295305512 | N23: 3295305512 | O23: 3295305512 | P23: 3295305512 | Q23: 3295305512 | R23: 3295305512 | S23: 3295305512 | T23: 3295305512 | U23: 3295305512 | V23: 3295305512 | W23: 3295306002 | X23: 3295306002 | Y23: 3295306002 | Z23: 3295306002 | AA23: 3295306002 | AB23: 3295306002 | AC23: 3295306002 | AD23: 3295306002 | AE23: 3295306002 | AF23: 3295306492 | AG23: 3295306492 | AH23: 3295306492 | AI23: 3295306492 | AJ23: 3295306492 | AK23: 3295306492 | AL23: 3295306492 | AM23: 3295306492 | AN23: 3295306492 | AO23: 3295306492 | AP23: 3295306972 | AQ23: 3295306972 | AR23: 3295306972 | AS23: 3295306972 | AT23: 3295306972 | AU23: 3295306972 | AV23: 3295306972 | AW23: 3295306972 | AX23: 3295306972 | AY23: 3295307462 | AZ23: 3295307462 | BA23: 3295307462 | BB23: 3295307462 | BC23: 3295307462 | BD23: 3295307462 | BE23: 3295307462 | BF23: 3295307462 | BG23: 3295307462 | BH23: 3295307462 | BI23: 3295307952 | BJ23: 3295307952 | BK23: 3295307952 | BL23: 3295307952 | BM23: 3295307952 | BN23: 3295307952 | BO23: 3295307952 | BP23: 3295307952 | BQ23: 3295307952 | BR23: 3295307952 | BS23: 3295307952 | BT23: -
B24: 82 | C24: 3295505412 | D24: 3295505412 | E24: 3295305032 | F24: 3295305032 | G24: 3295305032 | H24: 3295305032 | I24: 3295305032 | J24: 3295305032 | K24: 3295305032 | L24: 3295305032 | M24: 3295505932 | N24: 3295505932 | O24: 3295305512 | P24: 3295305512 | Q24: 3295305512 | R24: 3295305512 | S24: 3295305512 | T24: 3295305512 | U24: 3295305512 | V24: 3295506462 | W24: 3295506462 | X24: 3295506462 | Y24: 3295306002 | Z24: 3295306002 | AA24: 3295306002 | AB24: 3295306002 | AC24: 3295306002 | AD24: 3295306002 | AE24: 3295306002 | AF24: 3295506982 | AG24: 3295506982 | AH24: 3295507512 | AI24: 3295306492 | AJ24: 3295306492 | AK24: 3295306492 | AL24: 3295306492 | AM24: 3295306492 | AN24: 3295306492 | AO24: 3295507512 | AP24: 3295507512 | AQ24: 3295508042 | AR24: 3295508042 | AS24: 3295306972 | AT24: 3295306972 | AU24: 3295306972 | AV24: 3295306972 | AW24: 3295306972 | AX24: 3295306972 | AY24: 3295508042 | AZ24: 3295508572 | BA24: 3295508572 | BB24: 3295508572 | BC24: 3295307462 | BD24: 3295307462 | BE24: 3295307462 | BF24: 3295307462 | BG24: 3295307462 | BH24: 3295508572 | BI24: 3295307462 | BJ24: 3295307462 | BK24: 3295307462 | BL24: 3295307462 | BM24: 3295307952 | BN24: 3295307952 | BO24: 3295307952 | BP24: 3295307952 | BQ24: 3295307952 | BR24: 3295307952 | BS24: 3295307952 | BT24: 3295307952
B25: 84 | C25: 3295505412 | D25: 3295505412 | E25: 3295505412 | F25: 3295505412 | G25: 3295305032 | H25: 3295305032 | I25: 3295305032 | J25: 3295305032 | K25: 3295305032 | L25: 3295505932 | M25: 3295505932 | N25: 3295505932 | O25: 3295505932 | P25: 3295505932 | Q25: 3295305512 | R25: 3295305512 | S25: 3295305512 | T25: 3295305512 | U25: 3295305512 | V25: 3295506462 | W25: 3295506462 | X25: 3295506462 | Y25: 3295506462 | Z25: 3295506462 | AA25: 3295506462 | AB25: 3295306002 | AC25: 3295306002 | AD25: 3295306002 | AE25: 3295506982 | AF25: 3295506982 | AG25: 3295506982 | AH25: 3295506982 | AI25: 3295506982 | AJ25: 3295507512 | AK25: 3295507512 | AL25: 3295306492 | AM25: 3295306492 | AN25: 3295306492 | AO25: 3295507512 | AP25: 3295507512 | AQ25: 3295507512 | AR25: 3295507512 | AS25: 3295507512 | AT25: 3295508042 | AU25: 3295508042 | AV25: 3295306972 | AW25: 3295306972 | AX25: 3295508042 | AY25: 3295508042 | AZ25: 3295508042 | BA25: 3295508042 | BB25: 3295508042 | BC25: 3295508572 | BD25: 3295508572 | BE25: 3295508572 | BF25: 3295307462 | BG25: 3295307462 | BH25: 3295508572 | BI25: 3295508572 | BJ25: 3295508572 | BK25: 3295508572 | BL25: 3295307462 | BM25: 3295307462 | BN25: 3295307462 | BO25: 3295307462 | BP25: 3295307952 | BQ25: 3295307952 | BR25: 3295307952 | BS25: 3295307952 | BT25: 3295307952
B26: 86 | C26: 3295505412 | D26: 3295505412 | E26: 3295505412 | F26: 3295505412 | G26: 3295505412 | H26: 3295505412 | I26: 3295305032 | J26: 3295305032 | K26: 3295305032 | L26: 3295505932 | M26: 3295505932 | N26: 3295505932 | O26: 3295505932 | P26: 3295505932 | Q26: 3295505932 | R26: 3295505932 | S26: 3295505932 | T26: 3295305512 | U26: 3295506462 | V26: 3295506462 | W26: 3295506462 | X26: 3295506462 | Y26: 3295506462 | Z26: 3295506462 | AA26: 3295506462 | AB26: 3295506462 | AC26: 3295506462 | AD26: 3295306002 | AE26: 3295506982 | AF26: 3295506982 | AG26: 3295506982 | AH26: 3295506982 | AI26: 3295506982 | AJ26: 3295506982 | AK26: 3295506982 | AL26: 3295506982 | AM26: 3295507512 | AN26: 3295507512 | AO26: 3295507512 | AP26: 3295507512 | AQ26: 3295507512 | AR26: 3295507512 | AS26: 3295507512 | AT26: 3295507512 | AU26: 3295507512 | AV26: 3295508042 | AW26: 3295508042 | AX26: 3295508042 | AY26: 3295508042 | AZ26: 3295508042 | BA26: 3295508042 | BB26: 3295508042 | BC26: 3295508042 | BD26: 3295508042 | BE26: 3295508042 | BF26: 3295508572 | BG26: 3295508572 | BH26: 3295508572 | BI26: 3295508572 | BJ26: 3295508572 | BK26: 3295508572 | BL26: 3295508572 | BM26: 3295508572 | BN26: 3295508572 | BO26: 3295307462 | BP26: 3295307462 | BQ26: 3295307462 | BR26: 3295307462 | BS26: - | BT26: 3295307952
B27: 88 | C27: 3295505412 | D27: 3295505412 | E27: 3295505412 | F27: 3295505412 | G27: 3295505412 | H27: 3295505412 | I27: 3295505412 | J27: 3295505412 | K27: 3295505412 | L27: 3295505412 | M27: 3295505932 | N27: 3295505932 | O27: 3295505932 | P27: 3295505932 | Q27: 3295505932 | R27: 3295505932 | S27: 3295505932 | T27: 3295505932 | U27: 3295505932 | V27: 3295505932 | W27: 3295506462 | X27: 3295506462 | Y27: 3295506462 | Z27: 3295506462 | AA27: 3295506462 | AB27: 3295506462 | AC27: 3295506462 | AD27: 3295506462 | AE27: 3295506462 | AF27: 3295506982 | AG27: 3295506982 | AH27: 3295506982 | AI27: 3295506982 | AJ27: 3295506982 | AK27: 3295506982 | AL27: 3295506982 | AM27: 3295506982 | AN27: 3295506982 | AO27: 3295506982 | AP27: 3295507512 | AQ27: 3295507512 | AR27: 3295507512 | AS27: 3295507512 | AT27: 3295507512 | AU27: 3295507512 | AV27: 3295507512 | AW27: 3295507512 | AX27: 3295507512 | AY27: 3295508042 | AZ27: 3295508042 | BA27: 3295508042 | BB27: 3295508042 | BC27: 3295508042 | BD27: 3295508042 | BE27: 3295508042 | BF27: 3295508042 | BG27: 3295508042 | BH27: 3295508042 | BI27: 3295508572 | BJ27: 3295508572 | BK27: 3295508572 | BL27: 3295508572 | BM27: 3295508572 | BN27: 3295508572 | BO27: 3295508572 | BP27: 3295508572 | BQ27: 3295508572 | BR27: - | BS27: - | BT27: -
B28: 90 | C28: 3296007112 | D28: 3295505412 | E28: 3295505412 | F28: 3295505412 | G28: 3295505412 | H28: 3295505412 | I28: 3295505412 | J28: 3295505412 | K28: 3295505412 | L28: 3295505412 | M28: 3296008382 | N28: 3295505932 | O28: 3295505932 | P28: 3295505932 | Q28: 3295505932 | R28: 3295505932 | S28: 3295505932 | T28: 3295505932 | U28: 3295505932 | V28: 3295505932 | W28: 3296009022 | X28: 3295506462 | Y28: 3295506462 | Z28: 3295506462 | AA28: 3295506462 | AB28: 3295506462 | AC28: 3295506462 | AD28: 3295506462 | AE28: 3295506462 | AF28: 3295506462 | AG28: 3295506982 | AH28: 3295506982 | AI28: 3295506982 | AJ28: 3295506982 | AK28: 3295506982 | AL28: 3295506982 | AM28: 3295506982 | AN28: 3295506982 | AO28: 3295506982 | AP28: 3296010942 | AQ28: 3295507512 | AR28: 3295507512 | AS28: 3295507512 | AT28: 3295507512 | AU28: 3295507512 | AV28: 3295507512 | AW28: 3295507512 | AX28: 3295507512 | AY28: 3295507512 | AZ28: 3396009112 | BA28: 3295508042 | BB28: 3295508042 | BC28: 3295508042 | BD28: 3295508042 | BE28: 3295508042 | BF28: 3295508042 | BG28: 3295508042 | BH28: 3295508042 | BI28: 3396009612 | BJ28: 3396009612 | BK28: 3295508572 | BL28: 3295508572 | BM28: 3295508572 | BN28: 3295508572 | BO28: 3295508572 | BP28: 3295508572 | BQ28: 3295508572 | BR28: 3295508572 | BS28: 3295508572 | BT28: 3295508572
B29: 92 | C29: 3296007112 | D29: 3296007112 | E29: 3296007112 | F29: 3295505412 | G29: 3295505412 | H29: 3295505412 | I29: 3295505412 | J29: 3295505412 | K29: 3295505412 | L29: 3295505412 | M29: 3296007752 | N29: 3296008382 | O29: 3296008382 | P29: 3295505932 | Q29: 3295505932 | R29: 3295505932 | S29: 3295505932 | T29: 3295505932 | U29: 3295505932 | V29: 3295505932 | W29: 3296009022 | X29: 3296009022 | Y29: 3296009022 | Z29: 3295506462 | AA29: 3295506462 | AB29: 3295506462 | AC29: 3295506462 | AD29: 3295506462 | AE29: 3295506462 | AF29: 3296009662 | AG29: 3296009662 | AH29: 3296009662 | AI29: 3296009662 | AJ29: 3295506982 | AK29: 3295506982 | AL29: 3295506982 | AM29: 3295506982 | AN29: 3295506982 | AO29: 3295506982 | AP29: 3296010302 | AQ29: 3296010302 | AR29: 3296010302 | AS29: 3296010942 | AT29: 3295507512 | AU29: 3295507512 | AV29: 3295507512 | AW29: 3295507512 | AX29: 3295507512 | AY29: 3296010942 | AZ29: 3296010942 | BA29: 3396009112 | BB29: 3396009112 | BC29: 3396009112 | BD29: 3295508042 | BE29: 3295508042 | BF29: 3295508042 | BG29: 3295508042 | BH29: 3295508042 | BI29: 3396009612 | BJ29: 3396009612 | BK29: 3396009612 | BL29: 3396009612 | BM29: 3396009612 | BN29: 3295508572 | BO29: 3295508572 | BP29: 3295508572 | BQ29: 3295508572 | BR29: 3295508572 | BS29: 3295508572 | BT29: 3295508572
B30: 94 | C30: 3296007112 | D30: 3296007112 | E30: 3296007112 | F30: 3296007112 | G30: 3296007752 | H30: 3295505412 | I30: 3295505412 | J30: 3295505412 | K30: 3295505412 | L30: 3295505412 | M30: 3296007752 | N30: 3296007752 | O30: 3296008382 | P30: 3296008382 | Q30: 3296008382 | R30: 3295505932 | S30: 3295505932 | T30: 3295505932 | U30: 3295505932 | V30: 3296008382 | W30: 3296009022 | X30: 3296009022 | Y30: 3296009022 | Z30: 3296009022 | AA30: 3296009022 | AB30: 3296009022 | AC30: 3295506462 | AD30: 3295506462 | AE30: 3295506462 | AF30: 3296009662 | AG30: 3296009662 | AH30: 3296009662 | AI30: 3296009662 | AJ30: 3296009662 | AK30: 3296009662 | AL30: 3296009662 | AM30: 3295506982 | AN30: 3295506982 | AO30: 3296010302 | AP30: 3296010302 | AQ30: 3296010302 | AR30: 3296010302 | AS30: 3296010302 | AT30: 3296010302 | AU30: 3296010302 | AV30: 3296010942 | AW30: 3295507512 | AX30: 3295507512 | AY30: 3296010942 | AZ30: 3296010942 | BA30: 3296010942 | BB30: 3296010942 | BC30: 3296010942 | BD30: 3396009112 | BE30: 3396009112 | BF30: 3396009112 | BG30: 3295508042 | BH30: 3295508042 | BI30: 3396009112 | BJ30: 3396009112 | BK30: 3396009112 | BL30: 3396009612 | BM30: 3396009612 | BN30: 3396009612 | BO30: 3396009612 | BP30: 3396009612 | BQ30: 3396009612 | BR30: 3396009612 | BS30: 3396009612 | BT30: 3295508572
B31: 96 | C31: 3296007112 | D31: 3296007112 | E31: 3296007112 | F31: 3296007112 | G31: 3296007112 | H31: 3296007112 | I31: 3296007752 | J31: 3295505412 | K31: 3295505412 | L31: 3296007752 | M31: 3296007752 | N31: 3296007752 | O31: 3296007752 | P31: 3296007752 | Q31: 3296008382 | R31: 3296008382 | S31: 3296008382 | T31: 3295505932 | U31: 3295505932 | V31: 3296008382 | W31: 3296008382 | X31: 3296008382 | Y31: 3296008382 | Z31: 3296009022 | AA31: 3296009022 | AB31: 3296009022 | AC31: 3296009022 | AD31: 3296009022 | AE31: 3295506462 | AF31: 3296009022 | AG31: 3296009022 | AH31: 3296009662 | AI31: 3296009662 | AJ31: 3296009662 | AK31: 3296009662 | AL31: 3296009662 | AM31: 3296009662 | AN31: 3296009662 | AO31: 3296009662 | AP31: 3296010302 | AQ31: 3296010302 | AR31: 3296010302 | AS31: 3296010302 | AT31: 3296010302 | AU31: 3296010302 | AV31: 3296010302 | AW31: 3296010302 | AX31: 3296010942 | AY31: 3296010942 | AZ31: 3296010942 | BA31: 3296010942 | BB31: 3296010942 | BC31: 3296010942 | BD31: 3296010942 | BE31: 3296010942 | BF31: 3396009112 | BG31: 3396009112 | BH31: 3396009112 | BI31: 3396009112 | BJ31: 3396009112 | BK31: 3396009112 | BL31: 3396009112 | BM31: 3396009112 | BN31: 3396009112 | BO31: 3396009612 | BP31: 3396009612 | BQ31: 3396009612 | BR31: 3396009612 | BS31: 3396009612 | BT31: 3396009612
B32: 98 | C32: 3296007112 | D32: 3296007112 | E32: 3296007112 | F32: 3296007112 | G32: 3296007112 | H32: 3296007112 | I32: 3296007112 | J32: 3296007112 | K32: 3296007752 | L32: 3296007752 | M32: 3296007752 | N32: 3296007752 | O32: 3296007752 | P32: 3296007752 | Q32: 3296007752 | R32: 3296007752 | S32: 3296008382 | T32: 3296008382 | U32: 3296008382 | V32: 3296008382 | W32: 3296008382 | X32: 3296008382 | Y32: 3296008382 | Z32: 3296008382 | AA32: 3296008382 | AB32: 3296009022 | AC32: 3296009022 | AD32: 3296009022 | AE32: 3296009022 | AF32: 3296009022 | AG32: 3296009022 | AH32: 3296009022 | AI32: 3296009022 | AJ32: 3296009662 | AK32: 3296009662 | AL32: 3296009662 | AM32: 3296009662 | AN32: 3296009662 | AO32: 3296009662 | AP32: 3296009662 | AQ32: 3296009662 | AR32: 3296010302 | AS32: 3296010302 | AT32: 3296010302 | AU32: 3296010302 | AV32: 3296010302 | AW32: 3296010302 | AX32: 3296010302 | AY32: 3296010302 | AZ32: 3296010302 | BA32: 3296010942 | BB32: 3296010942 | BC32: 3296010942 | BD32: 3296010942 | BE32: 3296010942 | BF32: 3296010942 | BG32: 3296010942 | BH32: 3296010942 | BI32: 3396009112 | BJ32: 3396009112 | BK32: 3396009112 | BL32: 3396009112 | BM32: 3396009112 | BN32: 3396009112 | BO32: 3396009112 | BP32: 3396009112 | BQ32: 3396009112 | BR32: 3396009612 | BS32: 3396009612 | BT32: 3396009612
B33: 100 | C33: 3296006482 | D33: 3296007112 | E33: 3296007112 | F33: 3296007112 | G33: 3296007112 | H33: 3296007112 | I33: 3296007112 | J33: 3296007112 | K33: 3296007112 | L33: 3296007112 | M33: 3296007752 | N33: 3296007752 | O33: 3296007752 | P33: 3296007752 | Q33: 3296007752 | R33: 3296007752 | S33: 3296007752 | T33: 3296007752 | U33: 3296008382 | V33: 3296008382 | W33: 3296008382 | X33: 3296008382 | Y33: 3296008382 | Z33: 3296008382 | AA33: 3296008382 | AB33: 3296008382 | AC33: 3296008382 | AD33: 3296009022 | AE33: 3296009022 | AF33: 3296009022 | AG33: 3296009022 | AH33: 3296009022 | AI33: 3296009022 | AJ33: 3296009022 | AK33: 3296009022 | AL33: 3296009662 | AM33: 3296009662 | AN33: 3296009662 | AO33: 3296009662 | AP33: 3296009662 | AQ33: 3296009662 | AR33: 3296009662 | AS33: 3296009662 | AT33: 3296009662 | AU33: 3296010302 | AV33: 3296010302 | AW33: 3296010302 | AX33: 3296010302 | AY33: 3296010302 | AZ33: 3296010302 | BA33: 3296010302 | BB33: 3296010302 | BC33: 3296010942 | BD33: 3296010942 | BE33: 3296010942 | BF33: 3296010942 | BG33: 3296010942 | BH33: 3296010942 | BI33: 3296010942 | BJ33: 3296010942 | BK33: 3296010942 | BL33: 3396009112 | BM33: 3396009112 | BN33: 3396009112 | BO33: 3396009112 | BP33: 3396009112 | BQ33: 3396009112 | BR33: 3396009112 | BS33: 3396009112 | BT33: 3396009112
B34: 102 | C34: 3296006482 | D34: 3296006482 | E34: 3296006482 | F34: 3296007112 | G34: 3296007112 | H34: 3296007112 | I34: 3296007112 | J34: 3296007112 | K34: 3296007112 | L34: 3296007112 | M34: 3296007112 | N34: 3296007752 | O34: 3296007752 | P34: 3296007752 | Q34: 3296007752 | R34: 3296007752 | S34: 3296007752 | T34: 3296007752 | U34: 3296007752 | V34: 3296007752 | W34: 3296008382 | X34: 3296008382 | Y34: 3296008382 | Z34: 3296008382 | AA34: 3296008382 | AB34: 3296008382 | AC34: 3296008382 | AD34: 3296008382 | AE34: 3296008382 | AF34: 3296009022 | AG34: 3296009022 | AH34: 3296009022 | AI34: 3296009022 | AJ34: 3296009022 | AK34: 3296009022 | AL34: 3296009022 | AM34: 3296009022 | AN34: 3296009022 | AO34: 3296009662 | AP34: 3296009662 | AQ34: 3296009662 | AR34: 3296009662 | AS34: 3296009662 | AT34: 3296009662 | AU34: 3296009662 | AV34: 3296009662 | AW34: 3296010302 | AX34: 3296010302 | AY34: 3296010302 | AZ34: 3296010302 | BA34: 3296010302 | BB34: 3296010302 | BC34: 3296010302 | BD34: 3296010302 | BE34: 3296010302 | BF34: 3296010942 | BG34: 3296010942 | BH34: 3296010942 | BI34: 3296010942 | BJ34: 3296010942 | BK34: 3296010942 | BL34: 3296010942 | BM34: 3296010942 | BN34: 3296010942 | BO34: 3396009112 | BP34: 3396009112 | BQ34: 3396009112 | BR34: 3396009112 | BS34: 3396009112 | BT34: 3396009112
B35: 104 | C35: 3296006482 | D35: 3296006482 | E35: 3296006482 | F35: 3296006482 | G35: 3296007112 | H35: 3296007112 | I35: 3296007112 | J35: 3296007112 | K35: 3296007112 | L35: 3296007112 | M35: 3296007112 | N35: 3296007112 | O35: 3296007112 | P35: 3296007752 | Q35: 3296007752 | R35: 3296007752 | S35: 3296007752 | T35: 3296007752 | U35: 3296007752 | V35: 3296007752 | W35: 3296007752 | X35: 3296007752 | Y35: 3296008382 | Z35: 3296008382 | AA35: 3296008382 | AB35: 3296008382 | AC35: 3296008382 | AD35: 3296008382 | AE35: 3296008382 | AF35: 3296008382 | AG35: 3296008382 | AH35: 3296009022 | AI35: 3296009022 | AJ35: 3296009022 | AK35: 3296009022 | AL35: 3296009022 | AM35: 3296009022 | AN35: 3296009022 | AO35: 3296009022 | AP35: 3296009022 | AQ35: 3296009662 | AR35: 3296009662 | AS35: 3296009662 | AT35: 3296009662 | AU35: 3296009662 | AV35: 3296009662 | AW35: 3296009662 | AX35: 3296009662 | AY35: 3296009662 | AZ35: 3296010302 | BA35: 3296010302 | BB35: 3296010302 | BC35: 3296010302 | BD35: 3296010302 | BE35: 3296010302 | BF35: 3296010302 | BG35: 3296010302 | BH35: 3296010302 | BI35: 3296010942 | BJ35: 3296010942 | BK35: 3296010942 | BL35: 3296010942 | BM35: 3296010942 | BN35: 3296010942 | BO35: 3296010942 | BP35: 3296010942 | BQ35: 3296010942 | BR35: 3396009112 | BS35: 3396009112 | BT35: 3396009112
B36: 106 | C36: 3296006482 | D36: 3296006482 | E36: 3296006482 | F36: 3296006482 | G36: 3296006482 | H36: 3296006482 | I36: 3296007112 | J36: 3296007112 | K36: 3296007112 | L36: 3296007112 | M36: 3296007112 | N36: 3296007112 | O36: 3296007112 | P36: 3296007112 | Q36: 3296007112 | R36: 3296007752 | S36: 3296007752 | T36: 3296007752 | U36: 3296007752 | V36: 3296007752 | W36: 3296007752 | X36: 3296007752 | Y36: 3296007752 | Z36: 3296007752 | AA36: 3296008382 | AB36: 3296008382 | AC36: 3296008382 | AD36: 3296008382 | AE36: 3296008382 | AF36: 3296008382 | AG36: 3296008382 | AH36: 3296008382 | AI36: 3296008382 | AJ36: 3296009022 | AK36: 3296009022 | AL36: 3296009022 | AM36: 3296009022 | AN36: 3296009022 | AO36: 3296009022 | AP36: 3296009022 | AQ36: 3296009022 | AR36: 3296009022 | AS36: 3296009662 | AT36: 3296009662 | AU36: 3296009662 | AV36: 3296009662 | AW36: 3296009662 | AX36: 3296009662 | AY36: 3296009662 | AZ36: 3296009662 | BA36: 3296009662 | BB36: 3296010302 | BC36: 3296010302 | BD36: 3296010302 | BE36: 3296010302 | BF36: 3296010302 | BG36: 3296010302 | BH36: 3296010302 | BI36: 3296010302 | BJ36: 3296010302 | BK36: 3296010942 | BL36: 3296010942 | BM36: 3296010942 | BN36: 3296010942 | BO36: 3296010942 | BP36: 3296010942 | BQ36: 3296010942 | BR36: 3296010942 | BS36: 3296010942 | BT36: 3396009112
B37: 108 | C37: 3296006482 | D37: 3296006482 | E37: 3296006482 | F37: 3296006482 | G37: 3296006482 | H37: 3296006482 | I37: 3296006482 | J37: 3296006482 | K37: 3296007112 | L37: 3296007112 | M37: 3296007112 | N37: 3296007112 | O37: 3296007112 | P37: 3296007112 | Q37: 3296007112 | R37: 3296007112 | S37: 3296007112 | T37: 3296007752 | U37: 3296007752 | V37: 3296007752 | W37: 3296007752 | X37: 3296007752 | Y37: 3296007752 | Z37: 3296007752 | AA37: 3296007752 | AB37: 3296007752 | AC37: 3296008382 | AD37: 3296008382 | AE37: 3296008382 | AF37: 3296008382 | AG37: 3296008382 | AH37: 3296008382 | AI37: 3296008382 | AJ37: 3296008382 | AK37: 3296008382 | AL37: 3296009022 | AM37: 3296009022 | AN37: 3296009022 | AO37: 3296009022 | AP37: 3296009022 | AQ37: 3296009022 | AR37: 3296009022 | AS37: 3296009022 | AT37: 3296009022 | AU37: 3296009662 | AV37: 3296009662 | AW37: 3296009662 | AX37: 3296009662 | AY37: 3296009662 | AZ37: 3296009662 | BA37: 3296009662 | BB37: 3296009662 | BC37: 3296009662 | BD37: 3296009662 | BE37: 3296010302 | BF37: 3296010302 | BG37: 3296010302 | BH37: 3296010302 | BI37: 3296010302 | BJ37: 3296010302 | BK37: 3296010302 | BL37: 3296010302 | BM37: 3296010302 | BN37: 3296010942 | BO37: 3296010942 | BP37: 3296010942 | BQ37: 3296010942 | BR37: 3296010942 | BS37: 3296010942 | BT37: 3296010942
B38: 110 | C38: 3296006482 | D38: 3296006482 | E38: 3296006482 | F38: 3296006482 | G38: 3296006482 | H38: 3296006482 | I38: 3296006482 | J38: 3296006482 | K38: 3296006482 | L38: 3296007112 | M38: 3296007112 | N38: 3296007112 | O38: 3296007112 | P38: 3296007112 | Q38: 3296007112 | R38: 3296007112 | S38: 3296007112 | T38: 3296007112 | U38: 3296007112 | V38: 3296007752 | W38: 3296007752 | X38: 3296007752 | Y38: 3296007752 | Z38: 3296007752 | AA38: 3296007752 | AB38: 3296007752 | AC38: 3296007752 | AD38: 3296007752 | AE38: 3296008382 | AF38: 3296008382 | AG38: 3296008382 | AH38: 3296008382 | AI38: 3296008382 | AJ38: 3296008382 | AK38: 3296008382 | AL38: 3296008382 | AM38: 3296008382 | AN38: 3296009022 | AO38: 3296009022 | AP38: 3296009022 | AQ38: 3296009022 | AR38: 3296009022 | AS38: 3296009022 | AT38: 3296009022 | AU38: 3296009022 | AV38: 3296009022 | AW38: 3296009022 | AX38: 3296009662 | AY38: 3296009662 | AZ38: 3296009662 | BA38: 3296009662 | BB38: 3296009662 | BC38: 3296009662 | BD38: 3296009662 | BE38: 3296009662 | BF38: 3296009662 | BG38: 3296010302 | BH38: 3296010302 | BI38: 3296010302 | BJ38: 3296010302 | BK38: 3296010302 | BL38: 3296010302 | BM38: 3296010302 | BN38: 3296010302 | BO38: 3296010302 | BP38: 3296010942 | BQ38: 3296010942 | BR38: 3296010942 | BS38: 3296010942 | BT38: 3296010942
B39: 112 | C39: 3296006482 | D39: 3296006482 | E39: 3296006482 | F39: 3296006482 | G39: 3296006482 | H39: 3296006482 | I39: 3296006482 | J39: 3296006482 | K39: 3296006482 | L39: 3296006482 | M39: 3296006482 | N39: 3296007112 | O39: 3296007112 | P39: 3296007112 | Q39: 3296007112 | R39: 3296007112 | S39: 3296007112 | T39: 3296007112 | U39: 3296007112 | V39: 3296007112 | W39: 3296007752 | X39: 3296007752 | Y39: 3296007752 | Z39: 3296007752 | AA39: 3296007752 | AB39: 3296007752 | AC39: 3296007752 | AD39: 3296007752 | AE39: 3296007752 | AF39: 3296007752 | AG39: 3296008382 | AH39: 3296008382 | AI39: 3296008382 | AJ39: 3296008382 | AK39: 3296008382 | AL39: 3296008382 | AM39: 3296008382 | AN39: 3296008382 | AO39: 3296008382 | AP39: 3296009022 | AQ39: 3296009022 | AR39: 3296009022 | AS39: 3296009022 | AT39: 3296009022 | AU39: 3296009022 | AV39: 3296009022 | AW39: 3296009022 | AX39: 3296009022 | AY39: 3296009022 | AZ39: 3296009662 | BA39: 3296009662 | BB39: 3296009662 | BC39: 3296009662 | BD39: 3296009662 | BE39: 3296009662 | BF39: 3296009662 | BG39: 3296009662 | BH39: 3296009662 | BI39: 3296009662 | BJ39: 3296010302 | BK39: 3296010302 | BL39: 3296010302 | BM39: 3296010302 | BN39: 3296010302 | BO39: 3296010302 | BP39: 3296010302 | BQ39: 3296010302 | BR39: 3296010302 | BS39: 3296010942 | BT39: 3296010942
B40: 114 | C40: 3296508382 | D40: 3296006482 | E40: 3296006482 | F40: 3296006482 | G40: 3296006482 | H40: 3296006482 | I40: 3296006482 | J40: 3296006482 | K40: 3296006482 | L40: 3296006482 | M40: 3296006482 | N40: 3296007112 | O40: 3296007112 | P40: 3296007112 | Q40: 3296007112 | R40: 3296007112 | S40: 3296007112 | T40: 3296007112 | U40: 3296007112 | V40: 3296007112 | W40: 3296007112 | X40: 3296007752 | Y40: 3296007752 | Z40: 3296007752 | AA40: 3296007752 | AB40: 3296007752 | AC40: 3296007752 | AD40: 3296007752 | AE40: 3296007752 | AF40: 3296007752 | AG40: 3296008382 | AH40: 3296008382 | AI40: 3296008382 | AJ40: 3296008382 | AK40: 3296008382 | AL40: 3296008382 | AM40: 3296008382 | AN40: 3296008382 | AO40: 3296008382 | AP40: 3296008382 | AQ40: 3296009022 | AR40: 3296009022 | AS40: 3296009022 | AT40: 3296009022 | AU40: 3296009022 | AV40: 3296009022 | AW40: 3296009022 | AX40: 3296009022 | AY40: 3296009022 | AZ40: 3296009022 | BA40: 3296009662 | BB40: 3296009662 | BC40: 3296009662 | BD40: 3296009662 | BE40: 3296009662 | BF40: 3296009662 | BG40: 3296009662 | BH40: 3296009662 | BI40: 3296009662 | BJ40: 3396511372 | BK40: 3296010302 | BL40: 3296010302 | BM40: 3296010302 | BN40: 3296010302 | BO40: 3296010302 | BP40: 3296010302 | BQ40: 3296010302 | BR40: 3296010302 | BS40: 3296010302 | BT40: 3296010302
B41: 116 | C41: 3296508382 | D41: 3296508382 | E41: 3296006482 | F41: 3296006482 | G41: 3296006482 | H41: 3296006482 | I41: 3296006482 | J41: 3296006482 | K41: 3296006482 | L41: 3296006482 | M41: 3296006482 | N41: 3296509892 | O41: 3296007112 | P41: 3296007112 | Q41: 3296007112 | R41: 3296007112 | S41: 3296007112 | T41: 3296007112 | U41: 3296007112 | V41: 3296007112 | W41: 3296007112 | X41: 3296510642 | Y41: 3296007752 | Z41: 3296007752 | AA41: 3296007752 | AB41: 3296007752 | AC41: 3296007752 | AD41: 3296007752 | AE41: 3296007752 | AF41: 3296007752 | AG41: 3296511402 | AH41: 3296511402 | AI41: 3296008382 | AJ41: 3296008382 | AK41: 3296008382 | AL41: 3296008382 | AM41: 3296008382 | AN41: 3296008382 | AO41: 3296008382 | AP41: 3296008382 | AQ41: 3296512162 | AR41: 3296512162 | AS41: 3296009022 | AT41: 3296009022 | AU41: 3296009022 | AV41: 3296009022 | AW41: 3296009022 | AX41: 3296009022 | AY41: 3296009022 | AZ41: 3396510182 | BA41: 3396510182 | BB41: 3396510772 | BC41: 3296009662 | BD41: 3296009662 | BE41: 3296009662 | BF41: 3296009662 | BG41: 3296009662 | BH41: 3296009662 | BI41: 3296009662 | BJ41: 3396511372 | BK41: 3396511372 | BL41: 3396511372 | BM41: 3296010302 | BN41: 3296010302 | BO41: 3296010302 | BP41: 3296010302 | BQ41: 3296010302 | BR41: 3296010302 | BS41: 3296010302 | BT41: 3296010302
B42: 118 | C42: 3296508382 | D42: 3296508382 | E42: 3296508382 | F42: 3296508382 | G42: 3296006482 | H42: 3296006482 | I42: 3296006482 | J42: 3296006482 | K42: 3296006482 | L42: 3296006482 | M42: 3296006482 | N42: 3296509132 | O42: 3296509132 | P42: 3296509892 | Q42: 3296007112 | R42: 3296007112 | S42: 3296007112 | T42: 3296007112 | U42: 3296007112 | V42: 3296007112 | W42: 3296509892 | X42: 3296510642 | Y42: 3296510642 | Z42: 3296510642 | AA42: 3296007752 | AB42: 3296007752 | AC42: 3296007752 | AD42: 3296007752 | AE42: 3296007752 | AF42: 3296007752 | AG42: 3296511402 | AH42: 3296511402 | AI42: 3296511402 | AJ42: 3296511402 | AK42: 3296511402 | AL42: 3296008382 | AM42: 3296008382 | AN42: 3296008382 | AO42: 3296008382 | AP42: 3296008382 | AQ42: 3296512162 | AR42: 3296512162 | AS42: 3296512162 | AT42: 3296512162 | AU42: 3296512162 | AV42: 3296009022 | AW42: 3296009022 | AX42: 3296009022 | AY42: 3296009022 | AZ42: 3396510182 | BA42: 3396510182 | BB42: 3396510182 | BC42: 3396510182 | BD42: 3396510182 | BE42: 3396510772 | BF42: 3296009662 | BG42: 3296009662 | BH42: 3296009662 | BI42: 3296009662 | BJ42: 3396510772 | BK42: 3396510772 | BL42: 3396510772 | BM42: 3396511372 | BN42: 3396511372 | BO42: 3396511372 | BP42: 3296010302 | BQ42: 3296010302 | BR42: 3296010302 | BS42: 3396511372 | BT42: 3396511372
B43: 120 | C43: 3296508382 | D43: 3296508382 | E43: 3296508382 | F43: 3296508382 | G43: 3296508382 | H43: 3296006482 | I43: 3296006482 | J43: 3296006482 | K43: 3296006482 | L43: 3296006482 | M43: 3296509132 | N43: 3296509132 | O43: 3296509132 | P43: 3296509132 | Q43: 3296509132 | R43: 3296509892 | S43: 3296007112 | T43: 3296007112 | U43: 3296007112 | V43: 3296007112 | W43: 3296509892 | X43: 3296509892 | Y43: 3296509892 | Z43: 3296510642 | AA43: 3296510642 | AB43: 3296510642 | AC43: 3296007752 | AD43: 3296007752 | AE43: 3296007752 | AF43: 3296007752 | AG43: 3296510642 | AH43: 3296511402 | AI43: 3296511402 | AJ43: 3296511402 | AK43: 3296511402 | AL43: 3296511402 | AM43: 3296511402 | AN43: 3296008382 | AO43: 3296008382 | AP43: 3296512162 | AQ43: 3296512162 | AR43: 3296512162 | AS43: 3296512162 | AT43: 3296512162 | AU43: 3296512162 | AV43: 3296512162 | AW43: 3296512162 | AX43: 3296009022 | AY43: 3296009022 | AZ43: 3396510182 | BA43: 3396510182 | BB43: 3396510182 | BC43: 3396510182 | BD43: 3396510182 | BE43: 3396510182 | BF43: 3396510182 | BG43: 3396510772 | BH43: 3296009662 | BI43: 3296009662 | BJ43: 3396510772 | BK43: 3396510772 | BL43: 3396510772 | BM43: 3396510772 | BN43: 3396510772 | BO43: 3396511372 | BP43: 3396511372 | BQ43: 3396511372 | BR43: 3396511372 | BS43: 3396511372 | BT43: 3396511372
B44: 122 | C44: 3296508382 | D44: 3296508382 | E44: 3296508382 | F44: 3296508382 | G44: 3296508382 | H44: 3296508382 | I44: 3296508382 | J44: 3296006482 | K44: 3296006482 | L44: 3296006482 | M44: 3296509132 | N44: 3296509132 | O44: 3296509132 | P44: 3296509132 | Q44: 3296509132 | R44: 3296509132 | S44: 3296509892 | T44: 3296509892 | U44: 3296007112 | V44: 3296007112 | W44: 3296509892 | X44: 3296509892 | Y44: 3296509892 | Z44: 3296509892 | AA44: 3296509892 | AB44: 3296510642 | AC44: 3296510642 | AD44: 3296510642 | AE44: 3296007752 | AF44: 3296007752 | AG44: 3296510642 | AH44: 3296510642 | AI44: 3296510642 | AJ44: 3296511402 | AK44: 3296511402 | AL44: 3296511402 | AM44: 3296511402 | AN44: 3296511402 | AO44: 3296511402 | AP44: 3296511402 | AQ44: 3296511402 | AR44: 3296512162 | AS44: 3296512162 | AT44: 3296512162 | AU44: 3296512162 | AV44: 3296512162 | AW44: 3296512162 | AX44: 3296512162 | AY44: 3296512162 | AZ44: 3296512162 | BA44: 3396510182 | BB44: 3396510182 | BC44: 3396510182 | BD44: 3396510182 | BE44: 3396510182 | BF44: 3396510182 | BG44: 3396510182 | BH44: 3396510182 | BI44: 3396510772 | BJ44: 3396510772 | BK44: 3396510772 | BL44: 3396510772 | BM44: 3396510772 | BN44: 3396510772 | BO44: 3396510772 | BP44: 3396510772 | BQ44: 3396511372 | BR44: 3396511372 | BS44: 3396511372 | BT44: 3396511372
B45: 124 | C45: 3296507632 | D45: 3296508382 | E45: 3296508382 | F45: 3296508382 | G45: 3296508382 | H45: 3296508382 | I45: 3296508382 | J45: 3296508382 | K45: 3296508382 | L45: 3296006482 | M45: 3296509132 | N45: 3296509132 | O45: 3296509132 | P45: 3296509132 | Q45: 3296509132 | R45: 3296509132 | S45: 3296509132 | T45: 3296509132 | U45: 3296509892 | V45: 3296509892 | W45: 3296509892 | X45: 3296509892 | Y45: 3296509892 | Z45: 3296509892 | AA45: 3296509892 | AB45: 3296509892 | AC45: 3296510642 | AD45: 3296510642 | AE45: 3296510642 | AF45: 3296510642 | AG45: 3296510642 | AH45: 3296510642 | AI45: 3296510642 | AJ45: 3296510642 | AK45: 3296510642 | AL45: 3296511402 | AM45: 3296511402 | AN45: 3296511402 | AO45: 3296511402 | AP45: 3296511402 | AQ45: 3296511402 | AR45: 3296511402 | AS45: 3296511402 | AT45: 3296512162 | AU45: 3296512162 | AV45: 3296512162 | AW45: 3296512162 | AX45: 3296512162 | AY45: 3296512162 | AZ45: 3296512162 | BA45: 3296512162 | BB45: 3296512162 | BC45: 3396510182 | BD45: 3396510182 | BE45: 3396510182 | BF45: 3396510182 | BG45: 3396510182 | BH45: 3396510182 | BI45: 3396510182 | BJ45: 3396510182 | BK45: 3396510772 | BL45: 3396510772 | BM45: 3396510772 | BN45: 3396510772 | BO45: 3396510772 | BP45: 3396510772 | BQ45: 3396510772 | BR45: 3396510772 | BS45: 3396510772 | BT45: 3396511372
B46: 126 | C46: 3296507632 | D46: 3296507632 | E46: 3296508382 | F46: 3296508382 | G46: 3296508382 | H46: 3296508382 | I46: 3296508382 | J46: 3296508382 | K46: 3296508382 | L46: 3296508382 | M46: 3296508382 | N46: 3296509132 | O46: 3296509132 | P46: 3296509132 | Q46: 3296509132 | R46: 3296509132 | S46: 3296509132 | T46: 3296509132 | U46: 3296509132 | V46: 3296509892 | W46: 3296509892 | X46: 3296509892 | Y46: 3296509892 | Z46: 3296509892 | AA46: 3296509892 | AB46: 3296509892 | AC46: 3296509892 | AD46: 3296509892 | AE46: 3296510642 | AF46: 3296510642 | AG46: 3296510642 | AH46: 3296510642 | AI46: 3296510642 | AJ46: 3296510642 | AK46: 3296510642 | AL46: 3296510642 | AM46: 3296511402 | AN46: 3296511402 | AO46: 3296511402 | AP46: 3296511402 | AQ46: 3296511402 | AR46: 3296511402 | AS46: 3296511402 | AT46: 3296511402 | AU46: 3296511402 | AV46: 3296512162 | AW46: 3296512162 | AX46: 3296512162 | AY46: 3296512162 | AZ46: 3296512162 | BA46: 3296512162 | BB46: 3296512162 | BC46: 3296512162 | BD46: 3296512162 | BE46: 3396510182 | BF46: 3396510182 | BG46: 3396510182 | BH46: 3396510182 | BI46: 3396510182 | BJ46: 3396510182 | BK46: 3396510182 | BL46: 3396510182 | BM46: 3396510772 | BN46: 3396510772 | BO46: 3396510772 | BP46: 3396510772 | BQ46: 3396510772 | BR46: 3396510772 | BS46: 3396510772 | BT46: 3396510772
B47: 128 | C47: 3296507632 | D47: 3296507632 | E47: 3296507632 | F47: 3296508382 | G47: 3296508382 | H47: 3296508382 | I47: 3296508382 | J47: 3296508382 | K47: 3296508382 | L47: 3296508382 | M47: 3296508382 | N47: 3296508382 | O47: 3296509132 | P47: 3296509132 | Q47: 3296509132 | R47: 3296509132 | S47: 3296509132 | T47: 3296509132 | U47: 3296509132 | V47: 3296509132 | W47: 3296509132 | X47: 3296509892 | Y47: 3296509892 | Z47: 3296509892 | AA47: 3296509892 | AB47: 3296509892 | AC47: 3296509892 | AD47: 3296509892 | AE47: 3296509892 | AF47: 3296509892 | AG47: 3296510642 | AH47: 3296510642 | AI47: 3296510642 | AJ47: 3296510642 | AK47: 3296510642 | AL47: 3296510642 | AM47: 3296510642 | AN47: 3296510642 | AO47: 3296511402 | AP47: 3296511402 | AQ47: 3296511402 | AR47: 3296511402 | AS47: 3296511402 | AT47: 3296511402 | AU47: 3296511402 | AV47: 3296511402 | AW47: 3296511402 | AX47: 3296512162 | AY47: 3296512162 | AZ47: 3296512162 | BA47: 3296512162 | BB47: 3296512162 | BC47: 3296512162 | BD47: 3296512162 | BE47: 3296512162 | BF47: 3296512162 | BG47: 3396510182 | BH47: 3396510182 | BI47: 3396510182 | BJ47: 3396510182 | BK47: 3396510182 | BL47: 3396510182 | BM47: 3396510182 | BN47: 3396510182 | BO47: 3396510182 | BP47: 3396510772 | BQ47: 3396510772 | BR47: 3396510772 | BS47: 3396510772 | BT47: 3396510772
B48: 130 | C48: 3296507632 | D48: 3296507632 | E48: 3296507632 | F48: 3296507632 | G48: 3296507632 | H48: 3296508382 | I48: 3296508382 | J48: 3296508382 | K48: 3296508382 | L48: 3296508382 | M48: 3296508382 | N48: 3296508382 | O48: 3296508382 | P48: 3296509132 | Q48: 3296509132 | R48: 3296509132 | S48: 3296509132 | T48: 3296509132 | U48: 3296509132 | V48: 3296509132 | W48: 3296509132 | X48: 3296509132 | Y48: 3296509892 | Z48: 3296509892 | AA48: 3296509892 | AB48: 3296509892 | AC48: 3296509892 | AD48: 3296509892 | AE48: 3296509892 | AF48: 3296509892 | AG48: 3296509892 | AH48: 3296510642 | AI48: 3296510642 | AJ48: 3296510642 | AK48: 3296510642 | AL48: 3296510642 | AM48: 3296510642 | AN48: 3296510642 | AO48: 3296510642 | AP48: 3296510642 | AQ48: 3296511402 | AR48: 3296511402 | AS48: 3296511402 | AT48: 3296511402 | AU48: 3296511402 | AV48: 3296511402 | AW48: 3296511402 | AX48: 3296511402 | AY48: 3296511402 | AZ48: 3296512162 | BA48: 3296512162 | BB48: 3296512162 | BC48: 3296512162 | BD48: 3296512162 | BE48: 3296512162 | BF48: 3296512162 | BG48: 3296512162 | BH48: 3296512162 | BI48: 3396510182 | BJ48: 3396510182 | BK48: 3396510182 | BL48: 3396510182 | BM48: 3396510182 | BN48: 3396510182 | BO48: 3396510182 | BP48: 3396510182 | BQ48: 3396510182 | BR48: 3396510772 | BS48: 3396510772 | BT48: 3396510772
B49: 132 | C49: 3296507632 | D49: 3296507632 | E49: 3296507632 | F49: 3296507632 | G49: 3296507632 | H49: 3296507632 | I49: 3296508382 | J49: 3296508382 | K49: 3296508382 | L49: 3296508382 | M49: 3296508382 | N49: 3296508382 | O49: 3296508382 | P49: 3296508382 | Q49: 3296508382 | R49: 3296509132 | S49: 3296509132 | T49: 3296509132 | U49: 3296509132 | V49: 3296509132 | W49: 3296509132 | X49: 3296509132 | Y49: 3296509132 | Z49: 3296509132 | AA49: 3296509892 | AB49: 3296509892 | AC49: 3296509892 | AD49: 3296509892 | AE49: 3296509892 | AF49: 3296509892 | AG49: 3296509892 | AH49: 3296509892 | AI49: 3296509892 | AJ49: 3296510642 | AK49: 3296510642 | AL49: 3296510642 | AM49: 3296510642 | AN49: 3296510642 | AO49: 3296510642 | AP49: 3296510642 | AQ49: 3296510642 | AR49: 3296510642 | AS49: 3296511402 | AT49: 3296511402 | AU49: 3296511402 | AV49: 3296511402 | AW49: 3296511402 | AX49: 3296511402 | AY49: 3296511402 | AZ49: 3296511402 | BA49: 3296511402 | BB49: 3296512162 | BC49: 3296512162 | BD49: 3296512162 | BE49: 3296512162 | BF49: 3296512162 | BG49: 3296512162 | BH49: 3296512162 | BI49: 3296512162 | BJ49: 3296512162 | BK49: 3396510182 | BL49: 3396510182 | BM49: 3396510182 | BN49: 3396510182 | BO49: 3396510182 | BP49: 3396510182 | BQ49: 3396510182 | BR49: 3396510182 | BS49: 3396510182 | BT49: 3396510772
B50: 134 | C50: 3296507632 | D50: 3296507632 | E50: 3296507632 | F50: 3296507632 | G50: 3296507632 | H50: 3296507632 | I50: 3296507632 | J50: 3296508382 | K50: 3296508382 | L50: 3296508382 | M50: 3296508382 | N50: 3296508382 | O50: 3296508382 | P50: 3296508382 | Q50: 3296508382 | R50: 3296508382 | S50: 3296509132 | T50: 3296509132 | U50: 3296509132 | V50: 3296509132 | W50: 3296509132 | X50: 3296509132 | Y50: 3296509132 | Z50: 3296509132 | AA50: 3296509132 | AB50: 3296509892 | AC50: 3296509892 | AD50: 3296509892 | AE50: 3296509892 | AF50: 3296509892 | AG50: 3296509892 | AH50: 3296509892 | AI50: 3296509892 | AJ50: 3296509892 | AK50: 3296509892 | AL50: 3296510642 | AM50: 3296510642 | AN50: 3296510642 | AO50: 3296510642 | AP50: 3296510642 | AQ50: 3296510642 | AR50: 3296510642 | AS50: 3296510642 | AT50: 3296510642 | AU50: 3296511402 | AV50: 3296511402 | AW50: 3296511402 | AX50: 3296511402 | AY50: 3296511402 | AZ50: 3296511402 | BA50: 3296511402 | BB50: 3296511402 | BC50: 3296511402 | BD50: 3296512162 | BE50: 3296512162 | BF50: 3296512162 | BG50: 3296512162 | BH50: 3296512162 | BI50: 3296512162 | BJ50: 3296512162 | BK50: 3296512162 | BL50: 3296512162 | BM50: 3396510182 | BN50: 3396510182 | BO50: 3396510182 | BP50: 3396510182 | BQ50: 3396510182 | BR50: 3396510182 | BS50: 3396510182 | BT50: 3396510182
B51: 136 | C51: 3296507632 | D51: 3296507632 | E51: 3296507632 | F51: 3296507632 | G51: 3296507632 | H51: 3296507632 | I51: 3296507632 | J51: 3296507632 | K51: 3296508382 | L51: 3296508382 | M51: 3296508382 | N51: 3296508382 | O51: 3296508382 | P51: 3296508382 | Q51: 3296508382 | R51: 3296508382 | S51: 3296508382 | T51: 3296508382 | U51: 3296509132 | V51: 3296509132 | W51: 3296509132 | X51: 3296509132 | Y51: 3296509132 | Z51: 3296509132 | AA51: 3296509132 | AB51: 3296509132 | AC51: 3296509132 | AD51: 3296509892 | AE51: 3296509892 | AF51: 3296509892 | AG51: 3296509892 | AH51: 3296509892 | AI51: 3296509892 | AJ51: 3296509892 | AK51: 3296509892 | AL51: 3296509892 | AM51: 3296510642 | AN51: 3296510642 | AO51: 3296510642 | AP51: 3296510642 | AQ51: 3296510642 | AR51: 3296510642 | AS51: 3296510642 | AT51: 3296510642 | AU51: 3296510642 | AV51: 3296510642 | AW51: 3296511402 | AX51: 3296511402 | AY51: 3296511402 | AZ51: 3296511402 | BA51: 3296511402 | BB51: 3296511402 | BC51: 3296511402 | BD51: 3296511402 | BE51: 3296511402 | BF51: 3296512162 | BG51: 3296512162 | BH51: 3296512162 | BI51: 3296512162 | BJ51: 3296512162 | BK51: 3296512162 | BL51: 3296512162 | BM51: 3296512162 | BN51: 3296512162 | BO51: 3396510182 | BP51: 3396510182 | BQ51: 3396510182 | BR51: 3396510182 | BS51: 3396510182 | BT51: 3396510182
B52: 138 | C52: 3296507632 | D52: 3296507632 | E52: 3296507632 | F52: 3296507632 | G52: 3296507632 | H52: 3296507632 | I52: 3296507632 | J52: 3296507632 | K52: 3296507632 | L52: 3296507632 | M52: 3296508382 | N52: 3296508382 | O52: 3296508382 | P52: 3296508382 | Q52: 3296508382 | R52: 3296508382 | S52: 3296508382 | T52: 3296508382 | U52: 3296508382 | V52: 3296509132 | W52: 3296509132 | X52: 3296509132 | Y52: 3296509132 | Z52: 3296509132 | AA52: 3296509132 | AB52: 3296509132 | AC52: 3296509132 | AD52: 3296509132 | AE52: 3296509132 | AF52: 3296509892 | AG52: 3296509892 | AH52: 3296509892 | AI52: 3296509892 | AJ52: 3296509892 | AK52: 3296509892 | AL52: 3296509892 | AM52: 3296509892 | AN52: 3296509892 | AO52: 3296510642 | AP52: 3296510642 | AQ52: 3296510642 | AR52: 3296510642 | AS52: 3296510642 | AT52: 3296510642 | AU52: 3296510642 | AV52: 3296510642 | AW52: 3296510642 | AX52: 3296511402 | AY52: 3296511402 | AZ52: 3296511402 | BA52: 3296511402 | BB52: 3296511402 | BC52: 3296511402 | BD52: 3296511402 | BE52: 3296511402 | BF52: 3296511402 | BG52: 3296511402 | BH52: 3296512162 | BI52: 3296512162 | BJ52: 3296512162 | BK52: 3296512162 | BL52: 3296512162 | BM52: 3296512162 | BN52: 3296512162 | BO52: 3296512162 | BP52: 3296512162 | BQ52: 3396510182 | BR52: 3396510182 | BS52: 3396510182 | BT52: 3396510182
B53: 140 | C53: 3296507632 | D53: 3296507632 | E53: 3296507632 | F53: 3296507632 | G53: 3296507632 | H53: 3296507632 | I53: 3296507632 | J53: 3296507632 | K53: 3296507632 | L53: 3296507632 | M53: 3296507632 | N53: 3296508382 | O53: 3296508382 | P53: 3296508382 | Q53: 3296508382 | R53: 3296508382 | S53: 3296508382 | T53: 3296508382 | U53: 3296508382 | V53: 3296508382 | W53: 3296508382 | X53: 3296509132 | Y53: 3296509132 | Z53: 3296509132 | AA53: 3296509132 | AB53: 3296509132 | AC53: 3296509132 | AD53: 3296509132 | AE53: 3296509132 | AF53: 3296509132 | AG53: 3296509892 | AH53: 3296509892 | AI53: 3296509892 | AJ53: 3296509892 | AK53: 3296509892 | AL53: 3296509892 | AM53: 3296509892 | AN53: 3296509892 | AO53: 3296509892 | AP53: 3296509892 | AQ53: 3296510642 | AR53: 3296510642 | AS53: 3296510642 | AT53: 3296510642 | AU53: 3296510642 | AV53: 3296510642 | AW53: 3296510642 | AX53: 3296510642 | AY53: 3296510642 | AZ53: 3296511402 | BA53: 3296511402 | BB53: 3296511402 | BC53: 3296511402 | BD53: 3296511402 | BE53: 3296511402 | BF53: 3296511402 | BG53: 3296511402 | BH53: 3296511402 | BI53: 3296511402 | BJ53: 3296512162 | BK53: 3296512162 | BL53: 3296512162 | BM53: 3296512162 | BN53: 3296512162 | BO53: 3296512162 | BP53: 3296512162 | BQ53: 3296512162 | BR53: 3296512162 | BS53: 3396510182 | BT53: 3396510182
B54: 142 | C54: 3296507632 | D54: 3296507632 | E54: 3296507632 | F54: 3296507632 | G54: 3296507632 | H54: 3296507632 | I54: 3296507632 | J54: 3296507632 | K54: 3296507632 | L54: 3296507632 | M54: 3296507632 | N54: 3296507632 | O54: 3296508382 | P54: 3296508382 | Q54: 3296508382 | R54: 3296508382 | S54: 3296508382 | T54: 3296508382 | U54: 3296508382 | V54: 3296508382 | W54: 3296508382 | X54: 3296508382 | Y54: 3296509132 | Z54: 3296509132 | AA54: 3296509132 | AB54: 3296509132 | AC54: 3296509132 | AD54: 3296509132 | AE54: 3296509132 | AF54: 3296509132 | AG54: 3296509132 | AH54: 3296509892 | AI54: 3296509892 | AJ54: 3296509892 | AK54: 3296509892 | AL54: 3296509892 | AM54: 3296509892 | AN54: 3296509892 | AO54: 3296509892 | AP54: 3296509892 | AQ54: 3296509892 | AR54: 3296510642 | AS54: 3296510642 | AT54: 3296510642 | AU54: 3296510642 | AV54: 3296510642 | AW54: 3296510642 | AX54: 3296510642 | AY54: 3296510642 | AZ54: 3296510642 | BA54: 3296510642 | BB54: 3296511402 | BC54: 3296511402 | BD54: 3296511402 | BE54: 3296511402 | BF54: 3296511402 | BG54: 3296511402 | BH54: 3296511402 | BI54: 3296511402 | BJ54: 3296511402 | BK54: 3296512162 | BL54: 3296512162 | BM54: 3296512162 | BN54: 3296512162 | BO54: 3296512162 | BP54: 3296512162 | BQ54: 3296512162 | BR54: 3296512162 | BS54: 3296512162 | BT54: 3296512162
B55: 144 | C55: 3397008372 | D55: 3397008372 | E55: 3296507632 | F55: 3296507632 | G55: 3296507632 | H55: 3296507632 | I55: 3296507632 | J55: 3296507632 | K55: 3296507632 | L55: 3296507632 | M55: 3296507632 | N55: 3296507632 | O55: 3296508382 | P55: 3296508382 | Q55: 3296508382 | R55: 3296508382 | S55: 3296508382 | T55: 3296508382 | U55: 3296508382 | V55: 3296508382 | W55: 3296508382 | X55: 3397009752 | Y55: 3296509132 | Z55: 3296509132 | AA55: 3296509132 | AB55: 3296509132 | AC55: 3296509132 | AD55: 3296509132 | AE55: 3296509132 | AF55: 3296509132 | AG55: 3296509132 | AH55: 3397010442 | AI55: 3296509892 | AJ55: 3296509892 | AK55: 3296509892 | AL55: 3296509892 | AM55: 3296509892 | AN55: 3296509892 | AO55: 3296509892 | AP55: 3296509892 | AQ55: 3296509892 | AR55: 3397011132 | AS55: 3296510642 | AT55: 3296510642 | AU55: 3296510642 | AV55: 3296510642 | AW55: 3296510642 | AX55: 3296510642 | AY55: 3296510642 | AZ55: 3296510642 | BA55: 3397011832 | BB55: 3397011832 | BC55: 3296511402 | BD55: 3296511402 | BE55: 3296511402 | BF55: 3296511402 | BG55: 3296511402 | BH55: 3296511402 | BI55: 3296511402 | BJ55: 3296511402 | BK55: 3296511402 | BL55: 3296511402 | BM55: 3296512162 | BN55: 3296512162 | BO55: 3296512162 | BP55: 3296512162 | BQ55: 3296512162 | BR55: 3296512162 | BS55: 3296512162 | BT55: 3296512162
B56: 146 | C56: 3295305032 | D56: 3295305032 | E56: 3397008372 | F56: 3296507632 | G56: 3296507632 | H56: 3296507632 | I56: 3296507632 | J56: 3296507632 | K56: 3296507632 | L56: 3296507632 | M56: 3296507632 | N56: 3296507632 | O56: 3397008372 | P56: 3296508382 | Q56: 3296508382 | R56: 3296508382 | S56: 3296508382 | T56: 3296508382 | U56: 3296508382 | V56: 3296508382 | W56: 3296508382 | X56: 3397009752 | Y56: 3397009752 | Z56: 3296509132 | AA56: 3296509132 | AB56: 3296509132 | AC56: 3296509132 | AD56: 3296509132 | AE56: 3296509132 | AF56: 3296509132 | AG56: 3296509132 | AH56: 3397010442 | AI56: 3397010442 | AJ56: 3397010442 | AK56: 3296509892 | AL56: 3296509892 | AM56: 3296509892 | AN56: 3296509892 | AO56: 3296509892 | AP56: 3296509892 | AQ56: 3296509892 | AR56: 3397011132 | AS56: 3397011132 | AT56: 3397011132 | AU56: 3296510642 | AV56: 3296510642 | AW56: 3296510642 | AX56: 3296510642 | AY56: 3296510642 | AZ56: 3296510642 | BA56: 3397011832 | BB56: 3397011832 | BC56: 3397011832 | BD56: 3397011832 | BE56: 3296511402 | BF56: 3296511402 | BG56: 3296511402 | BH56: 3296511402 | BI56: 3296511402 | BJ56: 3296511402 | BK56: 3397012522 | BL56: 3397012522 | BM56: 3296511402 | BN56: 3296511402 | BO56: 3296512162 | BP56: 3296512162 | BQ56: 3296512162 | BR56: 3296512162 | BS56: 3296512162 | BT56: 3296512162
B57: 148 | C57: 3295305032 | D57: 3295305032 | E57: 3295305032 | F57: 3397008372 | G57: 3296507632 | H57: 3296507632 | I57: 3296507632 | J57: 3296507632 | K57: 3296507632 | L57: 3296507632 | M57: 3296507632 | N57: 3397008372 | O57: 3397008372 | P57: 3397008372 | Q57: 3397008372 | R57: 3296508382 | S57: 3296508382 | T57: 3296508382 | U57: 3296508382 | V57: 3296508382 | W57: 3296508382 | X57: 3397009062 | Y57: 3397009062 | Z57: 3397009752 | AA57: 3397009752 | AB57: 3296509132 | AC57: 3296509132 | AD57: 3296509132 | AE57: 3296509132 | AF57: 3296509132 | AG57: 3296509132 | AH57: 3397010442 | AI57: 3397010442 | AJ57: 3397010442 | AK57: 3397010442 | AL57: 3296509892 | AM57: 3296509892 | AN57: 3296509892 | AO57: 3296509892 | AP57: 3296509892 | AQ57: 3397011132 | AR57: 3397011132 | AS57: 3397011132 | AT57: 3397011132 | AU57: 3397011132 | AV57: 3296510642 | AW57: 3296510642 | AX57: 3296510642 | AY57: 3296510642 | AZ57: 3296510642 | BA57: 3397011832 | BB57: 3397011832 | BC57: 3397011832 | BD57: 3397011832 | BE57: 3397011832 | BF57: 3397011832 | BG57: 3296511402 | BH57: 3296511402 | BI57: 3296511402 | BJ57: 3296511402 | BK57: 3397012522 | BL57: 3397012522 | BM57: 3397012522 | BN57: 3397012522 | BO57: 3296511402 | BP57: 3296511402 | BQ57: 3296512162 | BR57: 3296512162 | BS57: 3296512162 | BT57: 3296512162
B58: 150 | C58: 3295305032 | D58: 3295305032 | E58: 3295305032 | F58: 3295305032 | G58: 3397008372 | H58: 3397008372 | I58: 3296507632 | J58: 3296507632 | K58: 3296507632 | L58: 3296507632 | M58: 3296507632 | N58: 3397008372 | O58: 3397008372 | P58: 3397008372 | Q58: 3397008372 | R58: 3397008372 | S58: 3296508382 | T58: 3296508382 | U58: 3296508382 | V58: 3296508382 | W58: 3296508382 | X58: 3397009062 | Y58: 3397009062 | Z58: 3397009062 | AA58: 3397009752 | AB58: 3397009752 | AC58: 3397009752 | AD58: 3296509132 | AE58: 3296509132 | AF58: 3296509132 | AG58: 3397009752 | AH58: 3397009752 | AI58: 3397009752 | AJ58: 3397010442 | AK58: 3397010442 | AL58: 3397010442 | AM58: 3397010442 | AN58: 3296509892 | AO58: 3296509892 | AP58: 3296509892 | AQ58: 3397010442 | AR58: 3397011132 | AS58: 3397011132 | AT58: 3397011132 | AU58: 3397011132 | AV58: 3397011132 | AW58: 3397011132 | AX58: 3296510642 | AY58: 3296510642 | AZ58: 3296510642 | BA58: 3397011832 | BB58: 3397011832 | BC58: 3397011832 | BD58: 3397011832 | BE58: 3397011832 | BF58: 3397011832 | BG58: 3397011832 | BH58: 3397011832 | BI58: 3296511402 | BJ58: 3296511402 | BK58: 3397012522 | BL58: 3397012522 | BM58: 3397012522 | BN58: 3397012522 | BO58: 3397012522 | BP58: 3397012522 | BQ58: 3296511402 | BR58: 3296511402 | BS58: 3296512162 | BT58: 3296512162
B59: 152 | C59: 3295305032 | D59: 3295305032 | E59: 3295305032 | F59: 3295305032 | G59: 3295305032 | H59: 3397008372 | I59: 3397008372 | J59: 3296507632 | K59: 3296507632 | L59: 3296507632 | M59: 3296507632 | N59: 3397008372 | O59: 3397008372 | P59: 3397008372 | Q59: 3397008372 | R59: 3397008372 | S59: 3397008372 | T59: 3397009062 | U59: 3296508382 | V59: 3296508382 | W59: 3296508382 | X59: 3397009062 | Y59: 3397009062 | Z59: 3397009062 | AA59: 3397009062 | AB59: 3397009062 | AC59: 3397009752 | AD59: 3397009752 | AE59: 3296509132 | AF59: 3296509132 | AG59: 3397009752 | AH59: 3397009752 | AI59: 3397009752 | AJ59: 3397009752 | AK59: 3397010442 | AL59: 3397010442 | AM59: 3397010442 | AN59: 3397010442 | AO59: 3397010442 | AP59: 3296509892 | AQ59: 3397010442 | AR59: 3397010442 | AS59: 3397011132 | AT59: 3397011132 | AU59: 3397011132 | AV59: 3397011132 | AW59: 3397011132 | AX59: 3397011132 | AY59: 3397011132 | AZ59: 3296510642 | BA59: 3397011132 | BB59: 3397011832 | BC59: 3397011832 | BD59: 3397011832 | BE59: 3397011832 | BF59: 3397011832 | BG59: 3397011832 | BH59: 3397011832 | BI59: 3397011832 | BJ59: 3397012522 | BK59: 3397012522 | BL59: 3397012522 | BM59: 3397012522 | BN59: 3397012522 | BO59: 3397012522 | BP59: 3397012522 | BQ59: 3397012522 | BR59: 3397012522 | BS59: 3296511402 | BT59: 3296511402
B60: 154 | C60: 3295305032 | D60: 3295305032 | E60: 3295305032 | F60: 3295305032 | G60: 3295305032 | H60: 3295305032 | I60: 3295305032 | J60: 3397008372 | K60: 3296507632 | L60: 3296507632 | M60: 3296507632 | N60: 3397008372 | O60: 3397008372 | P60: 3397008372 | Q60: 3397008372 | R60: 3397008372 | S60: 3397008372 | T60: 3397008372 | U60: 3397009062 | V60: 3296508382 | W60: 3397009062 | X60: 3397009062 | Y60: 3397009062 | Z60: 3397009062 | AA60: 3397009062 | AB60: 3397009062 | AC60: 3397009062 | AD60: 3397009752 | AE60: 3397009752 | AF60: 3397009752 | AG60: 3397009752 | AH60: 3397009752 | AI60: 3397009752 | AJ60: 3397009752 | AK60: 3397009752 | AL60: 3397010442 | AM60: 3397010442 | AN60: 3397010442 | AO60: 3397010442 | AP60: 3397010442 | AQ60: 3397010442 | AR60: 3397010442 | AS60: 3397010442 | AT60: 3397010442 | AU60: 3397011132 | AV60: 3397011132 | AW60: 3397011132 | AX60: 3397011132 | AY60: 3397011132 | AZ60: 3397011132 | BA60: 3397011132 | BB60: 3397011132 | BC60: 3397011132 | BD60: 3397011832 | BE60: 3397011832 | BF60: 3397011832 | BG60: 3397011832 | BH60: 3397011832 | BI60: 3397011832 | BJ60: 3397011832 | BK60: 3397011832 | BL60: 3397012522 | BM60: 3397012522 | BN60: 3397012522 | BO60: 3397012522 | BP60: 3397012522 | BQ60: 3397012522 | BR60: 3397012522 | BS60: 3397012522 | BT60: 3397012522
B61: 156 | C61: 3295305032 | D61: 3295305032 | E61: 3295305032 | F61: 3295305032 | G61: 3295305032 | H61: 3295305032 | I61: 3295305032 | J61: 3295305032 | K61: 3397008372 | L61: 3397008372 | M61: 3397008372 | N61: 3397008372 | O61: 3397008372 | P61: 3397008372 | Q61: 3397008372 | R61: 3397008372 | S61: 3397008372 | T61: 3397008372 | U61: 3397008372 | V61: 3397008372 | W61: 3397009062 | X61: 3397009062 | Y61: 3397009062 | Z61: 3397009062 | AA61: 3397009062 | AB61: 3397009062 | AC61: 3397009062 | AD61: 3397009062 | AE61: 3397009752 | AF61: 3397009752 | AG61: 3397009752 | AH61: 3397009752 | AI61: 3397009752 | AJ61: 3397009752 | AK61: 3397009752 | AL61: 3397009752 | AM61: 3397009752 | AN61: 3397010442 | AO61: 3397010442 | AP61: 3397010442 | AQ61: 3397010442 | AR61: 3397010442 | AS61: 3397010442 | AT61: 3397010442 | AU61: 3397010442 | AV61: 3397010442 | AW61: 3397011132 | AX61: 3397011132 | AY61: 3397011132 | AZ61: 3397011132 | BA61: 3397011132 | BB61: 3397011132 | BC61: 3397011132 | BD61: 3397011132 | BE61: 3397011832 | BF61: 3397011832 | BG61: 3397011832 | BH61: 3397011832 | BI61: 3397011832 | BJ61: 3397011832 | BK61: 3397011832 | BL61: 3397011832 | BM61: 3397011832 | BN61: 3397012522 | BO61: 3397012522 | BP61: 3397012522 | BQ61: 3397012522 | BR61: 3397012522 | BS61: 3397012522 | BT61: 3397012522
B62: 158 | C62: 3295305032 | D62: 3295305032 | E62: 3295305032 | F62: 3295305032 | G62: 3295305032 | H62: 3295305032 | I62: 3295305032 | J62: 3295305032 | K62: 3295305032 | L62: 3397008372 | M62: 3397008372 | N62: 3397008372 | O62: 3397008372 | P62: 3397008372 | Q62: 3397008372 | R62: 3397008372 | S62: 3397008372 | T62: 3397008372 | U62: 3397008372 | V62: 3397008372 | W62: 3397008372 | X62: 3397009062 | Y62: 3397009062 | Z62: 3397009062 | AA62: 3397009062 | AB62: 3397009062 | AC62: 3397009062 | AD62: 3397009062 | AE62: 3397009062 | AF62: 3397009062 | AG62: 3397009752 | AH62: 3397009752 | AI62: 3397009752 | AJ62: 3397009752 | AK62: 3397009752 | AL62: 3397009752 | AM62: 3397009752 | AN62: 3397009752 | AO62: 3397010442 | AP62: 3397010442 | AQ62: 3397010442 | AR62: 3397010442 | AS62: 3397010442 | AT62: 3397010442 | AU62: 3397010442 | AV62: 3397010442 | AW62: 3397010442 | AX62: 3397011132 | AY62: 3397011132 | AZ62: 3397011132 | BA62: 3397011132 | BB62: 3397011132 | BC62: 3397011132 | BD62: 3397011132 | BE62: 3397011132 | BF62: 3397011132 | BG62: 3397011832 | BH62: 3397011832 | BI62: 3397011832 | BJ62: 3397011832 | BK62: 3397011832 | BL62: 3397011832 | BM62: 3397011832 | BN62: 3397011832 | BO62: 3397011832 | BP62: 3397012522 | BQ62: 3397012522 | BR62: 3397012522 | BS62: 3397012522 | BT62: 3397012522
B63: 160 | C63: 3295305032 | D63: 3295305032 | E63: 3295305032 | F63: 3295305032 | G63: 3295305032 | H63: 3295305032 | I63: 3295305032 | J63: 3295305032 | K63: 3295305032 | L63: 3295305032 | M63: 3295305512 | N63: 3397008372 | O63: 3397008372 | P63: 3397008372 | Q63: 3397008372 | R63: 3397008372 | S63: 3397008372 | T63: 3397008372 | U63: 3397008372 | V63: 3397008372 | W63: 3397008372 | X63: 3397008372 | Y63: 3397009062 | Z63: 3397009062 | AA63: 3397009062 | AB63: 3397009062 | AC63: 3397009062 | AD63: 3397009062 | AE63: 3397009062 | AF63: 3397009062 | AG63: 3397009062 | AH63: 3397009752 | AI63: 3397009752 | AJ63: 3397009752 | AK63: 3397009752 | AL63: 3397009752 | AM63: 3397009752 | AN63: 3397009752 | AO63: 3397009752 | AP63: 3397009752 | AQ63: 3397010442 | AR63: 3397010442 | AS63: 3397010442 | AT63: 3397010442 | AU63: 3397010442 | AV63: 3397010442 | AW63: 3397010442 | AX63: 3397010442 | AY63: 3397010442 | AZ63: 3397011132 | BA63: 3397011132 | BB63: 3397011132 | BC63: 3397011132 | BD63: 3397011132 | BE63: 3397011132 | BF63: 3397011132 | BG63: 3397011132 | BH63: 3397011132 | BI63: 3397011832 | BJ63: 3397011832 | BK63: 3397011832 | BL63: 3397011832 | BM63: 3397011832 | BN63: 3397011832 | BO63: 3397011832 | BP63: 3397011832 | BQ63: 3397011832 | BR63: 3397012522 | BS63: 3397012522 | BT63: 3397012522
B64: 162 | C64: 3295505412 | D64: 3295305032 | E64: 3295305032 | F64: 3295305032 | G64: 3295305032 | H64: 3295305032 | I64: 3295305032 | J64: 3295305032 | K64: 3295305032 | L64: 3295305032 | M64: 3295305512 | N64: 3295305512 | O64: 3397008372 | P64: 3397008372 | Q64: 3397008372 | R64: 3397008372 | S64: 3397008372 | T64: 3397008372 | U64: 3397008372 | V64: 3397008372 | W64: 3397008372 | X64: 3397008372 | Y64: 3397008372 | Z64: 3397009062 | AA64: 3397009062 | AB64: 3397009062 | AC64: 3397009062 | AD64: 3397009062 | AE64: 3397009062 | AF64: 3397009062 | AG64: 3397009062 | AH64: 3397009062 | AI64: 3397009752 | AJ64: 3397009752 | AK64: 3397009752 | AL64: 3397009752 | AM64: 3397009752 | AN64: 3397009752 | AO64: 3397009752 | AP64: 3397009752 | AQ64: 3397009752 | AR64: 3397010442 | AS64: 3397010442 | AT64: 3397010442 | AU64: 3397010442 | AV64: 3397010442 | AW64: 3397010442 | AX64: 3397010442 | AY64: 3397010442 | AZ64: 3397010442 | BA64: 3397011132 | BB64: 3397011132 | BC64: 3397011132 | BD64: 3397011132 | BE64: 3397011132 | BF64: 3397011132 | BG64: 3397011132 | BH64: 3397011132 | BI64: 3397011132 | BJ64: 3397011832 | BK64: 3397011832 | BL64: 3397011832 | BM64: 3397011832 | BN64: 3397011832 | BO64: 3397011832 | BP64: 3397011832 | BQ64: 3397011832 | BR64: 3397011832 | BS64: 3397012522 | BT64: 3397012522
B65: 164 | C65: 3295505412 | D65: 3295505412 | E65: 3295305032 | F65: 3295305032 | G65: 3295305032 | H65: 3295305032 | I65: 3295305032 | J65: 3295305032 | K65: 3295305032 | L65: 3295305032 | M65: 3295505932 | N65: 3295505932 | O65: 3295305512 | P65: 3397008372 | Q65: 3397008372 | R65: 3397008372 | S65: 3397008372 | T65: 3397008372 | U65: 3397008372 | V65: 3397008372 | W65: 3397008372 | X65: 3397008372 | Y65: 3397008372 | Z65: 3397008372 | AA65: 3397008372 | AB65: 3397009062 | AC65: 3397009062 | AD65: 3397009062 | AE65: 3397009062 | AF65: 3397009062 | AG65: 3397009062 | AH65: 3397009062 | AI65: 3397009062 | AJ65: 3397009062 | AK65: 3397009752 | AL65: 3397009752 | AM65: 3397009752 | AN65: 3397009752 | AO65: 3397009752 | AP65: 3397009752 | AQ65: 3397009752 | AR65: 3397009752 | AS65: 3397009752 | AT65: 3397010442 | AU65: 3397010442 | AV65: 3397010442 | AW65: 3397010442 | AX65: 3397010442 | AY65: 3397010442 | AZ65: 3397010442 | BA65: 3397010442 | BB65: 3397010442 | BC65: 3397011132 | BD65: 3397011132 | BE65: 3397011132 | BF65: 3397011132 | BG65: 3397011132 | BH65: 3397011132 | BI65: 3397011132 | BJ65: 3397011132 | BK65: 3397011132 | BL65: 3397011832 | BM65: 3397011832 | BN65: 3397011832 | BO65: 3397011832 | BP65: 3397011832 | BQ65: 3397011832 | BR65: 3397011832 | BS65: 3397011832 | BT65: 3397011832
B66: 166 | C66: 3295505412 | D66: 3295505412 | E66: 3295505412 | F66: 3295305032 | G66: 3295305032 | H66: 3295305032 | I66: 3295305032 | J66: 3295305032 | K66: 3295305032 | L66: 3295305032 | M66: 3295505932 | N66: 3295505932 | O66: 3295505932 | P66: 3295305512 | Q66: 3397008372 | R66: 3397008372 | S66: 3397008372 | T66: 3397008372 | U66: 3397008372 | V66: 3397008372 | W66: 3397008372 | X66: 3397008372 | Y66: 3397008372 | Z66: 3397008372 | AA66: 3397008372 | AB66: 3397008372 | AC66: 3397009062 | AD66: 3397009062 | AE66: 3397009062 | AF66: 3397009062 | AG66: 3397009062 | AH66: 3397009062 | AI66: 3397009062 | AJ66: 3397009062 | AK66: 3397009062 | AL66: 3397009752 | AM66: 3397009752 | AN66: 3397009752 | AO66: 3397009752 | AP66: 3397009752 | AQ66: 3397009752 | AR66: 3397009752 | AS66: 3397009752 | AT66: 3397009752 | AU66: 3397010442 | AV66: 3397010442 | AW66: 3397010442 | AX66: 3397010442 | AY66: 3397010442 | AZ66: 3397010442 | BA66: 3397010442 | BB66: 3397010442 | BC66: 3397010442 | BD66: 3397010442 | BE66: 3397011132 | BF66: 3397011132 | BG66: 3397011132 | BH66: 3397011132 | BI66: 3397011132 | BJ66: 3397011132 | BK66: 3397011132 | BL66: 3397011132 | BM66: 3397011132 | BN66: 3397011832 | BO66: 3397011832 | BP66: 3397011832 | BQ66: 3397011832 | BR66: 3397011832 | BS66: 3397011832 | BT66: 3397011832
B67: 168 | C67: 3295505412 | D67: 3295505412 | E67: 3295505412 | F67: 3295505412 | G67: 3295305032 | H67: 3295305032 | I67: 3295305032 | J67: 3295305032 | K67: 3295305032 | L67: 3295505932 | M67: 3295505932 | N67: 3295505932 | O67: 3295505932 | P67: 3295505932 | Q67: 3295305512 | R67: 3295305512 | S67: 3397008372 | T67: 3397008372 | U67: 3397008372 | V67: 3397008372 | W67: 3397008372 | X67: 3397008372 | Y67: 3397008372 | Z67: 3397008372 | AA67: 3397008372 | AB67: 3397008372 | AC67: 3397008372 | AD67: 3397009062 | AE67: 3397009062 | AF67: 3397009062 | AG67: 3397009062 | AH67: 3397009062 | AI67: 3397009062 | AJ67: 3397009062 | AK67: 3397009062 | AL67: 3397009062 | AM67: 3397009062 | AN67: 3397009752 | AO67: 3397009752 | AP67: 3397009752 | AQ67: 3397009752 | AR67: 3397009752 | AS67: 3397009752 | AT67: 3397009752 | AU67: 3397009752 | AV67: 3397009752 | AW67: 3397010442 | AX67: 3397010442 | AY67: 3397010442 | AZ67: 3397010442 | BA67: 3397010442 | BB67: 3397010442 | BC67: 3397010442 | BD67: 3397010442 | BE67: 3397010442 | BF67: 3397011132 | BG67: 3397011132 | BH67: 3397011132 | BI67: 3397011132 | BJ67: 3397011132 | BK67: 3397011132 | BL67: 3397011132 | BM67: 3397011132 | BN67: 3397011132 | BO67: 3397011832 | BP67: 3397011832 | BQ67: 3397011832 | BR67: 3397011832 | BS67: 3397011832 | BT67: 3397011832
B68: 170 | C68: 3295505412 | D68: 3295505412 | E68: 3295505412 | F68: 3295505412 | G68: 3295505412 | H68: 3295305032 | I68: 3295305032 | J68: 3295305032 | K68: 3295305032 | L68: 3295505932 | M68: 3295505932 | N68: 3295505932 | O68: 3295505932 | P68: 3295505932 | Q68: 3295505932 | R68: 3295505932 | S68: 3295305512 | T68: 3397008372 | U68: 3397008372 | V68: 3397008372 | W68: 3397008372 | X68: 3397008372 | Y68: 3397008372 | Z68: 3397008372 | AA68: 3397008372 | AB68: 3397008372 | AC68: 3397008372 | AD68: 3397008372 | AE68: 3397009062 | AF68: 3397009062 | AG68: 3397009062 | AH68: 3397009062 | AI68: 3397009062 | AJ68: 3397009062 | AK68: 3397009062 | AL68: 3397009062 | AM68: 3397009062 | AN68: 3397009062 | AO68: 3397009752 | AP68: 3397009752 | AQ68: 3397009752 | AR68: 3397009752 | AS68: 3397009752 | AT68: 3397009752 | AU68: 3397009752 | AV68: 3397009752 | AW68: 3397009752 | AX68: 3397010442 | AY68: 3397010442 | AZ68: 3397010442 | BA68: 3397010442 | BB68: 3397010442 | BC68: 3397010442 | BD68: 3397010442 | BE68: 3397010442 | BF68: 3397010442 | BG68: 3397010442 | BH68: 3397011132 | BI68: 3397011132 | BJ68: 3397011132 | BK68: 3397011132 | BL68: 3397011132 | BM68: 3397011132 | BN68: 3397011132 | BO68: 3397011132 | BP68: 3397011132 | BQ68: 3397011832 | BR68: 3397011832 | BS68: 3397011832 | BT68: 3397011832
B69: =B68+2 -> 172 | C69: 3295505412 | D69: 3295505412 | E69: 3295505412 | F69: 3295505412 | G69: 3295505412 | H69: 3295505412 | I69: 3295305032 | J69: 3295305032 | K69: 3295305032 | L69: 3295505932 | M69: 3295505932 | N69: 3295505932 | O69: 3295505932 | P69: 3295505932 | Q69: 3295505932 | R69: 3295505932 | S69: 3295505932 | T69: 3295305512 | U69: 3397008372 | V69: 3397008372 | W69: 3397008372 | X69: 3397008372 | Y69: 3397008372 | Z69: 3397008372 | AA69: 3397008372 | AB69: 3397008372 | AC69: 3397008372 | AD69: 3397008372 | AE69: 3397008372 | AF69: 3397008372 | AG69: 3397009062 | AH69: 3397009062 | AI69: 3397009062 | AJ69: 3397009062 | AK69: 3397009062 | AL69: 3397009062 | AM69: 3397009062 | AN69: 3397009062 | AO69: 3397009062 | AP69: 3397009752 | AQ69: 3397009752 | AR69: 3397009752 | AS69: 3397009752 | AT69: 3397009752 | AU69: 3397009752 | AV69: 3397009752 | AW69: 3397009752 | AX69: 3397009752 | AY69: 3397009752 | AZ69: 3397010442 | BA69: 3397010442 | BB69: 3397010442 | BC69: 3397010442 | BD69: 3397010442 | BE69: 3397010442 | BF69: 3397010442 | BG69: 3397010442 | BH69: 3397010442 | BI69: 3397011132 | BJ69: 3397011132 | BK69: 3397011132 | BL69: 3397011132 | BM69: 3397011132 | BN69: 3397011132 | BO69: 3397011132 | BP69: 3397011132 | BQ69: 3397011132 | BR69: 3397011132 | BS69: 3397011832 | BT69: 3397011832
B70: 174 | C70: 3295505412 | D70: 3295505412 | E70: 3295505412 | F70: 3295505412 | G70: 3295505412 | H70: 3295505412 | I70: 3295505412 | J70: 3295505412 | K70: 3295305032 | L70: 3295505932 | M70: 3295505932 | N70: 3295505932 | O70: 3295505932 | P70: 3295505932 | Q70: 3295505932 | R70: 3295505932 | S70: 3295505932 | T70: 3295505932 | U70: 3295505932 | V70: 3295506462 | W70: 3397008372 | X70: 3397008372 | Y70: 3397008372 | Z70: 3397008372 | AA70: 3397008372 | AB70: 3397008372 | AC70: 3397008372 | AD70: 3397008372 | AE70: 3397008372 | AF70: 3397008372 | AG70: 3397008372 | AH70: 3397009062 | AI70: 3397009062 | AJ70: 3397009062 | AK70: 3397009062 | AL70: 3397009062 | AM70: 3397009062 | AN70: 3397009062 | AO70: 3397009062 | AP70: 3397009062 | AQ70: 3397009062 | AR70: 3397009752 | AS70: 3397009752 | AT70: 3397009752 | AU70: 3397009752 | AV70: 3397009752 | AW70: 3397009752 | AX70: 3397009752 | AY70: 3397009752 | AZ70: 3397009752 | BA70: 3397010442 | BB70: 3397010442 | BC70: 3397010442 | BD70: 3397010442 | BE70: 3397010442 | BF70: 3397010442 | BG70: 3397010442 | BH70: 3397010442 | BI70: 3397010442 | BJ70: 3397010442 | BK70: 3397011132 | BL70: 3397011132 | BM70: 3397011132 | BN70: 3397011132 | BO70: 3397011132 | BP70: 3397011132 | BQ70: 3397011132 | BR70: 3397011132 | BS70: 3397011132 | BT70: 3397011832
B71: 176 | C71: 3295505412 | D71: 3295505412 | E71: 3295505412 | F71: 3295505412 | G71: 3295505412 | H71: 3295505412 | I71: 3295505412 | J71: 3295505412 | K71: 3295505412 | L71: 3295505412 | M71: 3295505932 | N71: 3295505932 | O71: 3295505932 | P71: 3295505932 | Q71: 3295505932 | R71: 3295505932 | S71: 3295505932 | T71: 3295505932 | U71: 3295505932 | V71: 3295505932 | W71: 3295506462 | X71: 3397008372 | Y71: 3397008372 | Z71: 3397008372 | AA71: 3397008372 | AB71: 3397008372 | AC71: 3397008372 | AD71: 3397008372 | AE71: 3397008372 | AF71: 3397008372 | AG71: 3397008372 | AH71: 3397008372 | AI71: 3397009062 | AJ71: 3397009062 | AK71: 3397009062 | AL71: 3397009062 | AM71: 3397009062 | AN71: 3397009062 | AO71: 3397009062 | AP71: 3397009062 | AQ71: 3397009062 | AR71: 3397009752 | AS71: 3397009752 | AT71: 3397009752 | AU71: 3397009752 | AV71: 3397009752 | AW71: 3397009752 | AX71: 3397009752 | AY71: 3397009752 | AZ71: 3397009752 | BA71: 3397009752 | BB71: 3397010442 | BC71: 3397010442 | BD71: 3397010442 | BE71: 3397010442 | BF71: 3397010442 | BG71: 3397010442 | BH71: 3397010442 | BI71: 3397010442 | BJ71: 3397010442 | BK71: 3397010442 | BL71: 3397011132 | BM71: 3397011132 | BN71: 3397011132 | BO71: 3397011132 | BP71: 3397011132 | BQ71: 3397011132 | BR71: 3397011132 | BS71: 3397011132 | BT71: 3397011132
B72: 178 | C72: 3295505412 | D72: 3295505412 | E72: 3295505412 | F72: 3295505412 | G72: 3295505412 | H72: 3295505412 | I72: 3295505412 | J72: 3295505412 | K72: 3295505412 | L72: 3295505412 | M72: 3295505412 | N72: 3295505932 | O72: 3295505932 | P72: 3295505932 | Q72: 3295505932 | R72: 3295505932 | S72: 3295505932 | T72: 3295505932 | U72: 3295505932 | V72: 3295505932 | W72: 3295506462 | X72: 3295506462 | Y72: 3397008372 | Z72: 3397008372 | AA72: 3397008372 | AB72: 3397008372 | AC72: 3397008372 | AD72: 3397008372 | AE72: 3397008372 | AF72: 3397008372 | AG72: 3397008372 | AH72: 3397008372 | AI72: 3397009062 | AJ72: 3397009062 | AK72: 3397009062 | AL72: 3397009062 | AM72: 3397009062 | AN72: 3397009062 | AO72: 3397009062 | AP72: 3397009062 | AQ72: 3397009062 | AR72: 3295507512 | AS72: 3397009752 | AT72: 3397009752 | AU72: 3397009752 | AV72: 3397009752 | AW72: 3397009752 | AX72: 3397009752 | AY72: 3397009752 | AZ72: 3397009752 | BA72: 3397009752 | BB72: 3295508042 | BC72: 3397010442 | BD72: 3397010442 | BE72: 3397010442 | BF72: 3397010442 | BG72: 3397010442 | BH72: 3397010442 | BI72: 3397010442 | BJ72: 3397010442 | BK72: 3397010442 | BL72: 3295508572 | BM72: 3397011132 | BN72: 3397011132 | BO72: 3397011132 | BP72: 3397011132 | BQ72: 3397011132 | BR72: 3397011132 | BS72: 3397011132 | BT72: 3397011132
B73: 180 | C73: 3296007112 | D73: 3295505412 | E73: 3295505412 | F73: 3295505412 | G73: 3295505412 | H73: 3295505412 | I73: 3295505412 | J73: 3295505412 | K73: 3295505412 | L73: 3295505412 | M73: 3296008382 | N73: 3295505932 | O73: 3295505932 | P73: 3295505932 | Q73: 3295505932 | R73: 3295505932 | S73: 3295505932 | T73: 3295505932 | U73: 3295505932 | V73: 3295505932 | W73: 3296009022 | X73: 3295506462 | Y73: 3295506462 | Z73: 3397008372 | AA73: 3397008372 | AB73: 3397008372 | AC73: 3397008372 | AD73: 3397008372 | AE73: 3397008372 | AF73: 3397008372 | AG73: 3397008372 | AH73: 3295506982 | AI73: 3295506982 | AJ73: 3295506982 | AK73: 3397009062 | AL73: 3397009062 | AM73: 3397009062 | AN73: 3397009062 | AO73: 3397009062 | AP73: 3397009062 | AQ73: 3397009062 | AR73: 3295507512 | AS73: 3295507512 | AT73: 3295507512 | AU73: 3397009752 | AV73: 3397009752 | AW73: 3397009752 | AX73: 3397009752 | AY73: 3397009752 | AZ73: 3397009752 | BA73: 3397009752 | BB73: 3295508042 | BC73: 3295508042 | BD73: 3295508042 | BE73: 3397010442 | BF73: 3397010442 | BG73: 3397010442 | BH73: 3397010442 | BI73: 3397010442 | BJ73: 3397010442 | BK73: 3397010442 | BL73: 3295508572 | BM73: 3295508572 | BN73: 3295508572 | BO73: 3397011132 | BP73: 3397011132 | BQ73: 3397011132 | BR73: 3397011132 | BS73: 3397011132 | BT73: 3397011132
B74: 182 | C74: 3296007112 | D74: 3296007112 | E74: 3295505412 | F74: 3295505412 | G74: 3295505412 | H74: 3295505412 | I74: 3295505412 | J74: 3295505412 | K74: 3295505412 | L74: 3295505412 | M74: 3296008382 | N74: 3296008382 | O74: 3295505932 | P74: 3295505932 | Q74: 3295505932 | R74: 3295505932 | S74: 3295505932 | T74: 3295505932 | U74: 3295505932 | V74: 3295505932 | W74: 3296009022 | X74: 3296009022 | Y74: 3295506462 | Z74: 3295506462 | AA74: 3295506462 | AB74: 3397008372 | AC74: 3397008372 | AD74: 3397008372 | AE74: 3397008372 | AF74: 3397008372 | AG74: 3397008372 | AH74: 3296009662 | AI74: 3295506982 | AJ74: 3295506982 | AK74: 3295506982 | AL74: 3397009062 | AM74: 3397009062 | AN74: 3397009062 | AO74: 3397009062 | AP74: 3397009062 | AQ74: 3397009062 | AR74: 3296010942 | AS74: 3295507512 | AT74: 3295507512 | AU74: 3295507512 | AV74: 3397009752 | AW74: 3397009752 | AX74: 3397009752 | AY74: 3397009752 | AZ74: 3397009752 | BA74: 3397009752 | BB74: 3396009112 | BC74: 3295508042 | BD74: 3295508042 | BE74: 3295508042 | BF74: 3397010442 | BG74: 3397010442 | BH74: 3397010442 | BI74: 3397010442 | BJ74: 3397010442 | BK74: 3396009612 | BL74: 3396009612 | BM74: 3295508572 | BN74: 3295508572 | BO74: 3295508572 | BP74: 3397011132 | BQ74: 3397011132 | BR74: 3397011132 | BS74: 3397011132 | BT74: 3397011132
B75: 184 | C75: 3296007112 | D75: 3296007112 | E75: 3296007112 | F75: 3295505412 | G75: 3295505412 | H75: 3295505412 | I75: 3295505412 | J75: 3295505412 | K75: 3295505412 | L75: 3295505412 | M75: 3296007752 | N75: 3296008382 | O75: 3296008382 | P75: 3295505932 | Q75: 3295505932 | R75: 3295505932 | S75: 3295505932 | T75: 3295505932 | U75: 3295505932 | V75: 3295505932 | W75: 3296009022 | X75: 3296009022 | Y75: 3296009022 | Z75: 3295506462 | AA75: 3295506462 | AB75: 3295506462 | AC75: 3397008372 | AD75: 3397008372 | AE75: 3397008372 | AF75: 3397008372 | AG75: 3397008372 | AH75: 3296009662 | AI75: 3296009662 | AJ75: 3295506982 | AK75: 3295506982 | AL75: 3295506982 | AM75: 3397009062 | AN75: 3397009062 | AO75: 3397009062 | AP75: 3397009062 | AQ75: 3397009062 | AR75: 3296010302 | AS75: 3296010942 | AT75: 3295507512 | AU75: 3295507512 | AV75: 3295507512 | AW75: 3295507512 | AX75: 3397009752 | AY75: 3397009752 | AZ75: 3397009752 | BA75: 3397009752 | BB75: 3396009112 | BC75: 3396009112 | BD75: 3295508042 | BE75: 3295508042 | BF75: 3295508042 | BG75: 3295508042 | BH75: 3397010442 | BI75: 3397010442 | BJ75: 3397010442 | BK75: 3396009612 | BL75: 3396009612 | BM75: 3396009612 | BN75: 3295508572 | BO75: 3295508572 | BP75: 3295508572 | BQ75: 3295508572 | BR75: 3397011132 | BS75: 3397011132 | BT75: 3397011132
B76: 186 | C76: 3296007112 | D76: 3296007112 | E76: 3296007112 | F76: 3296007752 | G76: 3295505412 | H76: 3295505412 | I76: 3295505412 | J76: 3295505412 | K76: 3295505412 | L76: 3295505412 | M76: 3296007752 | N76: 3296008382 | O76: 3296008382 | P76: 3296008382 | Q76: 3295505932 | R76: 3295505932 | S76: 3295505932 | T76: 3295505932 | U76: 3295505932 | V76: 3296009022 | W76: 3296009022 | X76: 3296009022 | Y76: 3296009022 | Z76: 3296009022 | AA76: 3295506462 | AB76: 3295506462 | AC76: 3295506462 | AD76: 3397008372 | AE76: 3397008372 | AF76: 3397008372 | AG76: 3397008372 | AH76: 3296009662 | AI76: 3296009662 | AJ76: 3296009662 | AK76: 3295506982 | AL76: 3295506982 | AM76: 3295506982 | AN76: 3295506982 | AO76: 3397009062 | AP76: 3397009062 | AQ76: 3397009062 | AR76: 3296010302 | AS76: 3296010302 | AT76: 3296010942 | AU76: 3296010942 | AV76: 3295507512 | AW76: 3295507512 | AX76: 3295507512 | AY76: 3397009752 | AZ76: 3397009752 | BA76: 3296010942 | BB76: 3396009112 | BC76: 3396009112 | BD76: 3396009112 | BE76: 3396009112 | BF76: 3295508042 | BG76: 3295508042 | BH76: 3295508042 | BI76: 3396009112 | BJ76: 3397010442 | BK76: 3396009612 | BL76: 3396009612 | BM76: 3396009612 | BN76: 3396009612 | BO76: 3396009612 | BP76: 3295508572 | BQ76: 3295508572 | BR76: 3295508572 | BS76: 3295508572 | BT76: 3397011132
B77: 188 | C77: 3296007112 | D77: 3296007112 | E77: 3296007112 | F77: 3296007112 | G77: 3296007752 | H77: 3295505412 | I77: 3295505412 | J77: 3295505412 | K77: 3295505412 | L77: 3295505412 | M77: 3296007752 | N77: 3296007752 | O77: 3296008382 | P77: 3296008382 | Q77: 3296008382 | R77: 3295505932 | S77: 3295505932 | T77: 3295505932 | U77: 3295505932 | V77: 3296008382 | W77: 3296009022 | X77: 3296009022 | Y77: 3296009022 | Z77: 3296009022 | AA77: 3296009022 | AB77: 3296009022 | AC77: 3295506462 | AD77: 3295506462 | AE77: 3295506462 | AF77: 3397008372 | AG77: 3397008372 | AH77: 3296009662 | AI77: 3296009662 | AJ77: 3296009662 | AK77: 3296009662 | AL77: 3296009662 | AM77: 3295506982 | AN77: 3295506982 | AO77: 3296010302 | AP77: 3397009062 | AQ77: 3397009062 | AR77: 3296010302 | AS77: 3296010302 | AT77: 3296010302 | AU77: 3296010302 | AV77: 3296010942 | AW77: 3295507512 | AX77: 3295507512 | AY77: 3296010942 | AZ77: 3296010942 | BA77: 3296010942 | BB77: 3296010942 | BC77: 3296010942 | BD77: 3396009112 | BE77: 3396009112 | BF77: 3396009112 | BG77: 3295508042 | BH77: 3295508042 | BI77: 3396009112 | BJ77: 3396009112 | BK77: 3396009112 | BL77: 3396009612 | BM77: 3396009612 | BN77: 3396009612 | BO77: 3396009612 | BP77: 3396009612 | BQ77: 3396009612 | BR77: 3396009612 | BS77: 3396009612 | BT77: 3295508572
B78: 190 | C78: 3296007112 | D78: 3296007112 | E78: 3296007112 | F78: 3296007112 | G78: 3296007112 | H78: 3296007752 | I78: 3295505412 | J78: 3295505412 | K78: 3295505412 | L78: 3295505412 | M78: 3296007752 | N78: 3296007752 | O78: 3296007752 | P78: 3296008382 | Q78: 3296008382 | R78: 3296008382 | S78: 3295505932 | T78: 3295505932 | U78: 3295505932 | V78: 3296008382 | W78: 3296008382 | X78: 3296009022 | Y78: 3296009022 | Z78: 3296009022 | AA78: 3296009022 | AB78: 3296009022 | AC78: 3296009022 | AD78: 3295506462 | AE78: 3295506462 | AF78: 3296009022 | AG78: 3397008372 | AH78: 3296009662 | AI78: 3296009662 | AJ78: 3296009662 | AK78: 3296009662 | AL78: 3296009662 | AM78: 3296009662 | AN78: 3295506982 | AO78: 3296010302 | AP78: 3296010302 | AQ78: 3296010302 | AR78: 3296010302 | AS78: 3296010302 | AT78: 3296010302 | AU78: 3296010302 | AV78: 3296010302 | AW78: 3296010942 | AX78: 3295507512 | AY78: 3296010942 | AZ78: 3296010942 | BA78: 3296010942 | BB78: 3296010942 | BC78: 3296010942 | BD78: 3296010942 | BE78: 3396009112 | BF78: 3396009112 | BG78: 3396009112 | BH78: 3396009112 | BI78: 3396009112 | BJ78: 3396009112 | BK78: 3396009112 | BL78: 3396009112 | BM78: 3396009612 | BN78: 3396009612 | BO78: 3396009612 | BP78: 3396009612 | BQ78: 3396009612 | BR78: 3396009612 | BS78: 3396009612 | BT78: 3396009612
B79: 192 | C79: 3296007112 | D79: 3296007112 | E79: 3296007112 | F79: 3296007112 | G79: 3296007112 | H79: 3296007112 | I79: 3296007752 | J79: 3295505412 | K79: 3295505412 | L79: 3296007752 | M79: 3296007752 | N79: 3296007752 | O79: 3296007752 | P79: 3296007752 | Q79: 3296008382 | R79: 3296008382 | S79: 3296008382 | T79: 3295505932 | U79: 3295505932 | V79: 3296008382 | W79: 3296008382 | X79: 3296008382 | Y79: 3296008382 | Z79: 3296009022 | AA79: 3296009022 | AB79: 3296009022 | AC79: 3296009022 | AD79: 3296009022 | AE79: 3295506462 | AF79: 3296009022 | AG79: 3296009022 | AH79: 3296009662 | AI79: 3296009662 | AJ79: 3296009662 | AK79: 3296009662 | AL79: 3296009662 | AM79: 3296009662 | AN79: 3296009662 | AO79: 3296009662 | AP79: 3296010302 | AQ79: 3296010302 | AR79: 3296010302 | AS79: 3296010302 | AT79: 3296010302 | AU79: 3296010302 | AV79: 3296010302 | AW79: 3296010302 | AX79: 3296010942 | AY79: 3296010942 | AZ79: 3296010942 | BA79: 3296010942 | BB79: 3296010942 | BC79: 3296010942 | BD79: 3296010942 | BE79: 3296010942 | BF79: 3396009112 | BG79: 3396009112 | BH79: 3396009112 | BI79: 3396009112 | BJ79: 3396009112 | BK79: 3396009112 | BL79: 3396009112 | BM79: 3396009112 | BN79: 3396009112 | BO79: 3396009612 | BP79: 3396009612 | BQ79: 3396009612 | BR79: 3396009612 | BS79: 3396009612 | BT79: 3396009612
B80: 194 | C80: 3296007112 | D80: 3296007112 | E80: 3296007112 | F80: 3296007112 | G80: 3296007112 | H80: 3296007112 | I80: 3296007112 | J80: 3296007752 | K80: 3295505412 | L80: 3296007752 | M80: 3296007752 | N80: 3296007752 | O80: 3296007752 | P80: 3296007752 | Q80: 3296007752 | R80: 3296008382 | S80: 3296008382 | T80: 3296008382 | U80: 3296008382 | V80: 3296008382 | W80: 3296008382 | X80: 3296008382 | Y80: 3296008382 | Z80: 3296008382 | AA80: 3296009022 | AB80: 3296009022 | AC80: 3296009022 | AD80: 3296009022 | AE80: 3296009022 | AF80: 3296009022 | AG80: 3296009022 | AH80: 3296009022 | AI80: 3296009662 | AJ80: 3296009662 | AK80: 3296009662 | AL80: 3296009662 | AM80: 3296009662 | AN80: 3296009662 | AO80: 3296009662 | AP80: 3296009662 | AQ80: 3296010302 | AR80: 3296010302 | AS80: 3296010302 | AT80: 3296010302 | AU80: 3296010302 | AV80: 3296010302 | AW80: 3296010302 | AX80: 3296010302 | AY80: 3296010302 | AZ80: 3296010942 | BA80: 3296010942 | BB80: 3296010942 | BC80: 3296010942 | BD80: 3296010942 | BE80: 3296010942 | BF80: 3296010942 | BG80: 3296010942 | BH80: 3396009112 | BI80: 3396009112 | BJ80: 3396009112 | BK80: 3396009112 | BL80: 3396009112 | BM80: 3396009112 | BN80: 3396009112 | BO80: 3396009112 | BP80: 3396009612 | BQ80: 3396009612 | BR80: 3396009612 | BS80: 3396009612 | BT80: 3396009612
B81: =B80+2 -> 196 | C81: 3296007112 | D81: 3296007112 | E81: 3296007112 | F81: 3296007112 | G81: 3296007112 | H81: 3296007112 | I81: 3296007112 | J81: 3296007112 | K81: 3296007752 | L81: 3296007752 | M81: 3296007752 | N81: 3296007752 | O81: 3296007752 | P81: 3296007752 | Q81: 3296007752 | R81: 3296007752 | S81: 3296008382 | T81: 3296008382 | U81: 3296008382 | V81: 3296008382 | W81: 3296008382 | X81: 3296008382 | Y81: 3296008382 | Z81: 3296008382 | AA81: 3296008382 | AB81: 3296009022 | AC81: 3296009022 | AD81: 3296009022 | AE81: 3296009022 | AF81: 3296009022 | AG81: 3296009022 | AH81: 3296009022 | AI81: 3296009022 | AJ81: 3296009662 | AK81: 3296009662 | AL81: 3296009662 | AM81: 3296009662 | AN81: 3296009662 | AO81: 3296009662 | AP81: 3296009662 | AQ81: 3296009662 | AR81: 3296010302 | AS81: 3296010302 | AT81: 3296010302 | AU81: 3296010302 | AV81: 3296010302 | AW81: 3296010302 | AX81: 3296010302 | AY81: 3296010302 | AZ81: 3296010302 | BA81: 3296010942 | BB81: 3296010942 | BC81: 3296010942 | BD81: 3296010942 | BE81: 3296010942 | BF81: 3296010942 | BG81: 3296010942 | BH81: 3296010942 | BI81: 3396009112 | BJ81: 3396009112 | BK81: 3396009112 | BL81: 3396009112 | BM81: 3396009112 | BN81: 3396009112 | BO81: 3396009112 | BP81: 3396009112 | BQ81: 3396009112 | BR81: 3396009612 | BS81: 3396009612 | BT81: 3396009612
B82: =B81+2 -> 198 | C82: 3296007112 | D82: 3296007112 | E82: 3296007112 | F82: 3296007112 | G82: 3296007112 | H82: 3296007112 | I82: 3296007112 | J82: 3296007112 | K82: 3296007112 | L82: 3296007752 | M82: 3296007752 | N82: 3296007752 | O82: 3296007752 | P82: 3296007752 | Q82: 3296007752 | R82: 3296007752 | S82: 3296007752 | T82: 3296008382 | U82: 3296008382 | V82: 3296008382 | W82: 3296008382 | X82: 3296008382 | Y82: 3296008382 | Z82: 3296008382 | AA82: 3296008382 | AB82: 3296008382 | AC82: 3296009022 | AD82: 3296009022 | AE82: 3296009022 | AF82: 3296009022 | AG82: 3296009022 | AH82: 3296009022 | AI82: 3296009022 | AJ82: 3296009022 | AK82: 3296009662 | AL82: 3296009662 | AM82: 3296009662 | AN82: 3296009662 | AO82: 3296009662 | AP82: 3296009662 | AQ82: 3296009662 | AR82: 3296009662 | AS82: 3296009662 | AT82: 3296010302 | AU82: 3296010302 | AV82: 3296010302 | AW82: 3296010302 | AX82: 3296010302 | AY82: 3296010302 | AZ82: 3296010302 | BA82: 3296010302 | BB82: 3296010942 | BC82: 3296010942 | BD82: 3296010942 | BE82: 3296010942 | BF82: 3296010942 | BG82: 3296010942 | BH82: 3296010942 | BI82: 3296010942 | BJ82: 3296010942 | BK82: 3396009112 | BL82: 3396009112 | BM82: 3396009112 | BN82: 3396009112 | BO82: 3396009112 | BP82: 3396009112 | BQ82: 3396009112 | BR82: 3396009112 | BS82: 3396009612 | BT82: 3396009612
B83: 200 | C83: 3296006482 | D83: 3296007112 | E83: 3296007112 | F83: 3296007112 | G83: 3296007112 | H83: 3296007112 | I83: 3296007112 | J83: 3296007112 | K83: 3296007112 | L83: 3296007112 | M83: 3296007752 | N83: 3296007752 | O83: 3296007752 | P83: 3296007752 | Q83: 3296007752 | R83: 3296007752 | S83: 3296007752 | T83: 3296007752 | U83: 3296008382 | V83: 3296008382 | W83: 3296008382 | X83: 3296008382 | Y83: 3296008382 | Z83: 3296008382 | AA83: 3296008382 | AB83: 3296008382 | AC83: 3296008382 | AD83: 3296009022 | AE83: 3296009022 | AF83: 3296009022 | AG83: 3296009022 | AH83: 3296009022 | AI83: 3296009022 | AJ83: 3296009022 | AK83: 3296009022 | AL83: 3296009662 | AM83: 3296009662 | AN83: 3296009662 | AO83: 3296009662 | AP83: 3296009662 | AQ83: 3296009662 | AR83: 3296009662 | AS83: 3296009662 | AT83: 3296009662 | AU83: 3296010302 | AV83: 3296010302 | AW83: 3296010302 | AX83: 3296010302 | AY83: 3296010302 | AZ83: 3296010302 | BA83: 3296010302 | BB83: 3296010302 | BC83: 3296010942 | BD83: 3296010942 | BE83: 3296010942 | BF83: 3296010942 | BG83: 3296010942 | BH83: 3296010942 | BI83: 3296010942 | BJ83: 3296010942 | BK83: 3396008612 | BL83: 3396009112 | BM83: 3396009112 | BN83: 3396009112 | BO83: 3396009112 | BP83: 3396009112 | BQ83: 3396009112 | BR83: 3396009112 | BS83: 3396009112 | BT83: 3396009112
